Workbook

Sheet USER_INPUT
C3: In-Channel Sediment Basin Design Tool | F3: User Provided Input Paramters (Red)
C5: Project & Location: | F5: Designer: | M5: Date:
C7: Channel Configuration | F7: Site Soil Gradation | J7: Expected Temperature in Basin (°F) | K7: 70 | M7: Storage
C8: Foreslope (H:V) | D8: 3.50 | F8: Sieve No. (mm) | H8: % Finer | M8: Standing Pool (ft3) | N8: =IF($D$20=REFERENCE!B4,(VLOOKUP((USER_INPUT!D24/12),'STAGE-STORAGE'!A4:D55,4,TRUE)),IF($D$20=REFERENCE!B5,(VLOOKUP((USER_INPUT!D30/12),'STAGE-STORAGE'!A4:D55,4,TRUE)),IF($D$20=REFERENCE!B6,(VLOOKUP(USER_INPUT!D17,'STAGE-STORAGE'!A4:D55,4,TRUE)),0))) -> 1793.17
C9: Backslope (H:V) | D9: 3.00 | F9: 4 | G9: 4.7500 | H9: 100% | J9: Hydrograph Routing | M9: Stormwater Storage (ft3) | N9: =(IF($D$20=REFERENCE!B4,(VLOOKUP((D17),'STAGE-STORAGE'!A4:D55,4,TRUE)),IF($D$20=REFERENCE!B5,(VLOOKUP((D17),'STAGE-STORAGE'!A4:D55,4,TRUE)),IF($D$20=REFERENCE!B6,(VLOOKUP(USER_INPUT!D17,'STAGE-STORAGE'!A4:D55,4,TRUE)),0))))-N8 -> 7138.83
C10: Channel Bottom Width (ft) | D10: 10.00 | F10: 10 | G10: 2.0000 | H10: 96% | J10: Route Hydrograph? | K10: Yes | M10: Aux. Spillway Flow (ft3) | N10: =(VLOOKUP(D14,'STAGE-STORAGE'!A4:D55,4,TRUE))-USER_INPUT!N9 -> 4722.39
C11: Longitudinal Slope (%) | D11: 3.00% | F11: 20 | G11: 0.8500 | H11: 89% | J11: Initial Discharge Elevation (ft) | K11: =IF($D$20=REFERENCE!B4,USER_INPUT!D24/12,IF($D$20=REFERENCE!B5,USER_INPUT!D30/12,IF($D$20=REFERENCE!B6,D17,0))) -> 2.00 | M11: Skimmer Sizing Factor (ft3/in2) | N11: =ROUNDUP(IF($D$21=1,VLOOKUP($D$21,REFERENCE!E5:G12,2,TRUE),IF($D$21=2,VLOOKUP('STAGE-STORAGE'!J55,REFERENCE!I5:K12,2,TRUE),IF($D$21=3,VLOOKUP('STAGE-STORAGE'!J55,REFERENCE!M5:O12,2,TRUE),IF($D$21=4,VLOOKUP('STAGE-STORAGE'!J55,REFERENCE!Q5:S12,2,TRUE),IF($D$21=5,VLOOKUP('STAGE-STORAGE'!J55,REFERENCE!U5:W12,2,TRUE),IF($D$21=6,VLOOKUP('STAGE-STORAGE'!J55,REFERENCE!Y5:AA12,2,TRUE),IF($D$21=7,VLOOKUP('STAGE-STORAGE'!J55,REFERENCE!AC5:AE12,2,TRUE)))))))),0) -> 2246
F12: 40 | G12: 0.4250 | H12: 80% | J12: User Input Hydrograph | M12: Skimmer
C13: Dam/ Auxiliary Spillway Configuration | F13: 60 | G13: 0.2500 | H13: 75% | J13: Time (hr) | K13: Qin (ft3/s) | M13: Skimmer Size (in.) | N13: =ROUNDUP(IF($D$21=1,VLOOKUP($D$21,REFERENCE!E5:G12,3,TRUE),IF($D$21=2,VLOOKUP('STAGE-STORAGE'!J55,REFERENCE!I5:K12,3,TRUE),IF($D$21=3,VLOOKUP('STAGE-STORAGE'!J55,REFERENCE!M5:O12,3,TRUE),IF($D$21=4,VLOOKUP('STAGE-STORAGE'!J55,REFERENCE!Q5:S12,3,TRUE),IF($D$21=5,VLOOKUP('STAGE-STORAGE'!J55,REFERENCE!U5:W12,3,TRUE),IF($D$21=6,VLOOKUP('STAGE-STORAGE'!J55,REFERENCE!Y5:AA12,3,TRUE),IF($D$21=7,VLOOKUP('STAGE-STORAGE'!J55,REFERENCE!AC5:AE12,3,TRUE)))))))),0) -> 2
C14: Top of Dam (ft) | D14: 4.50 | F14: 100 | G14: 0.1500 | H14: 68% | J14: 0.000 | K14: 0 | M14: Orifice Diameter (in.) | N14: =IF(N11>0,SQRT((('STAGE-STORAGE'!J55/USER_INPUT!N11)/3.14159)*2),"Change Dewatering Time") -> 1.59
C15: Slope of Dam Face (%) | D15: 200.00% | F15: 120 | G15: 0.1250 | H15: 61% | J15: 0.017 | K15: 0 | M15: Head | N15: =VLOOKUP(N13,REFERENCE!AE5:AF12,2,FALSE) -> 2
C16: Spillway Width (ft) | D16: 4.00 | F16: 200 | G16: 0.0750 | H16: 62% | J16: 0.033 | K16: 0 | M16: Flocculant
C17: Spillway Height (ft) | D17: =D14-0.5 -> 4.00 | F17: Pan- Hydrometer Analysis | G17: 0.0522 | H17: 61% | J17: 0.050 | K17: 0 | M17: Settled Sediment (%) | N17: =REFERENCE!$H$42 -> 79.90%
G18: 0.0379 | H18: 57% | J18: 0.067 | K18: 0 | M18: Apply Flocculant? | N18: =IF(N17<0.8,"Yes","No") -> Yes
C19: Dewatering System | G19: 0.0279 | H19: 52% | J19: 0.083 | K19: 0
C20: Dewatering Structure | D20: Riser | G20: 0.0213 | H20: 40% | J20: 0.100 | K20: 0 | M20: Notes
C21: Desired Dewatering Time (days) | D21: 2 | G21: 0.0156 | H21: 34% | J21: 0.117 | K21: 0 | M21: This tool is to be used for design guidance only. The engineer of record is responsible for final design. Dam height is limited to 5 ft, as maximum specified in 3.4.6 of IECA Sediment Basin Design Standard (2021). Skimmer is limited to design for the Faircloth Skimmer. If the skimmer size or orifice diameter results in #N/A, dewatering time must be increased. Inflow hydrograph is limited to 2000 time step entries. Flocculant suggested if settled sediment is less than 80%.
C22: Riser Elevation (ft) | D22: 3.00 | G22: 0.0118 | H22: 28% | J22: 0.133 | K22: 0
C23: Riser Diameter (in.) | D23: 12.00 | G23: 0.0085 | H23: 24% | J23: 0.150 | K23: 0
C24: Elevation of Orifice Row 1 (in.) | D24: 24.00 | G24: 0.0061 | H24: 22% | J24: 0.167 | K24: 0
C25: Elevation of Orifice Row 2 (in.) | D25: 26.00 | G25: 0.0043 | H25: 20% | J25: 0.183 | K25: 0
C26: Elevation of Orifice Row 3 (in.) | D26: 28.00 | G26: 0.0031 | H26: 19% | J26: 0.200 | K26: 0
C27: Orifices in Row | D27: 4.00 | G27: 0.0025 | H27: 18% | J27: 0.217 | K27: 0
C28: Orifice Diameter (in.) | D28: 1.00 | G28: 0.0022 | H28: 18% | J28: 0.233 | K28: 0
C29: Skimmer | G29: 0.0013 | H29: 17% | J29: 0.250 | K29: 0
C30: Skimmer rest or pipe invert elevation (in.) | D30: 6.00 | G30: 0.0009 | H30: 15% | J30: 0.267 | K30: 0
J31: 0.283 | K31: 0 | M31: Password | N31: IowaDOT2020

Sheet STAGE-STORAGE
A1: Stage-Storage Relationship | G1: Stage-Discharge
A2: Stage | B2: Length | C2: Surface Area | D2: Storage Volume | G2: Rock Spillway | H2: Riser | I2: Skimmer | J2: Discharge
A3: ft | B3: ft | C3: ft² | D3: ft³ | G3: ft³/s | H3: ft³/s | I3: ft³/s | J3: ft³/s
A4: 0.00 | B4: 0.00 | C4: 0.00 | D4: 0.00 | G4: =IF(A4<USER_INPUT!$D$17,#N/A,(USER_INPUT!$D$16*(SQRT(32.2))*(2/3)*((A4-USER_INPUT!$D$17)^(3/2)))) ->  | H4: =IF(A4>USER_INPUT!$D$14,#N/A,IF(A4<(USER_INPUT!$D$24/12),0,(0.6*(USER_INPUT!$D$27*(3.14159*(USER_INPUT!$D$28/24)^2))*(SQRT(2*32.2*(A4-(USER_INPUT!$D$24/12)))))+IF(A4<(USER_INPUT!$D$25/12),0,(0.6*(USER_INPUT!D27*(3.14159*(USER_INPUT!$D$28/24)^2))*(SQRT(2*32.2*(A4-(USER_INPUT!$D$25/12)))))+IF(A4<(USER_INPUT!$D$26/12),0,(0.6*(USER_INPUT!$D$27*(3.14159*(USER_INPUT!$D$28/24)^2))*(SQRT(2*32.2*(A4-(USER_INPUT!$D$26/12)))))+IF(A4<(USER_INPUT!$D$22),0,(10.5*(USER_INPUT!$D$23/12)*((A4-USER_INPUT!$D$22)^(3/2)))+IF(A4<USER_INPUT!$D$17,0,(USER_INPUT!$D$16*(SQRT(32.2))*(2/3)*((A4-USER_INPUT!$D$17)^(3/2))))))))) -> 0 | I4: =IF(A4>USER_INPUT!$D$14,#N/A,IF(A4<(USER_INPUT!$D$30/12),0,(0.6*3.14519*((USER_INPUT!$N$14/2/12)^2)*(SQRT(2*32.2*((USER_INPUT!$N$15/12)))))+IF(A4<USER_INPUT!$D$17,0,(USER_INPUT!$D$16*(SQRT(32.2))*(2/3)*((A4-USER_INPUT!$D$17)^(3/2)))))) -> 0 | J4: =IF(USER_INPUT!$D$20=REFERENCE!$B$4,'STAGE-STORAGE'!H4,IF(USER_INPUT!$D$20=REFERENCE!$B$5,'STAGE-STORAGE'!I4,IF(USER_INPUT!$D$20=REFERENCE!$B$6,'STAGE-STORAGE'!G4,0))) -> 0.00
A5: 0.10 | B5: =IF(A5>USER_INPUT!$D$14,#N/A,(((A5/USER_INPUT!$D$11)+(A5/USER_INPUT!$D$15)))) -> 3.38 | C5: =IF(A5>USER_INPUT!$D$14,#N/A,((1/4)*(USER_INPUT!$D$8*(A5^2)))+((USER_INPUT!$D$10)*A5)+((1/4)*(USER_INPUT!$D$9*(A5^2)))) -> 1.02 | D5: =IF(A5>USER_INPUT!$D$14,#N/A,B5*C5) -> 3.44 | G5: =IF(A5<USER_INPUT!$D$17,#N/A,(USER_INPUT!$D$16*(SQRT(32.2))*(2/3)*((A5-USER_INPUT!$D$17)^(3/2)))) ->  | H5: =IF(A5>USER_INPUT!$D$14,#N/A,IF(A5<(USER_INPUT!$D$24/12),0,(0.6*(USER_INPUT!$D$27*(3.14159*(USER_INPUT!$D$28/24)^2))*(SQRT(2*32.2*(A5-(USER_INPUT!$D$24/12)))))+IF(A5<(USER_INPUT!$D$25/12),0,(0.6*(USER_INPUT!D28*(3.14159*(USER_INPUT!$D$28/24)^2))*(SQRT(2*32.2*(A5-(USER_INPUT!$D$25/12)))))+IF(A5<(USER_INPUT!$D$26/12),0,(0.6*(USER_INPUT!$D$27*(3.14159*(USER_INPUT!$D$28/24)^2))*(SQRT(2*32.2*(A5-(USER_INPUT!$D$26/12)))))+IF(A5<(USER_INPUT!$D$22),0,(10.5*(USER_INPUT!$D$23/12)*((A5-USER_INPUT!$D$22)^(3/2)))+IF(A5<USER_INPUT!$D$17,0,(USER_INPUT!$D$16*(SQRT(32.2))*(2/3)*((A5-USER_INPUT!$D$17)^(3/2))))))))) -> 0 | I5: =IF(A5>USER_INPUT!$D$14,#N/A,IF(A5<(USER_INPUT!$D$30/12),0,(0.6*3.14519*((USER_INPUT!$N$14/2/12)^2)*(SQRT(2*32.2*((USER_INPUT!$N$15/12)))))+IF(A5<USER_INPUT!$D$17,0,(USER_INPUT!$D$16*(SQRT(32.2))*(2/3)*((A5-USER_INPUT!$D$17)^(3/2)))))) -> 0 | J5: =IF(USER_INPUT!$D$20=REFERENCE!$B$4,'STAGE-STORAGE'!H5,IF(USER_INPUT!$D$20=REFERENCE!$B$5,'STAGE-STORAGE'!I5,IF(USER_INPUT!$D$20=REFERENCE!$B$6,'STAGE-STORAGE'!G5,0))) -> 0.00
A6: 0.20 | B6: =IF(A6>USER_INPUT!$D$14,#N/A,(((A6/USER_INPUT!$D$11)+(A6/USER_INPUT!$D$15)))) -> 6.77 | C6: =IF(A6>USER_INPUT!$D$14,#N/A,((1/4)*(USER_INPUT!$D$8*(A6^2)))+((USER_INPUT!$D$10)*A6)+((1/4)*(USER_INPUT!$D$9*(A6^2)))) -> 2.07 | D6: =IF(A6>USER_INPUT!$D$14,#N/A,B6*C6) -> 13.97 | G6: =IF(A6<USER_INPUT!$D$17,#N/A,(USER_INPUT!$D$16*(SQRT(32.2))*(2/3)*((A6-USER_INPUT!$D$17)^(3/2)))) ->  | H6: =IF(A6>USER_INPUT!$D$14,#N/A,IF(A6<(USER_INPUT!$D$24/12),0,(0.6*(USER_INPUT!$D$27*(3.14159*(USER_INPUT!$D$28/24)^2))*(SQRT(2*32.2*(A6-(USER_INPUT!$D$24/12)))))+IF(A6<(USER_INPUT!$D$25/12),0,(0.6*(USER_INPUT!D29*(3.14159*(USER_INPUT!$D$28/24)^2))*(SQRT(2*32.2*(A6-(USER_INPUT!$D$25/12)))))+IF(A6<(USER_INPUT!$D$26/12),0,(0.6*(USER_INPUT!$D$27*(3.14159*(USER_INPUT!$D$28/24)^2))*(SQRT(2*32.2*(A6-(USER_INPUT!$D$26/12)))))+IF(A6<(USER_INPUT!$D$22),0,(10.5*(USER_INPUT!$D$23/12)*((A6-USER_INPUT!$D$22)^(3/2)))+IF(A6<USER_INPUT!$D$17,0,(USER_INPUT!$D$16*(SQRT(32.2))*(2/3)*((A6-USER_INPUT!$D$17)^(3/2))))))))) -> 0 | I6: =IF(A6>USER_INPUT!$D$14,#N/A,IF(A6<(USER_INPUT!$D$30/12),0,(0.6*3.14519*((USER_INPUT!$N$14/2/12)^2)*(SQRT(2*32.2*((USER_INPUT!$N$15/12)))))+IF(A6<USER_INPUT!$D$17,0,(USER_INPUT!$D$16*(SQRT(32.2))*(2/3)*((A6-USER_INPUT!$D$17)^(3/2)))))) -> 0 | J6: =IF(USER_INPUT!$D$20=REFERENCE!$B$4,'STAGE-STORAGE'!H6,IF(USER_INPUT!$D$20=REFERENCE!$B$5,'STAGE-STORAGE'!I6,IF(USER_INPUT!$D$20=REFERENCE!$B$6,'STAGE-STORAGE'!G6,0))) -> 0.00
A7: 0.30 | B7: =IF(A7>USER_INPUT!$D$14,#N/A,(((A7/USER_INPUT!$D$11)+(A7/USER_INPUT!$D$15)))) -> 10.15 | C7: =IF(A7>USER_INPUT!$D$14,#N/A,((1/4)*(USER_INPUT!$D$8*(A7^2)))+((USER_INPUT!$D$10)*A7)+((1/4)*(USER_INPUT!$D$9*(A7^2)))) -> 3.15 | D7: =IF(A7>USER_INPUT!$D$14,#N/A,B7*C7) -> 31.93 | G7: =IF(A7<USER_INPUT!$D$17,#N/A,(USER_INPUT!$D$16*(SQRT(32.2))*(2/3)*((A7-USER_INPUT!$D$17)^(3/2)))) ->  | H7: =IF(A7>USER_INPUT!$D$14,#N/A,IF(A7<(USER_INPUT!$D$24/12),0,(0.6*(USER_INPUT!$D$27*(3.14159*(USER_INPUT!$D$28/24)^2))*(SQRT(2*32.2*(A7-(USER_INPUT!$D$24/12)))))+IF(A7<(USER_INPUT!$D$25/12),0,(0.6*(USER_INPUT!D30*(3.14159*(USER_INPUT!$D$28/24)^2))*(SQRT(2*32.2*(A7-(USER_INPUT!$D$25/12)))))+IF(A7<(USER_INPUT!$D$26/12),0,(0.6*(USER_INPUT!$D$27*(3.14159*(USER_INPUT!$D$28/24)^2))*(SQRT(2*32.2*(A7-(USER_INPUT!$D$26/12)))))+IF(A7<(USER_INPUT!$D$22),0,(10.5*(USER_INPUT!$D$23/12)*((A7-USER_INPUT!$D$22)^(3/2)))+IF(A7<USER_INPUT!$D$17,0,(USER_INPUT!$D$16*(SQRT(32.2))*(2/3)*((A7-USER_INPUT!$D$17)^(3/2))))))))) -> 0 | I7: =IF(A7>USER_INPUT!$D$14,#N/A,IF(A7<(USER_INPUT!$D$30/12),0,(0.6*3.14519*((USER_INPUT!$N$14/2/12)^2)*(SQRT(2*32.2*((USER_INPUT!$N$15/12)))))+IF(A7<USER_INPUT!$D$17,0,(USER_INPUT!$D$16*(SQRT(32.2))*(2/3)*((A7-USER_INPUT!$D$17)^(3/2)))))) -> 0 | J7: =IF(USER_INPUT!$D$20=REFERENCE!$B$4,'STAGE-STORAGE'!H7,IF(USER_INPUT!$D$20=REFERENCE!$B$5,'STAGE-STORAGE'!I7,IF(USER_INPUT!$D$20=REFERENCE!$B$6,'STAGE-STORAGE'!G7,0))) -> 0.00
A8: 0.40 | B8: =IF(A8>USER_INPUT!$D$14,#N/A,(((A8/USER_INPUT!$D$11)+(A8/USER_INPUT!$D$15)))) -> 13.53 | C8: =IF(A8>USER_INPUT!$D$14,#N/A,((1/4)*(USER_INPUT!$D$8*(A8^2)))+((USER_INPUT!$D$10)*A8)+((1/4)*(USER_INPUT!$D$9*(A8^2)))) -> 4.26 | D8: =IF(A8>USER_INPUT!$D$14,#N/A,B8*C8) -> 57.65 | G8: =IF(A8<USER_INPUT!$D$17,#N/A,(USER_INPUT!$D$16*(SQRT(32.2))*(2/3)*((A8-USER_INPUT!$D$17)^(3/2)))) ->  | H8: =IF(A8>USER_INPUT!$D$14,#N/A,IF(A8<(USER_INPUT!$D$24/12),0,(0.6*(USER_INPUT!$D$27*(3.14159*(USER_INPUT!$D$28/24)^2))*(SQRT(2*32.2*(A8-(USER_INPUT!$D$24/12)))))+IF(A8<(USER_INPUT!$D$25/12),0,(0.6*(USER_INPUT!D31*(3.14159*(USER_INPUT!$D$28/24)^2))*(SQRT(2*32.2*(A8-(USER_INPUT!$D$25/12)))))+IF(A8<(USER_INPUT!$D$26/12),0,(0.6*(USER_INPUT!$D$27*(3.14159*(USER_INPUT!$D$28/24)^2))*(SQRT(2*32.2*(A8-(USER_INPUT!$D$26/12)))))+IF(A8<(USER_INPUT!$D$22),0,(10.5*(USER_INPUT!$D$23/12)*((A8-USER_INPUT!$D$22)^(3/2)))+IF(A8<USER_INPUT!$D$17,0,(USER_INPUT!$D$16*(SQRT(32.2))*(2/3)*((A8-USER_INPUT!$D$17)^(3/2))))))))) -> 0 | I8: =IF(A8>USER_INPUT!$D$14,#N/A,IF(A8<(USER_INPUT!$D$30/12),0,(0.6*3.14519*((USER_INPUT!$N$14/2/12)^2)*(SQRT(2*32.2*((USER_INPUT!$N$15/12)))))+IF(A8<USER_INPUT!$D$17,0,(USER_INPUT!$D$16*(SQRT(32.2))*(2/3)*((A8-USER_INPUT!$D$17)^(3/2)))))) -> 0 | J8: =IF(USER_INPUT!$D$20=REFERENCE!$B$4,'STAGE-STORAGE'!H8,IF(USER_INPUT!$D$20=REFERENCE!$B$5,'STAGE-STORAGE'!I8,IF(USER_INPUT!$D$20=REFERENCE!$B$6,'STAGE-STORAGE'!G8,0))) -> 0.00
A9: 0.50 | B9: =IF(A9>USER_INPUT!$D$14,#N/A,(((A9/USER_INPUT!$D$11)+(A9/USER_INPUT!$D$15)))) -> 16.92 | C9: =IF(A9>USER_INPUT!$D$14,#N/A,((1/4)*(USER_INPUT!$D$8*(A9^2)))+((USER_INPUT!$D$10)*A9)+((1/4)*(USER_INPUT!$D$9*(A9^2)))) -> 5.41 | D9: =IF(A9>USER_INPUT!$D$14,#N/A,B9*C9) -> 91.46 | G9: =IF(A9<USER_INPUT!$D$17,#N/A,(USER_INPUT!$D$16*(SQRT(32.2))*(2/3)*((A9-USER_INPUT!$D$17)^(3/2)))) ->  | H9: =IF(A9>USER_INPUT!$D$14,#N/A,IF(A9<(USER_INPUT!$D$24/12),0,(0.6*(USER_INPUT!$D$27*(3.14159*(USER_INPUT!$D$28/24)^2))*(SQRT(2*32.2*(A9-(USER_INPUT!$D$24/12)))))+IF(A9<(USER_INPUT!$D$25/12),0,(0.6*(USER_INPUT!D32*(3.14159*(USER_INPUT!$D$28/24)^2))*(SQRT(2*32.2*(A9-(USER_INPUT!$D$25/12)))))+IF(A9<(USER_INPUT!$D$26/12),0,(0.6*(USER_INPUT!$D$27*(3.14159*(USER_INPUT!$D$28/24)^2))*(SQRT(2*32.2*(A9-(USER_INPUT!$D$26/12)))))+IF(A9<(USER_INPUT!$D$22),0,(10.5*(USER_INPUT!$D$23/12)*((A9-USER_INPUT!$D$22)^(3/2)))+IF(A9<USER_INPUT!$D$17,0,(USER_INPUT!$D$16*(SQRT(32.2))*(2/3)*((A9-USER_INPUT!$D$17)^(3/2))))))))) -> 0 | I9: =IF(A9>USER_INPUT!$D$14,#N/A,IF(A9<(USER_INPUT!$D$30/12),0,(0.6*3.14519*((USER_INPUT!$N$14/2/12)^2)*(SQRT(2*32.2*((USER_INPUT!$N$15/12)))))+IF(A9<USER_INPUT!$D$17,0,(USER_INPUT!$D$16*(SQRT(32.2))*(2/3)*((A9-USER_INPUT!$D$17)^(3/2)))))) -> 0.02717455331 | J9: =IF(USER_INPUT!$D$20=REFERENCE!$B$4,'STAGE-STORAGE'!H9,IF(USER_INPUT!$D$20=REFERENCE!$B$5,'STAGE-STORAGE'!I9,IF(USER_INPUT!$D$20=REFERENCE!$B$6,'STAGE-STORAGE'!G9,0))) -> 0.00
A10: 0.60 | B10: =IF(A10>USER_INPUT!$D$14,#N/A,(((A10/USER_INPUT!$D$11)+(A10/USER_INPUT!$D$15)))) -> 20.30 | C10: =IF(A10>USER_INPUT!$D$14,#N/A,((1/4)*(USER_INPUT!$D$8*(A10^2)))+((USER_INPUT!$D$10)*A10)+((1/4)*(USER_INPUT!$D$9*(A10^2)))) -> 6.59 | D10: =IF(A10>USER_INPUT!$D$14,#N/A,B10*C10) -> 133.68 | G10: =IF(A10<USER_INPUT!$D$17,#N/A,(USER_INPUT!$D$16*(SQRT(32.2))*(2/3)*((A10-USER_INPUT!$D$17)^(3/2)))) ->  | H10: =IF(A10>USER_INPUT!$D$14,#N/A,IF(A10<(USER_INPUT!$D$24/12),0,(0.6*(USER_INPUT!$D$27*(3.14159*(USER_INPUT!$D$28/24)^2))*(SQRT(2*32.2*(A10-(USER_INPUT!$D$24/12)))))+IF(A10<(USER_INPUT!$D$25/12),0,(0.6*(USER_INPUT!D33*(3.14159*(USER_INPUT!$D$28/24)^2))*(SQRT(2*32.2*(A10-(USER_INPUT!$D$25/12)))))+IF(A10<(USER_INPUT!$D$26/12),0,(0.6*(USER_INPUT!$D$27*(3.14159*(USER_INPUT!$D$28/24)^2))*(SQRT(2*32.2*(A10-(USER_INPUT!$D$26/12)))))+IF(A10<(USER_INPUT!$D$22),0,(10.5*(USER_INPUT!$D$23/12)*((A10-USER_INPUT!$D$22)^(3/2)))+IF(A10<USER_INPUT!$D$17,0,(USER_INPUT!$D$16*(SQRT(32.2))*(2/3)*((A10-USER_INPUT!$D$17)^(3/2))))))))) -> 0 | I10: =IF(A10>USER_INPUT!$D$14,#N/A,IF(A10<(USER_INPUT!$D$30/12),0,(0.6*3.14519*((USER_INPUT!$N$14/2/12)^2)*(SQRT(2*32.2*((USER_INPUT!$N$15/12)))))+IF(A10<USER_INPUT!$D$17,0,(USER_INPUT!$D$16*(SQRT(32.2))*(2/3)*((A10-USER_INPUT!$D$17)^(3/2)))))) -> 0.02717455331 | J10: =IF(USER_INPUT!$D$20=REFERENCE!$B$4,'STAGE-STORAGE'!H10,IF(USER_INPUT!$D$20=REFERENCE!$B$5,'STAGE-STORAGE'!I10,IF(USER_INPUT!$D$20=REFERENCE!$B$6,'STAGE-STORAGE'!G10,0))) -> 0.00
A11: 0.70 | B11: =IF(A11>USER_INPUT!$D$14,#N/A,(((A11/USER_INPUT!$D$11)+(A11/USER_INPUT!$D$15)))) -> 23.68 | C11: =IF(A11>USER_INPUT!$D$14,#N/A,((1/4)*(USER_INPUT!$D$8*(A11^2)))+((USER_INPUT!$D$10)*A11)+((1/4)*(USER_INPUT!$D$9*(A11^2)))) -> 7.80 | D11: =IF(A11>USER_INPUT!$D$14,#N/A,B11*C11) -> 184.64 | G11: =IF(A11<USER_INPUT!$D$17,#N/A,(USER_INPUT!$D$16*(SQRT(32.2))*(2/3)*((A11-USER_INPUT!$D$17)^(3/2)))) ->  | H11: =IF(A11>USER_INPUT!$D$14,#N/A,IF(A11<(USER_INPUT!$D$24/12),0,(0.6*(USER_INPUT!$D$27*(3.14159*(USER_INPUT!$D$28/24)^2))*(SQRT(2*32.2*(A11-(USER_INPUT!$D$24/12)))))+IF(A11<(USER_INPUT!$D$25/12),0,(0.6*(USER_INPUT!D34*(3.14159*(USER_INPUT!$D$28/24)^2))*(SQRT(2*32.2*(A11-(USER_INPUT!$D$25/12)))))+IF(A11<(USER_INPUT!$D$26/12),0,(0.6*(USER_INPUT!$D$27*(3.14159*(USER_INPUT!$D$28/24)^2))*(SQRT(2*32.2*(A11-(USER_INPUT!$D$26/12)))))+IF(A11<(USER_INPUT!$D$22),0,(10.5*(USER_INPUT!$D$23/12)*((A11-USER_INPUT!$D$22)^(3/2)))+IF(A11<USER_INPUT!$D$17,0,(USER_INPUT!$D$16*(SQRT(32.2))*(2/3)*((A11-USER_INPUT!$D$17)^(3/2))))))))) -> 0 | I11: =IF(A11>USER_INPUT!$D$14,#N/A,IF(A11<(USER_INPUT!$D$30/12),0,(0.6*3.14519*((USER_INPUT!$N$14/2/12)^2)*(SQRT(2*32.2*((USER_INPUT!$N$15/12)))))+IF(A11<USER_INPUT!$D$17,0,(USER_INPUT!$D$16*(SQRT(32.2))*(2/3)*((A11-USER_INPUT!$D$17)^(3/2)))))) -> 0.02717455331 | J11: =IF(USER_INPUT!$D$20=REFERENCE!$B$4,'STAGE-STORAGE'!H11,IF(USER_INPUT!$D$20=REFERENCE!$B$5,'STAGE-STORAGE'!I11,IF(USER_INPUT!$D$20=REFERENCE!$B$6,'STAGE-STORAGE'!G11,0))) -> 0.00
A12: 0.80 | B12: =IF(A12>USER_INPUT!$D$14,#N/A,(((A12/USER_INPUT!$D$11)+(A12/USER_INPUT!$D$15)))) -> 27.07 | C12: =IF(A12>USER_INPUT!$D$14,#N/A,((1/4)*(USER_INPUT!$D$8*(A12^2)))+((USER_INPUT!$D$10)*A12)+((1/4)*(USER_INPUT!$D$9*(A12^2)))) -> 9.04 | D12: =IF(A12>USER_INPUT!$D$14,#N/A,B12*C12) -> 244.68 | G12: =IF(A12<USER_INPUT!$D$17,#N/A,(USER_INPUT!$D$16*(SQRT(32.2))*(2/3)*((A12-USER_INPUT!$D$17)^(3/2)))) ->  | H12: =IF(A12>USER_INPUT!$D$14,#N/A,IF(A12<(USER_INPUT!$D$24/12),0,(0.6*(USER_INPUT!$D$27*(3.14159*(USER_INPUT!$D$28/24)^2))*(SQRT(2*32.2*(A12-(USER_INPUT!$D$24/12)))))+IF(A12<(USER_INPUT!$D$25/12),0,(0.6*(USER_INPUT!D35*(3.14159*(USER_INPUT!$D$28/24)^2))*(SQRT(2*32.2*(A12-(USER_INPUT!$D$25/12)))))+IF(A12<(USER_INPUT!$D$26/12),0,(0.6*(USER_INPUT!$D$27*(3.14159*(USER_INPUT!$D$28/24)^2))*(SQRT(2*32.2*(A12-(USER_INPUT!$D$26/12)))))+IF(A12<(USER_INPUT!$D$22),0,(10.5*(USER_INPUT!$D$23/12)*((A12-USER_INPUT!$D$22)^(3/2)))+IF(A12<USER_INPUT!$D$17,0,(USER_INPUT!$D$16*(SQRT(32.2))*(2/3)*((A12-USER_INPUT!$D$17)^(3/2))))))))) -> 0 | I12: =IF(A12>USER_INPUT!$D$14,#N/A,IF(A12<(USER_INPUT!$D$30/12),0,(0.6*3.14519*((USER_INPUT!$N$14/2/12)^2)*(SQRT(2*32.2*((USER_INPUT!$N$15/12)))))+IF(A12<USER_INPUT!$D$17,0,(USER_INPUT!$D$16*(SQRT(32.2))*(2/3)*((A12-USER_INPUT!$D$17)^(3/2)))))) -> 0.02717455331 | J12: =IF(USER_INPUT!$D$20=REFERENCE!$B$4,'STAGE-STORAGE'!H12,IF(USER_INPUT!$D$20=REFERENCE!$B$5,'STAGE-STORAGE'!I12,IF(USER_INPUT!$D$20=REFERENCE!$B$6,'STAGE-STORAGE'!G12,0))) -> 0.00
A13: 0.90 | B13: =IF(A13>USER_INPUT!$D$14,#N/A,(((A13/USER_INPUT!$D$11)+(A13/USER_INPUT!$D$15)))) -> 30.45 | C13: =IF(A13>USER_INPUT!$D$14,#N/A,((1/4)*(USER_INPUT!$D$8*(A13^2)))+((USER_INPUT!$D$10)*A13)+((1/4)*(USER_INPUT!$D$9*(A13^2)))) -> 10.32 | D13: =IF(A13>USER_INPUT!$D$14,#N/A,B13*C13) -> 314.13 | G13: =IF(A13<USER_INPUT!$D$17,#N/A,(USER_INPUT!$D$16*(SQRT(32.2))*(2/3)*((A13-USER_INPUT!$D$17)^(3/2)))) ->  | H13: =IF(A13>USER_INPUT!$D$14,#N/A,IF(A13<(USER_INPUT!$D$24/12),0,(0.6*(USER_INPUT!$D$27*(3.14159*(USER_INPUT!$D$28/24)^2))*(SQRT(2*32.2*(A13-(USER_INPUT!$D$24/12)))))+IF(A13<(USER_INPUT!$D$25/12),0,(0.6*(USER_INPUT!D36*(3.14159*(USER_INPUT!$D$28/24)^2))*(SQRT(2*32.2*(A13-(USER_INPUT!$D$25/12)))))+IF(A13<(USER_INPUT!$D$26/12),0,(0.6*(USER_INPUT!$D$27*(3.14159*(USER_INPUT!$D$28/24)^2))*(SQRT(2*32.2*(A13-(USER_INPUT!$D$26/12)))))+IF(A13<(USER_INPUT!$D$22),0,(10.5*(USER_INPUT!$D$23/12)*((A13-USER_INPUT!$D$22)^(3/2)))+IF(A13<USER_INPUT!$D$17,0,(USER_INPUT!$D$16*(SQRT(32.2))*(2/3)*((A13-USER_INPUT!$D$17)^(3/2))))))))) -> 0 | I13: =IF(A13>USER_INPUT!$D$14,#N/A,IF(A13<(USER_INPUT!$D$30/12),0,(0.6*3.14519*((USER_INPUT!$N$14/2/12)^2)*(SQRT(2*32.2*((USER_INPUT!$N$15/12)))))+IF(A13<USER_INPUT!$D$17,0,(USER_INPUT!$D$16*(SQRT(32.2))*(2/3)*((A13-USER_INPUT!$D$17)^(3/2)))))) -> 0.02717455331 | J13: =IF(USER_INPUT!$D$20=REFERENCE!$B$4,'STAGE-STORAGE'!H13,IF(USER_INPUT!$D$20=REFERENCE!$B$5,'STAGE-STORAGE'!I13,IF(USER_INPUT!$D$20=REFERENCE!$B$6,'STAGE-STORAGE'!G13,0))) -> 0.00
A14: 1.00 | B14: =IF(A14>USER_INPUT!$D$14,#N/A,(((A14/USER_INPUT!$D$11)+(A14/USER_INPUT!$D$15)))) -> 33.83 | C14: =IF(A14>USER_INPUT!$D$14,#N/A,((1/4)*(USER_INPUT!$D$8*(A14^2)))+((USER_INPUT!$D$10)*A14)+((1/4)*(USER_INPUT!$D$9*(A14^2)))) -> 11.63 | D14: =IF(A14>USER_INPUT!$D$14,#N/A,B14*C14) -> 393.31 | G14: =IF(A14<USER_INPUT!$D$17,#N/A,(USER_INPUT!$D$16*(SQRT(32.2))*(2/3)*((A14-USER_INPUT!$D$17)^(3/2)))) ->  | H14: =IF(A14>USER_INPUT!$D$14,#N/A,IF(A14<(USER_INPUT!$D$24/12),0,(0.6*(USER_INPUT!$D$27*(3.14159*(USER_INPUT!$D$28/24)^2))*(SQRT(2*32.2*(A14-(USER_INPUT!$D$24/12)))))+IF(A14<(USER_INPUT!$D$25/12),0,(0.6*(USER_INPUT!D37*(3.14159*(USER_INPUT!$D$28/24)^2))*(SQRT(2*32.2*(A14-(USER_INPUT!$D$25/12)))))+IF(A14<(USER_INPUT!$D$26/12),0,(0.6*(USER_INPUT!$D$27*(3.14159*(USER_INPUT!$D$28/24)^2))*(SQRT(2*32.2*(A14-(USER_INPUT!$D$26/12)))))+IF(A14<(USER_INPUT!$D$22),0,(10.5*(USER_INPUT!$D$23/12)*((A14-USER_INPUT!$D$22)^(3/2)))+IF(A14<USER_INPUT!$D$17,0,(USER_INPUT!$D$16*(SQRT(32.2))*(2/3)*((A14-USER_INPUT!$D$17)^(3/2))))))))) -> 0 | I14: =IF(A14>USER_INPUT!$D$14,#N/A,IF(A14<(USER_INPUT!$D$30/12),0,(0.6*3.14519*((USER_INPUT!$N$14/2/12)^2)*(SQRT(2*32.2*((USER_INPUT!$N$15/12)))))+IF(A14<USER_INPUT!$D$17,0,(USER_INPUT!$D$16*(SQRT(32.2))*(2/3)*((A14-USER_INPUT!$D$17)^(3/2)))))) -> 0.02717455331 | J14: =IF(USER_INPUT!$D$20=REFERENCE!$B$4,'STAGE-STORAGE'!H14,IF(USER_INPUT!$D$20=REFERENCE!$B$5,'STAGE-STORAGE'!I14,IF(USER_INPUT!$D$20=REFERENCE!$B$6,'STAGE-STORAGE'!G14,0))) -> 0.00
A15: 1.10 | B15: =IF(A15>USER_INPUT!$D$14,#N/A,(((A15/USER_INPUT!$D$11)+(A15/USER_INPUT!$D$15)))) -> 37.22 | C15: =IF(A15>USER_INPUT!$D$14,#N/A,((1/4)*(USER_INPUT!$D$8*(A15^2)))+((USER_INPUT!$D$10)*A15)+((1/4)*(USER_INPUT!$D$9*(A15^2)))) -> 12.97 | D15: =IF(A15>USER_INPUT!$D$14,#N/A,B15*C15) -> 482.56 | G15: =IF(A15<USER_INPUT!$D$17,#N/A,(USER_INPUT!$D$16*(SQRT(32.2))*(2/3)*((A15-USER_INPUT!$D$17)^(3/2)))) ->  | H15: =IF(A15>USER_INPUT!$D$14,#N/A,IF(A15<(USER_INPUT!$D$24/12),0,(0.6*(USER_INPUT!$D$27*(3.14159*(USER_INPUT!$D$28/24)^2))*(SQRT(2*32.2*(A15-(USER_INPUT!$D$24/12)))))+IF(A15<(USER_INPUT!$D$25/12),0,(0.6*(USER_INPUT!D38*(3.14159*(USER_INPUT!$D$28/24)^2))*(SQRT(2*32.2*(A15-(USER_INPUT!$D$25/12)))))+IF(A15<(USER_INPUT!$D$26/12),0,(0.6*(USER_INPUT!$D$27*(3.14159*(USER_INPUT!$D$28/24)^2))*(SQRT(2*32.2*(A15-(USER_INPUT!$D$26/12)))))+IF(A15<(USER_INPUT!$D$22),0,(10.5*(USER_INPUT!$D$23/12)*((A15-USER_INPUT!$D$22)^(3/2)))+IF(A15<USER_INPUT!$D$17,0,(USER_INPUT!$D$16*(SQRT(32.2))*(2/3)*((A15-USER_INPUT!$D$17)^(3/2))))))))) -> 0 | I15: =IF(A15>USER_INPUT!$D$14,#N/A,IF(A15<(USER_INPUT!$D$30/12),0,(0.6*3.14519*((USER_INPUT!$N$14/2/12)^2)*(SQRT(2*32.2*((USER_INPUT!$N$15/12)))))+IF(A15<USER_INPUT!$D$17,0,(USER_INPUT!$D$16*(SQRT(32.2))*(2/3)*((A15-USER_INPUT!$D$17)^(3/2)))))) -> 0.02717455331 | J15: =IF(USER_INPUT!$D$20=REFERENCE!$B$4,'STAGE-STORAGE'!H15,IF(USER_INPUT!$D$20=REFERENCE!$B$5,'STAGE-STORAGE'!I15,IF(USER_INPUT!$D$20=REFERENCE!$B$6,'STAGE-STORAGE'!G15,0))) -> 0.00
A16: 1.20 | B16: =IF(A16>USER_INPUT!$D$14,#N/A,(((A16/USER_INPUT!$D$11)+(A16/USER_INPUT!$D$15)))) -> 40.60 | C16: =IF(A16>USER_INPUT!$D$14,#N/A,((1/4)*(USER_INPUT!$D$8*(A16^2)))+((USER_INPUT!$D$10)*A16)+((1/4)*(USER_INPUT!$D$9*(A16^2)))) -> 14.34 | D16: =IF(A16>USER_INPUT!$D$14,#N/A,B16*C16) -> 582.20 | G16: =IF(A16<USER_INPUT!$D$17,#N/A,(USER_INPUT!$D$16*(SQRT(32.2))*(2/3)*((A16-USER_INPUT!$D$17)^(3/2)))) ->  | H16: =IF(A16>USER_INPUT!$D$14,#N/A,IF(A16<(USER_INPUT!$D$24/12),0,(0.6*(USER_INPUT!$D$27*(3.14159*(USER_INPUT!$D$28/24)^2))*(SQRT(2*32.2*(A16-(USER_INPUT!$D$24/12)))))+IF(A16<(USER_INPUT!$D$25/12),0,(0.6*(USER_INPUT!D39*(3.14159*(USER_INPUT!$D$28/24)^2))*(SQRT(2*32.2*(A16-(USER_INPUT!$D$25/12)))))+IF(A16<(USER_INPUT!$D$26/12),0,(0.6*(USER_INPUT!$D$27*(3.14159*(USER_INPUT!$D$28/24)^2))*(SQRT(2*32.2*(A16-(USER_INPUT!$D$26/12)))))+IF(A16<(USER_INPUT!$D$22),0,(10.5*(USER_INPUT!$D$23/12)*((A16-USER_INPUT!$D$22)^(3/2)))+IF(A16<USER_INPUT!$D$17,0,(USER_INPUT!$D$16*(SQRT(32.2))*(2/3)*((A16-USER_INPUT!$D$17)^(3/2))))))))) -> 0 | I16: =IF(A16>USER_INPUT!$D$14,#N/A,IF(A16<(USER_INPUT!$D$30/12),0,(0.6*3.14519*((USER_INPUT!$N$14/2/12)^2)*(SQRT(2*32.2*((USER_INPUT!$N$15/12)))))+IF(A16<USER_INPUT!$D$17,0,(USER_INPUT!$D$16*(SQRT(32.2))*(2/3)*((A16-USER_INPUT!$D$17)^(3/2)))))) -> 0.02717455331 | J16: =IF(USER_INPUT!$D$20=REFERENCE!$B$4,'STAGE-STORAGE'!H16,IF(USER_INPUT!$D$20=REFERENCE!$B$5,'STAGE-STORAGE'!I16,IF(USER_INPUT!$D$20=REFERENCE!$B$6,'STAGE-STORAGE'!G16,0))) -> 0.00
A17: 1.30 | B17: =IF(A17>USER_INPUT!$D$14,#N/A,(((A17/USER_INPUT!$D$11)+(A17/USER_INPUT!$D$15)))) -> 43.98 | C17: =IF(A17>USER_INPUT!$D$14,#N/A,((1/4)*(USER_INPUT!$D$8*(A17^2)))+((USER_INPUT!$D$10)*A17)+((1/4)*(USER_INPUT!$D$9*(A17^2)))) -> 15.75 | D17: =IF(A17>USER_INPUT!$D$14,#N/A,B17*C17) -> 692.57 | G17: =IF(A17<USER_INPUT!$D$17,#N/A,(USER_INPUT!$D$16*(SQRT(32.2))*(2/3)*((A17-USER_INPUT!$D$17)^(3/2)))) ->  | H17: =IF(A17>USER_INPUT!$D$14,#N/A,IF(A17<(USER_INPUT!$D$24/12),0,(0.6*(USER_INPUT!$D$27*(3.14159*(USER_INPUT!$D$28/24)^2))*(SQRT(2*32.2*(A17-(USER_INPUT!$D$24/12)))))+IF(A17<(USER_INPUT!$D$25/12),0,(0.6*(USER_INPUT!D40*(3.14159*(USER_INPUT!$D$28/24)^2))*(SQRT(2*32.2*(A17-(USER_INPUT!$D$25/12)))))+IF(A17<(USER_INPUT!$D$26/12),0,(0.6*(USER_INPUT!$D$27*(3.14159*(USER_INPUT!$D$28/24)^2))*(SQRT(2*32.2*(A17-(USER_INPUT!$D$26/12)))))+IF(A17<(USER_INPUT!$D$22),0,(10.5*(USER_INPUT!$D$23/12)*((A17-USER_INPUT!$D$22)^(3/2)))+IF(A17<USER_INPUT!$D$17,0,(USER_INPUT!$D$16*(SQRT(32.2))*(2/3)*((A17-USER_INPUT!$D$17)^(3/2))))))))) -> 0 | I17: =IF(A17>USER_INPUT!$D$14,#N/A,IF(A17<(USER_INPUT!$D$30/12),0,(0.6*3.14519*((USER_INPUT!$N$14/2/12)^2)*(SQRT(2*32.2*((USER_INPUT!$N$15/12)))))+IF(A17<USER_INPUT!$D$17,0,(USER_INPUT!$D$16*(SQRT(32.2))*(2/3)*((A17-USER_INPUT!$D$17)^(3/2)))))) -> 0.02717455331 | J17: =IF(USER_INPUT!$D$20=REFERENCE!$B$4,'STAGE-STORAGE'!H17,IF(USER_INPUT!$D$20=REFERENCE!$B$5,'STAGE-STORAGE'!I17,IF(USER_INPUT!$D$20=REFERENCE!$B$6,'STAGE-STORAGE'!G17,0))) -> 0.00
A18: 1.40 | B18: =IF(A18>USER_INPUT!$D$14,#N/A,(((A18/USER_INPUT!$D$11)+(A18/USER_INPUT!$D$15)))) -> 47.37 | C18: =IF(A18>USER_INPUT!$D$14,#N/A,((1/4)*(USER_INPUT!$D$8*(A18^2)))+((USER_INPUT!$D$10)*A18)+((1/4)*(USER_INPUT!$D$9*(A18^2)))) -> 17.19 | D18: =IF(A18>USER_INPUT!$D$14,#N/A,B18*C18) -> 814.00 | G18: =IF(A18<USER_INPUT!$D$17,#N/A,(USER_INPUT!$D$16*(SQRT(32.2))*(2/3)*((A18-USER_INPUT!$D$17)^(3/2)))) ->  | H18: =IF(A18>USER_INPUT!$D$14,#N/A,IF(A18<(USER_INPUT!$D$24/12),0,(0.6*(USER_INPUT!$D$27*(3.14159*(USER_INPUT!$D$28/24)^2))*(SQRT(2*32.2*(A18-(USER_INPUT!$D$24/12)))))+IF(A18<(USER_INPUT!$D$25/12),0,(0.6*(USER_INPUT!D41*(3.14159*(USER_INPUT!$D$28/24)^2))*(SQRT(2*32.2*(A18-(USER_INPUT!$D$25/12)))))+IF(A18<(USER_INPUT!$D$26/12),0,(0.6*(USER_INPUT!$D$27*(3.14159*(USER_INPUT!$D$28/24)^2))*(SQRT(2*32.2*(A18-(USER_INPUT!$D$26/12)))))+IF(A18<(USER_INPUT!$D$22),0,(10.5*(USER_INPUT!$D$23/12)*((A18-USER_INPUT!$D$22)^(3/2)))+IF(A18<USER_INPUT!$D$17,0,(USER_INPUT!$D$16*(SQRT(32.2))*(2/3)*((A18-USER_INPUT!$D$17)^(3/2))))))))) -> 0 | I18: =IF(A18>USER_INPUT!$D$14,#N/A,IF(A18<(USER_INPUT!$D$30/12),0,(0.6*3.14519*((USER_INPUT!$N$14/2/12)^2)*(SQRT(2*32.2*((USER_INPUT!$N$15/12)))))+IF(A18<USER_INPUT!$D$17,0,(USER_INPUT!$D$16*(SQRT(32.2))*(2/3)*((A18-USER_INPUT!$D$17)^(3/2)))))) -> 0.02717455331 | J18: =IF(USER_INPUT!$D$20=REFERENCE!$B$4,'STAGE-STORAGE'!H18,IF(USER_INPUT!$D$20=REFERENCE!$B$5,'STAGE-STORAGE'!I18,IF(USER_INPUT!$D$20=REFERENCE!$B$6,'STAGE-STORAGE'!G18,0))) -> 0.00
A19: 1.50 | B19: =IF(A19>USER_INPUT!$D$14,#N/A,(((A19/USER_INPUT!$D$11)+(A19/USER_INPUT!$D$15)))) -> 50.75 | C19: =IF(A19>USER_INPUT!$D$14,#N/A,((1/4)*(USER_INPUT!$D$8*(A19^2)))+((USER_INPUT!$D$10)*A19)+((1/4)*(USER_INPUT!$D$9*(A19^2)))) -> 18.66 | D19: =IF(A19>USER_INPUT!$D$14,#N/A,B19*C19) -> 946.80 | G19: =IF(A19<USER_INPUT!$D$17,#N/A,(USER_INPUT!$D$16*(SQRT(32.2))*(2/3)*((A19-USER_INPUT!$D$17)^(3/2)))) ->  | H19: =IF(A19>USER_INPUT!$D$14,#N/A,IF(A19<(USER_INPUT!$D$24/12),0,(0.6*(USER_INPUT!$D$27*(3.14159*(USER_INPUT!$D$28/24)^2))*(SQRT(2*32.2*(A19-(USER_INPUT!$D$24/12)))))+IF(A19<(USER_INPUT!$D$25/12),0,(0.6*(USER_INPUT!D42*(3.14159*(USER_INPUT!$D$28/24)^2))*(SQRT(2*32.2*(A19-(USER_INPUT!$D$25/12)))))+IF(A19<(USER_INPUT!$D$26/12),0,(0.6*(USER_INPUT!$D$27*(3.14159*(USER_INPUT!$D$28/24)^2))*(SQRT(2*32.2*(A19-(USER_INPUT!$D$26/12)))))+IF(A19<(USER_INPUT!$D$22),0,(10.5*(USER_INPUT!$D$23/12)*((A19-USER_INPUT!$D$22)^(3/2)))+IF(A19<USER_INPUT!$D$17,0,(USER_INPUT!$D$16*(SQRT(32.2))*(2/3)*((A19-USER_INPUT!$D$17)^(3/2))))))))) -> 0 | I19: =IF(A19>USER_INPUT!$D$14,#N/A,IF(A19<(USER_INPUT!$D$30/12),0,(0.6*3.14519*((USER_INPUT!$N$14/2/12)^2)*(SQRT(2*32.2*((USER_INPUT!$N$15/12)))))+IF(A19<USER_INPUT!$D$17,0,(USER_INPUT!$D$16*(SQRT(32.2))*(2/3)*((A19-USER_INPUT!$D$17)^(3/2)))))) -> 0.02717455331 | J19: =IF(USER_INPUT!$D$20=REFERENCE!$B$4,'STAGE-STORAGE'!H19,IF(USER_INPUT!$D$20=REFERENCE!$B$5,'STAGE-STORAGE'!I19,IF(USER_INPUT!$D$20=REFERENCE!$B$6,'STAGE-STORAGE'!G19,0))) -> 0.00
A20: 1.60 | B20: =IF(A20>USER_INPUT!$D$14,#N/A,(((A20/USER_INPUT!$D$11)+(A20/USER_INPUT!$D$15)))) -> 54.13 | C20: =IF(A20>USER_INPUT!$D$14,#N/A,((1/4)*(USER_INPUT!$D$8*(A20^2)))+((USER_INPUT!$D$10)*A20)+((1/4)*(USER_INPUT!$D$9*(A20^2)))) -> 20.16 | D20: =IF(A20>USER_INPUT!$D$14,#N/A,B20*C20) -> 1091.33 | G20: =IF(A20<USER_INPUT!$D$17,#N/A,(USER_INPUT!$D$16*(SQRT(32.2))*(2/3)*((A20-USER_INPUT!$D$17)^(3/2)))) ->  | H20: =IF(A20>USER_INPUT!$D$14,#N/A,IF(A20<(USER_INPUT!$D$24/12),0,(0.6*(USER_INPUT!$D$27*(3.14159*(USER_INPUT!$D$28/24)^2))*(SQRT(2*32.2*(A20-(USER_INPUT!$D$24/12)))))+IF(A20<(USER_INPUT!$D$25/12),0,(0.6*(USER_INPUT!D43*(3.14159*(USER_INPUT!$D$28/24)^2))*(SQRT(2*32.2*(A20-(USER_INPUT!$D$25/12)))))+IF(A20<(USER_INPUT!$D$26/12),0,(0.6*(USER_INPUT!$D$27*(3.14159*(USER_INPUT!$D$28/24)^2))*(SQRT(2*32.2*(A20-(USER_INPUT!$D$26/12)))))+IF(A20<(USER_INPUT!$D$22),0,(10.5*(USER_INPUT!$D$23/12)*((A20-USER_INPUT!$D$22)^(3/2)))+IF(A20<USER_INPUT!$D$17,0,(USER_INPUT!$D$16*(SQRT(32.2))*(2/3)*((A20-USER_INPUT!$D$17)^(3/2))))))))) -> 0 | I20: =IF(A20>USER_INPUT!$D$14,#N/A,IF(A20<(USER_INPUT!$D$30/12),0,(0.6*3.14519*((USER_INPUT!$N$14/2/12)^2)*(SQRT(2*32.2*((USER_INPUT!$N$15/12)))))+IF(A20<USER_INPUT!$D$17,0,(USER_INPUT!$D$16*(SQRT(32.2))*(2/3)*((A20-USER_INPUT!$D$17)^(3/2)))))) -> 0.02717455331 | J20: =IF(USER_INPUT!$D$20=REFERENCE!$B$4,'STAGE-STORAGE'!H20,IF(USER_INPUT!$D$20=REFERENCE!$B$5,'STAGE-STORAGE'!I20,IF(USER_INPUT!$D$20=REFERENCE!$B$6,'STAGE-STORAGE'!G20,0))) -> 0.00
A21: 1.70 | B21: =IF(A21>USER_INPUT!$D$14,#N/A,(((A21/USER_INPUT!$D$11)+(A21/USER_INPUT!$D$15)))) -> 57.52 | C21: =IF(A21>USER_INPUT!$D$14,#N/A,((1/4)*(USER_INPUT!$D$8*(A21^2)))+((USER_INPUT!$D$10)*A21)+((1/4)*(USER_INPUT!$D$9*(A21^2)))) -> 21.70 | D21: =IF(A21>USER_INPUT!$D$14,#N/A,B21*C21) -> 1247.90 | G21: =IF(A21<USER_INPUT!$D$17,#N/A,(USER_INPUT!$D$16*(SQRT(32.2))*(2/3)*((A21-USER_INPUT!$D$17)^(3/2)))) ->  | H21: =IF(A21>USER_INPUT!$D$14,#N/A,IF(A21<(USER_INPUT!$D$24/12),0,(0.6*(USER_INPUT!$D$27*(3.14159*(USER_INPUT!$D$28/24)^2))*(SQRT(2*32.2*(A21-(USER_INPUT!$D$24/12)))))+IF(A21<(USER_INPUT!$D$25/12),0,(0.6*(USER_INPUT!D44*(3.14159*(USER_INPUT!$D$28/24)^2))*(SQRT(2*32.2*(A21-(USER_INPUT!$D$25/12)))))+IF(A21<(USER_INPUT!$D$26/12),0,(0.6*(USER_INPUT!$D$27*(3.14159*(USER_INPUT!$D$28/24)^2))*(SQRT(2*32.2*(A21-(USER_INPUT!$D$26/12)))))+IF(A21<(USER_INPUT!$D$22),0,(10.5*(USER_INPUT!$D$23/12)*((A21-USER_INPUT!$D$22)^(3/2)))+IF(A21<USER_INPUT!$D$17,0,(USER_INPUT!$D$16*(SQRT(32.2))*(2/3)*((A21-USER_INPUT!$D$17)^(3/2))))))))) -> 0 | I21: =IF(A21>USER_INPUT!$D$14,#N/A,IF(A21<(USER_INPUT!$D$30/12),0,(0.6*3.14519*((USER_INPUT!$N$14/2/12)^2)*(SQRT(2*32.2*((USER_INPUT!$N$15/12)))))+IF(A21<USER_INPUT!$D$17,0,(USER_INPUT!$D$16*(SQRT(32.2))*(2/3)*((A21-USER_INPUT!$D$17)^(3/2)))))) -> 0.02717455331 | J21: =IF(USER_INPUT!$D$20=REFERENCE!$B$4,'STAGE-STORAGE'!H21,IF(USER_INPUT!$D$20=REFERENCE!$B$5,'STAGE-STORAGE'!I21,IF(USER_INPUT!$D$20=REFERENCE!$B$6,'STAGE-STORAGE'!G21,0))) -> 0.00
A22: 1.80 | B22: =IF(A22>USER_INPUT!$D$14,#N/A,(((A22/USER_INPUT!$D$11)+(A22/USER_INPUT!$D$15)))) -> 60.90 | C22: =IF(A22>USER_INPUT!$D$14,#N/A,((1/4)*(USER_INPUT!$D$8*(A22^2)))+((USER_INPUT!$D$10)*A22)+((1/4)*(USER_INPUT!$D$9*(A22^2)))) -> 23.27 | D22: =IF(A22>USER_INPUT!$D$14,#N/A,B22*C22) -> 1416.84 | G22: =IF(A22<USER_INPUT!$D$17,#N/A,(USER_INPUT!$D$16*(SQRT(32.2))*(2/3)*((A22-USER_INPUT!$D$17)^(3/2)))) ->  | H22: =IF(A22>USER_INPUT!$D$14,#N/A,IF(A22<(USER_INPUT!$D$24/12),0,(0.6*(USER_INPUT!$D$27*(3.14159*(USER_INPUT!$D$28/24)^2))*(SQRT(2*32.2*(A22-(USER_INPUT!$D$24/12)))))+IF(A22<(USER_INPUT!$D$25/12),0,(0.6*(USER_INPUT!D45*(3.14159*(USER_INPUT!$D$28/24)^2))*(SQRT(2*32.2*(A22-(USER_INPUT!$D$25/12)))))+IF(A22<(USER_INPUT!$D$26/12),0,(0.6*(USER_INPUT!$D$27*(3.14159*(USER_INPUT!$D$28/24)^2))*(SQRT(2*32.2*(A22-(USER_INPUT!$D$26/12)))))+IF(A22<(USER_INPUT!$D$22),0,(10.5*(USER_INPUT!$D$23/12)*((A22-USER_INPUT!$D$22)^(3/2)))+IF(A22<USER_INPUT!$D$17,0,(USER_INPUT!$D$16*(SQRT(32.2))*(2/3)*((A22-USER_INPUT!$D$17)^(3/2))))))))) -> 0 | I22: =IF(A22>USER_INPUT!$D$14,#N/A,IF(A22<(USER_INPUT!$D$30/12),0,(0.6*3.14519*((USER_INPUT!$N$14/2/12)^2)*(SQRT(2*32.2*((USER_INPUT!$N$15/12)))))+IF(A22<USER_INPUT!$D$17,0,(USER_INPUT!$D$16*(SQRT(32.2))*(2/3)*((A22-USER_INPUT!$D$17)^(3/2)))))) -> 0.02717455331 | J22: =IF(USER_INPUT!$D$20=REFERENCE!$B$4,'STAGE-STORAGE'!H22,IF(USER_INPUT!$D$20=REFERENCE!$B$5,'STAGE-STORAGE'!I22,IF(USER_INPUT!$D$20=REFERENCE!$B$6,'STAGE-STORAGE'!G22,0))) -> 0.00
A23: 1.90 | B23: =IF(A23>USER_INPUT!$D$14,#N/A,(((A23/USER_INPUT!$D$11)+(A23/USER_INPUT!$D$15)))) -> 64.28 | C23: =IF(A23>USER_INPUT!$D$14,#N/A,((1/4)*(USER_INPUT!$D$8*(A23^2)))+((USER_INPUT!$D$10)*A23)+((1/4)*(USER_INPUT!$D$9*(A23^2)))) -> 24.87 | D23: =IF(A23>USER_INPUT!$D$14,#N/A,B23*C23) -> 1598.49 | G23: =IF(A23<USER_INPUT!$D$17,#N/A,(USER_INPUT!$D$16*(SQRT(32.2))*(2/3)*((A23-USER_INPUT!$D$17)^(3/2)))) ->  | H23: =IF(A23>USER_INPUT!$D$14,#N/A,IF(A23<(USER_INPUT!$D$24/12),0,(0.6*(USER_INPUT!$D$27*(3.14159*(USER_INPUT!$D$28/24)^2))*(SQRT(2*32.2*(A23-(USER_INPUT!$D$24/12)))))+IF(A23<(USER_INPUT!$D$25/12),0,(0.6*(USER_INPUT!D46*(3.14159*(USER_INPUT!$D$28/24)^2))*(SQRT(2*32.2*(A23-(USER_INPUT!$D$25/12)))))+IF(A23<(USER_INPUT!$D$26/12),0,(0.6*(USER_INPUT!$D$27*(3.14159*(USER_INPUT!$D$28/24)^2))*(SQRT(2*32.2*(A23-(USER_INPUT!$D$26/12)))))+IF(A23<(USER_INPUT!$D$22),0,(10.5*(USER_INPUT!$D$23/12)*((A23-USER_INPUT!$D$22)^(3/2)))+IF(A23<USER_INPUT!$D$17,0,(USER_INPUT!$D$16*(SQRT(32.2))*(2/3)*((A23-USER_INPUT!$D$17)^(3/2))))))))) -> 0 | I23: =IF(A23>USER_INPUT!$D$14,#N/A,IF(A23<(USER_INPUT!$D$30/12),0,(0.6*3.14519*((USER_INPUT!$N$14/2/12)^2)*(SQRT(2*32.2*((USER_INPUT!$N$15/12)))))+IF(A23<USER_INPUT!$D$17,0,(USER_INPUT!$D$16*(SQRT(32.2))*(2/3)*((A23-USER_INPUT!$D$17)^(3/2)))))) -> 0.02717455331 | J23: =IF(USER_INPUT!$D$20=REFERENCE!$B$4,'STAGE-STORAGE'!H23,IF(USER_INPUT!$D$20=REFERENCE!$B$5,'STAGE-STORAGE'!I23,IF(USER_INPUT!$D$20=REFERENCE!$B$6,'STAGE-STORAGE'!G23,0))) -> 0.00
A24: 2.00 | B24: =IF(A24>USER_INPUT!$D$14,#N/A,(((A24/USER_INPUT!$D$11)+(A24/USER_INPUT!$D$15)))) -> 67.67 | C24: =IF(A24>USER_INPUT!$D$14,#N/A,((1/4)*(USER_INPUT!$D$8*(A24^2)))+((USER_INPUT!$D$10)*A24)+((1/4)*(USER_INPUT!$D$9*(A24^2)))) -> 26.50 | D24: =IF(A24>USER_INPUT!$D$14,#N/A,B24*C24) -> 1793.17 | G24: =IF(A24<USER_INPUT!$D$17,#N/A,(USER_INPUT!$D$16*(SQRT(32.2))*(2/3)*((A24-USER_INPUT!$D$17)^(3/2)))) ->  | H24: =IF(A24>USER_INPUT!$D$14,#N/A,IF(A24<(USER_INPUT!$D$24/12),0,(0.6*(USER_INPUT!$D$27*(3.14159*(USER_INPUT!$D$28/24)^2))*(SQRT(2*32.2*(A24-(USER_INPUT!$D$24/12)))))+IF(A24<(USER_INPUT!$D$25/12),0,(0.6*(USER_INPUT!D47*(3.14159*(USER_INPUT!$D$28/24)^2))*(SQRT(2*32.2*(A24-(USER_INPUT!$D$25/12)))))+IF(A24<(USER_INPUT!$D$26/12),0,(0.6*(USER_INPUT!$D$27*(3.14159*(USER_INPUT!$D$28/24)^2))*(SQRT(2*32.2*(A24-(USER_INPUT!$D$26/12)))))+IF(A24<(USER_INPUT!$D$22),0,(10.5*(USER_INPUT!$D$23/12)*((A24-USER_INPUT!$D$22)^(3/2)))+IF(A24<USER_INPUT!$D$17,0,(USER_INPUT!$D$16*(SQRT(32.2))*(2/3)*((A24-USER_INPUT!$D$17)^(3/2))))))))) -> 0 | I24: =IF(A24>USER_INPUT!$D$14,#N/A,IF(A24<(USER_INPUT!$D$30/12),0,(0.6*3.14519*((USER_INPUT!$N$14/2/12)^2)*(SQRT(2*32.2*((USER_INPUT!$N$15/12)))))+IF(A24<USER_INPUT!$D$17,0,(USER_INPUT!$D$16*(SQRT(32.2))*(2/3)*((A24-USER_INPUT!$D$17)^(3/2)))))) -> 0.02717455331 | J24: =IF(USER_INPUT!$D$20=REFERENCE!$B$4,'STAGE-STORAGE'!H24,IF(USER_INPUT!$D$20=REFERENCE!$B$5,'STAGE-STORAGE'!I24,IF(USER_INPUT!$D$20=REFERENCE!$B$6,'STAGE-STORAGE'!G24,0))) -> 0.00
A25: 2.10 | B25: =IF(A25>USER_INPUT!$D$14,#N/A,(((A25/USER_INPUT!$D$11)+(A25/USER_INPUT!$D$15)))) -> 71.05 | C25: =IF(A25>USER_INPUT!$D$14,#N/A,((1/4)*(USER_INPUT!$D$8*(A25^2)))+((USER_INPUT!$D$10)*A25)+((1/4)*(USER_INPUT!$D$9*(A25^2)))) -> 28.17 | D25: =IF(A25>USER_INPUT!$D$14,#N/A,B25*C25) -> 2001.21 | G25: =IF(A25<USER_INPUT!$D$17,#N/A,(USER_INPUT!$D$16*(SQRT(32.2))*(2/3)*((A25-USER_INPUT!$D$17)^(3/2)))) ->  | H25: =IF(A25>USER_INPUT!$D$14,#N/A,IF(A25<(USER_INPUT!$D$24/12),0,(0.6*(USER_INPUT!$D$27*(3.14159*(USER_INPUT!$D$28/24)^2))*(SQRT(2*32.2*(A25-(USER_INPUT!$D$24/12)))))+IF(A25<(USER_INPUT!$D$25/12),0,(0.6*(USER_INPUT!D48*(3.14159*(USER_INPUT!$D$28/24)^2))*(SQRT(2*32.2*(A25-(USER_INPUT!$D$25/12)))))+IF(A25<(USER_INPUT!$D$26/12),0,(0.6*(USER_INPUT!$D$27*(3.14159*(USER_INPUT!$D$28/24)^2))*(SQRT(2*32.2*(A25-(USER_INPUT!$D$26/12)))))+IF(A25<(USER_INPUT!$D$22),0,(10.5*(USER_INPUT!$D$23/12)*((A25-USER_INPUT!$D$22)^(3/2)))+IF(A25<USER_INPUT!$D$17,0,(USER_INPUT!$D$16*(SQRT(32.2))*(2/3)*((A25-USER_INPUT!$D$17)^(3/2))))))))) -> 0.03321859026 | I25: =IF(A25>USER_INPUT!$D$14,#N/A,IF(A25<(USER_INPUT!$D$30/12),0,(0.6*3.14519*((USER_INPUT!$N$14/2/12)^2)*(SQRT(2*32.2*((USER_INPUT!$N$15/12)))))+IF(A25<USER_INPUT!$D$17,0,(USER_INPUT!$D$16*(SQRT(32.2))*(2/3)*((A25-USER_INPUT!$D$17)^(3/2)))))) -> 0.02717455331 | J25: =IF(USER_INPUT!$D$20=REFERENCE!$B$4,'STAGE-STORAGE'!H25,IF(USER_INPUT!$D$20=REFERENCE!$B$5,'STAGE-STORAGE'!I25,IF(USER_INPUT!$D$20=REFERENCE!$B$6,'STAGE-STORAGE'!G25,0))) -> 0.03
A26: 2.20 | B26: =IF(A26>USER_INPUT!$D$14,#N/A,(((A26/USER_INPUT!$D$11)+(A26/USER_INPUT!$D$15)))) -> 74.43 | C26: =IF(A26>USER_INPUT!$D$14,#N/A,((1/4)*(USER_INPUT!$D$8*(A26^2)))+((USER_INPUT!$D$10)*A26)+((1/4)*(USER_INPUT!$D$9*(A26^2)))) -> 29.87 | D26: =IF(A26>USER_INPUT!$D$14,#N/A,B26*C26) -> 2222.95 | G26: =IF(A26<USER_INPUT!$D$17,#N/A,(USER_INPUT!$D$16*(SQRT(32.2))*(2/3)*((A26-USER_INPUT!$D$17)^(3/2)))) ->  | H26: =IF(A26>USER_INPUT!$D$14,#N/A,IF(A26<(USER_INPUT!$D$24/12),0,(0.6*(USER_INPUT!$D$27*(3.14159*(USER_INPUT!$D$28/24)^2))*(SQRT(2*32.2*(A26-(USER_INPUT!$D$24/12)))))+IF(A26<(USER_INPUT!$D$25/12),0,(0.6*(USER_INPUT!D49*(3.14159*(USER_INPUT!$D$28/24)^2))*(SQRT(2*32.2*(A26-(USER_INPUT!$D$25/12)))))+IF(A26<(USER_INPUT!$D$26/12),0,(0.6*(USER_INPUT!$D$27*(3.14159*(USER_INPUT!$D$28/24)^2))*(SQRT(2*32.2*(A26-(USER_INPUT!$D$26/12)))))+IF(A26<(USER_INPUT!$D$22),0,(10.5*(USER_INPUT!$D$23/12)*((A26-USER_INPUT!$D$22)^(3/2)))+IF(A26<USER_INPUT!$D$17,0,(USER_INPUT!$D$16*(SQRT(32.2))*(2/3)*((A26-USER_INPUT!$D$17)^(3/2))))))))) -> 0.04697818087 | I26: =IF(A26>USER_INPUT!$D$14,#N/A,IF(A26<(USER_INPUT!$D$30/12),0,(0.6*3.14519*((USER_INPUT!$N$14/2/12)^2)*(SQRT(2*32.2*((USER_INPUT!$N$15/12)))))+IF(A26<USER_INPUT!$D$17,0,(USER_INPUT!$D$16*(SQRT(32.2))*(2/3)*((A26-USER_INPUT!$D$17)^(3/2)))))) -> 0.02717455331 | J26: =IF(USER_INPUT!$D$20=REFERENCE!$B$4,'STAGE-STORAGE'!H26,IF(USER_INPUT!$D$20=REFERENCE!$B$5,'STAGE-STORAGE'!I26,IF(USER_INPUT!$D$20=REFERENCE!$B$6,'STAGE-STORAGE'!G26,0))) -> 0.05
A27: 2.30 | B27: =IF(A27>USER_INPUT!$D$14,#N/A,(((A27/USER_INPUT!$D$11)+(A27/USER_INPUT!$D$15)))) -> 77.82 | C27: =IF(A27>USER_INPUT!$D$14,#N/A,((1/4)*(USER_INPUT!$D$8*(A27^2)))+((USER_INPUT!$D$10)*A27)+((1/4)*(USER_INPUT!$D$9*(A27^2)))) -> 31.60 | D27: =IF(A27>USER_INPUT!$D$14,#N/A,B27*C27) -> 2458.71 | G27: =IF(A27<USER_INPUT!$D$17,#N/A,(USER_INPUT!$D$16*(SQRT(32.2))*(2/3)*((A27-USER_INPUT!$D$17)^(3/2)))) ->  | H27: =IF(A27>USER_INPUT!$D$14,#N/A,IF(A27<(USER_INPUT!$D$24/12),0,(0.6*(USER_INPUT!$D$27*(3.14159*(USER_INPUT!$D$28/24)^2))*(SQRT(2*32.2*(A27-(USER_INPUT!$D$24/12)))))+IF(A27<(USER_INPUT!$D$25/12),0,(0.6*(USER_INPUT!D50*(3.14159*(USER_INPUT!$D$28/24)^2))*(SQRT(2*32.2*(A27-(USER_INPUT!$D$25/12)))))+IF(A27<(USER_INPUT!$D$26/12),0,(0.6*(USER_INPUT!$D$27*(3.14159*(USER_INPUT!$D$28/24)^2))*(SQRT(2*32.2*(A27-(USER_INPUT!$D$26/12)))))+IF(A27<(USER_INPUT!$D$22),0,(10.5*(USER_INPUT!$D$23/12)*((A27-USER_INPUT!$D$22)^(3/2)))+IF(A27<USER_INPUT!$D$17,0,(USER_INPUT!$D$16*(SQRT(32.2))*(2/3)*((A27-USER_INPUT!$D$17)^(3/2))))))))) -> 0.05753628609 | I27: =IF(A27>USER_INPUT!$D$14,#N/A,IF(A27<(USER_INPUT!$D$30/12),0,(0.6*3.14519*((USER_INPUT!$N$14/2/12)^2)*(SQRT(2*32.2*((USER_INPUT!$N$15/12)))))+IF(A27<USER_INPUT!$D$17,0,(USER_INPUT!$D$16*(SQRT(32.2))*(2/3)*((A27-USER_INPUT!$D$17)^(3/2)))))) -> 0.02717455331 | J27: =IF(USER_INPUT!$D$20=REFERENCE!$B$4,'STAGE-STORAGE'!H27,IF(USER_INPUT!$D$20=REFERENCE!$B$5,'STAGE-STORAGE'!I27,IF(USER_INPUT!$D$20=REFERENCE!$B$6,'STAGE-STORAGE'!G27,0))) -> 0.06
A28: 2.40 | B28: =IF(A28>USER_INPUT!$D$14,#N/A,(((A28/USER_INPUT!$D$11)+(A28/USER_INPUT!$D$15)))) -> 81.20 | C28: =IF(A28>USER_INPUT!$D$14,#N/A,((1/4)*(USER_INPUT!$D$8*(A28^2)))+((USER_INPUT!$D$10)*A28)+((1/4)*(USER_INPUT!$D$9*(A28^2)))) -> 33.36 | D28: =IF(A28>USER_INPUT!$D$14,#N/A,B28*C28) -> 2708.83 | G28: =IF(A28<USER_INPUT!$D$17,#N/A,(USER_INPUT!$D$16*(SQRT(32.2))*(2/3)*((A28-USER_INPUT!$D$17)^(3/2)))) ->  | H28: =IF(A28>USER_INPUT!$D$14,#N/A,IF(A28<(USER_INPUT!$D$24/12),0,(0.6*(USER_INPUT!$D$27*(3.14159*(USER_INPUT!$D$28/24)^2))*(SQRT(2*32.2*(A28-(USER_INPUT!$D$24/12)))))+IF(A28<(USER_INPUT!$D$25/12),0,(0.6*(USER_INPUT!D51*(3.14159*(USER_INPUT!$D$28/24)^2))*(SQRT(2*32.2*(A28-(USER_INPUT!$D$25/12)))))+IF(A28<(USER_INPUT!$D$26/12),0,(0.6*(USER_INPUT!$D$27*(3.14159*(USER_INPUT!$D$28/24)^2))*(SQRT(2*32.2*(A28-(USER_INPUT!$D$26/12)))))+IF(A28<(USER_INPUT!$D$22),0,(10.5*(USER_INPUT!$D$23/12)*((A28-USER_INPUT!$D$22)^(3/2)))+IF(A28<USER_INPUT!$D$17,0,(USER_INPUT!$D$16*(SQRT(32.2))*(2/3)*((A28-USER_INPUT!$D$17)^(3/2))))))))) -> 0.0935600459 | I28: =IF(A28>USER_INPUT!$D$14,#N/A,IF(A28<(USER_INPUT!$D$30/12),0,(0.6*3.14519*((USER_INPUT!$N$14/2/12)^2)*(SQRT(2*32.2*((USER_INPUT!$N$15/12)))))+IF(A28<USER_INPUT!$D$17,0,(USER_INPUT!$D$16*(SQRT(32.2))*(2/3)*((A28-USER_INPUT!$D$17)^(3/2)))))) -> 0.02717455331 | J28: =IF(USER_INPUT!$D$20=REFERENCE!$B$4,'STAGE-STORAGE'!H28,IF(USER_INPUT!$D$20=REFERENCE!$B$5,'STAGE-STORAGE'!I28,IF(USER_INPUT!$D$20=REFERENCE!$B$6,'STAGE-STORAGE'!G28,0))) -> 0.09
A29: 2.50 | B29: =IF(A29>USER_INPUT!$D$14,#N/A,(((A29/USER_INPUT!$D$11)+(A29/USER_INPUT!$D$15)))) -> 84.58 | C29: =IF(A29>USER_INPUT!$D$14,#N/A,((1/4)*(USER_INPUT!$D$8*(A29^2)))+((USER_INPUT!$D$10)*A29)+((1/4)*(USER_INPUT!$D$9*(A29^2)))) -> 35.16 | D29: =IF(A29>USER_INPUT!$D$14,#N/A,B29*C29) -> 2973.63 | G29: =IF(A29<USER_INPUT!$D$17,#N/A,(USER_INPUT!$D$16*(SQRT(32.2))*(2/3)*((A29-USER_INPUT!$D$17)^(3/2)))) ->  | H29: =IF(A29>USER_INPUT!$D$14,#N/A,IF(A29<(USER_INPUT!$D$24/12),0,(0.6*(USER_INPUT!$D$27*(3.14159*(USER_INPUT!$D$28/24)^2))*(SQRT(2*32.2*(A29-(USER_INPUT!$D$24/12)))))+IF(A29<(USER_INPUT!$D$25/12),0,(0.6*(USER_INPUT!D52*(3.14159*(USER_INPUT!$D$28/24)^2))*(SQRT(2*32.2*(A29-(USER_INPUT!$D$25/12)))))+IF(A29<(USER_INPUT!$D$26/12),0,(0.6*(USER_INPUT!$D$27*(3.14159*(USER_INPUT!$D$28/24)^2))*(SQRT(2*32.2*(A29-(USER_INPUT!$D$26/12)))))+IF(A29<(USER_INPUT!$D$22),0,(10.5*(USER_INPUT!$D$23/12)*((A29-USER_INPUT!$D$22)^(3/2)))+IF(A29<USER_INPUT!$D$17,0,(USER_INPUT!$D$16*(SQRT(32.2))*(2/3)*((A29-USER_INPUT!$D$17)^(3/2))))))))) -> 0.1171640416 | I29: =IF(A29>USER_INPUT!$D$14,#N/A,IF(A29<(USER_INPUT!$D$30/12),0,(0.6*3.14519*((USER_INPUT!$N$14/2/12)^2)*(SQRT(2*32.2*((USER_INPUT!$N$15/12)))))+IF(A29<USER_INPUT!$D$17,0,(USER_INPUT!$D$16*(SQRT(32.2))*(2/3)*((A29-USER_INPUT!$D$17)^(3/2)))))) -> 0.02717455331 | J29: =IF(USER_INPUT!$D$20=REFERENCE!$B$4,'STAGE-STORAGE'!H29,IF(USER_INPUT!$D$20=REFERENCE!$B$5,'STAGE-STORAGE'!I29,IF(USER_INPUT!$D$20=REFERENCE!$B$6,'STAGE-STORAGE'!G29,0))) -> 0.12
A30: 2.60 | B30: =IF(A30>USER_INPUT!$D$14,#N/A,(((A30/USER_INPUT!$D$11)+(A30/USER_INPUT!$D$15)))) -> 87.97 | C30: =IF(A30>USER_INPUT!$D$14,#N/A,((1/4)*(USER_INPUT!$D$8*(A30^2)))+((USER_INPUT!$D$10)*A30)+((1/4)*(USER_INPUT!$D$9*(A30^2)))) -> 36.99 | D30: =IF(A30>USER_INPUT!$D$14,#N/A,B30*C30) -> 3253.45 | G30: =IF(A30<USER_INPUT!$D$17,#N/A,(USER_INPUT!$D$16*(SQRT(32.2))*(2/3)*((A30-USER_INPUT!$D$17)^(3/2)))) ->  | H30: =IF(A30>USER_INPUT!$D$14,#N/A,IF(A30<(USER_INPUT!$D$24/12),0,(0.6*(USER_INPUT!$D$27*(3.14159*(USER_INPUT!$D$28/24)^2))*(SQRT(2*32.2*(A30-(USER_INPUT!$D$24/12)))))+IF(A30<(USER_INPUT!$D$25/12),0,(0.6*(USER_INPUT!D53*(3.14159*(USER_INPUT!$D$28/24)^2))*(SQRT(2*32.2*(A30-(USER_INPUT!$D$25/12)))))+IF(A30<(USER_INPUT!$D$26/12),0,(0.6*(USER_INPUT!$D$27*(3.14159*(USER_INPUT!$D$28/24)^2))*(SQRT(2*32.2*(A30-(USER_INPUT!$D$26/12)))))+IF(A30<(USER_INPUT!$D$22),0,(10.5*(USER_INPUT!$D$23/12)*((A30-USER_INPUT!$D$22)^(3/2)))+IF(A30<USER_INPUT!$D$17,0,(USER_INPUT!$D$16*(SQRT(32.2))*(2/3)*((A30-USER_INPUT!$D$17)^(3/2))))))))) -> 0.1356143269 | I30: =IF(A30>USER_INPUT!$D$14,#N/A,IF(A30<(USER_INPUT!$D$30/12),0,(0.6*3.14519*((USER_INPUT!$N$14/2/12)^2)*(SQRT(2*32.2*((USER_INPUT!$N$15/12)))))+IF(A30<USER_INPUT!$D$17,0,(USER_INPUT!$D$16*(SQRT(32.2))*(2/3)*((A30-USER_INPUT!$D$17)^(3/2)))))) -> 0.02717455331 | J30: =IF(USER_INPUT!$D$20=REFERENCE!$B$4,'STAGE-STORAGE'!H30,IF(USER_INPUT!$D$20=REFERENCE!$B$5,'STAGE-STORAGE'!I30,IF(USER_INPUT!$D$20=REFERENCE!$B$6,'STAGE-STORAGE'!G30,0))) -> 0.14
A31: 2.70 | B31: =IF(A31>USER_INPUT!$D$14,#N/A,(((A31/USER_INPUT!$D$11)+(A31/USER_INPUT!$D$15)))) -> 91.35 | C31: =IF(A31>USER_INPUT!$D$14,#N/A,((1/4)*(USER_INPUT!$D$8*(A31^2)))+((USER_INPUT!$D$10)*A31)+((1/4)*(USER_INPUT!$D$9*(A31^2)))) -> 38.85 | D31: =IF(A31>USER_INPUT!$D$14,#N/A,B31*C31) -> 3548.60 | G31: =IF(A31<USER_INPUT!$D$17,#N/A,(USER_INPUT!$D$16*(SQRT(32.2))*(2/3)*((A31-USER_INPUT!$D$17)^(3/2)))) ->  | H31: =IF(A31>USER_INPUT!$D$14,#N/A,IF(A31<(USER_INPUT!$D$24/12),0,(0.6*(USER_INPUT!$D$27*(3.14159*(USER_INPUT!$D$28/24)^2))*(SQRT(2*32.2*(A31-(USER_INPUT!$D$24/12)))))+IF(A31<(USER_INPUT!$D$25/12),0,(0.6*(USER_INPUT!D54*(3.14159*(USER_INPUT!$D$28/24)^2))*(SQRT(2*32.2*(A31-(USER_INPUT!$D$25/12)))))+IF(A31<(USER_INPUT!$D$26/12),0,(0.6*(USER_INPUT!$D$27*(3.14159*(USER_INPUT!$D$28/24)^2))*(SQRT(2*32.2*(A31-(USER_INPUT!$D$26/12)))))+IF(A31<(USER_INPUT!$D$22),0,(10.5*(USER_INPUT!$D$23/12)*((A31-USER_INPUT!$D$22)^(3/2)))+IF(A31<USER_INPUT!$D$17,0,(USER_INPUT!$D$16*(SQRT(32.2))*(2/3)*((A31-USER_INPUT!$D$17)^(3/2))))))))) -> 0.1514968863 | I31: =IF(A31>USER_INPUT!$D$14,#N/A,IF(A31<(USER_INPUT!$D$30/12),0,(0.6*3.14519*((USER_INPUT!$N$14/2/12)^2)*(SQRT(2*32.2*((USER_INPUT!$N$15/12)))))+IF(A31<USER_INPUT!$D$17,0,(USER_INPUT!$D$16*(SQRT(32.2))*(2/3)*((A31-USER_INPUT!$D$17)^(3/2)))))) -> 0.02717455331 | J31: =IF(USER_INPUT!$D$20=REFERENCE!$B$4,'STAGE-STORAGE'!H31,IF(USER_INPUT!$D$20=REFERENCE!$B$5,'STAGE-STORAGE'!I31,IF(USER_INPUT!$D$20=REFERENCE!$B$6,'STAGE-STORAGE'!G31,0))) -> 0.15
A32: 2.80 | B32: =IF(A32>USER_INPUT!$D$14,#N/A,(((A32/USER_INPUT!$D$11)+(A32/USER_INPUT!$D$15)))) -> 94.73 | C32: =IF(A32>USER_INPUT!$D$14,#N/A,((1/4)*(USER_INPUT!$D$8*(A32^2)))+((USER_INPUT!$D$10)*A32)+((1/4)*(USER_INPUT!$D$9*(A32^2)))) -> 40.74 | D32: =IF(A32>USER_INPUT!$D$14,#N/A,B32*C32) -> 3859.44 | G32: =IF(A32<USER_INPUT!$D$17,#N/A,(USER_INPUT!$D$16*(SQRT(32.2))*(2/3)*((A32-USER_INPUT!$D$17)^(3/2)))) ->  | H32: =IF(A32>USER_INPUT!$D$14,#N/A,IF(A32<(USER_INPUT!$D$24/12),0,(0.6*(USER_INPUT!$D$27*(3.14159*(USER_INPUT!$D$28/24)^2))*(SQRT(2*32.2*(A32-(USER_INPUT!$D$24/12)))))+IF(A32<(USER_INPUT!$D$25/12),0,(0.6*(USER_INPUT!D55*(3.14159*(USER_INPUT!$D$28/24)^2))*(SQRT(2*32.2*(A32-(USER_INPUT!$D$25/12)))))+IF(A32<(USER_INPUT!$D$26/12),0,(0.6*(USER_INPUT!$D$27*(3.14159*(USER_INPUT!$D$28/24)^2))*(SQRT(2*32.2*(A32-(USER_INPUT!$D$26/12)))))+IF(A32<(USER_INPUT!$D$22),0,(10.5*(USER_INPUT!$D$23/12)*((A32-USER_INPUT!$D$22)^(3/2)))+IF(A32<USER_INPUT!$D$17,0,(USER_INPUT!$D$16*(SQRT(32.2))*(2/3)*((A32-USER_INPUT!$D$17)^(3/2))))))))) -> 0.1657167184 | I32: =IF(A32>USER_INPUT!$D$14,#N/A,IF(A32<(USER_INPUT!$D$30/12),0,(0.6*3.14519*((USER_INPUT!$N$14/2/12)^2)*(SQRT(2*32.2*((USER_INPUT!$N$15/12)))))+IF(A32<USER_INPUT!$D$17,0,(USER_INPUT!$D$16*(SQRT(32.2))*(2/3)*((A32-USER_INPUT!$D$17)^(3/2)))))) -> 0.02717455331 | J32: =IF(USER_INPUT!$D$20=REFERENCE!$B$4,'STAGE-STORAGE'!H32,IF(USER_INPUT!$D$20=REFERENCE!$B$5,'STAGE-STORAGE'!I32,IF(USER_INPUT!$D$20=REFERENCE!$B$6,'STAGE-STORAGE'!G32,0))) -> 0.17
A33: 2.90 | B33: =IF(A33>USER_INPUT!$D$14,#N/A,(((A33/USER_INPUT!$D$11)+(A33/USER_INPUT!$D$15)))) -> 98.12 | C33: =IF(A33>USER_INPUT!$D$14,#N/A,((1/4)*(USER_INPUT!$D$8*(A33^2)))+((USER_INPUT!$D$10)*A33)+((1/4)*(USER_INPUT!$D$9*(A33^2)))) -> 42.67 | D33: =IF(A33>USER_INPUT!$D$14,#N/A,B33*C33) -> 4186.27 | G33: =IF(A33<USER_INPUT!$D$17,#N/A,(USER_INPUT!$D$16*(SQRT(32.2))*(2/3)*((A33-USER_INPUT!$D$17)^(3/2)))) ->  | H33: =IF(A33>USER_INPUT!$D$14,#N/A,IF(A33<(USER_INPUT!$D$24/12),0,(0.6*(USER_INPUT!$D$27*(3.14159*(USER_INPUT!$D$28/24)^2))*(SQRT(2*32.2*(A33-(USER_INPUT!$D$24/12)))))+IF(A33<(USER_INPUT!$D$25/12),0,(0.6*(USER_INPUT!D56*(3.14159*(USER_INPUT!$D$28/24)^2))*(SQRT(2*32.2*(A33-(USER_INPUT!$D$25/12)))))+IF(A33<(USER_INPUT!$D$26/12),0,(0.6*(USER_INPUT!$D$27*(3.14159*(USER_INPUT!$D$28/24)^2))*(SQRT(2*32.2*(A33-(USER_INPUT!$D$26/12)))))+IF(A33<(USER_INPUT!$D$22),0,(10.5*(USER_INPUT!$D$23/12)*((A33-USER_INPUT!$D$22)^(3/2)))+IF(A33<USER_INPUT!$D$17,0,(USER_INPUT!$D$16*(SQRT(32.2))*(2/3)*((A33-USER_INPUT!$D$17)^(3/2))))))))) -> 0.1787318324 | I33: =IF(A33>USER_INPUT!$D$14,#N/A,IF(A33<(USER_INPUT!$D$30/12),0,(0.6*3.14519*((USER_INPUT!$N$14/2/12)^2)*(SQRT(2*32.2*((USER_INPUT!$N$15/12)))))+IF(A33<USER_INPUT!$D$17,0,(USER_INPUT!$D$16*(SQRT(32.2))*(2/3)*((A33-USER_INPUT!$D$17)^(3/2)))))) -> 0.02717455331 | J33: =IF(USER_INPUT!$D$20=REFERENCE!$B$4,'STAGE-STORAGE'!H33,IF(USER_INPUT!$D$20=REFERENCE!$B$5,'STAGE-STORAGE'!I33,IF(USER_INPUT!$D$20=REFERENCE!$B$6,'STAGE-STORAGE'!G33,0))) -> 0.18
A34: 3.00 | B34: =IF(A34>USER_INPUT!$D$14,#N/A,(((A34/USER_INPUT!$D$11)+(A34/USER_INPUT!$D$15)))) -> 101.50 | C34: =IF(A34>USER_INPUT!$D$14,#N/A,((1/4)*(USER_INPUT!$D$8*(A34^2)))+((USER_INPUT!$D$10)*A34)+((1/4)*(USER_INPUT!$D$9*(A34^2)))) -> 44.63 | D34: =IF(A34>USER_INPUT!$D$14,#N/A,B34*C34) -> 4529.44 | G34: =IF(A34<USER_INPUT!$D$17,#N/A,(USER_INPUT!$D$16*(SQRT(32.2))*(2/3)*((A34-USER_INPUT!$D$17)^(3/2)))) ->  | H34: =IF(A34>USER_INPUT!$D$14,#N/A,IF(A34<(USER_INPUT!$D$24/12),0,(0.6*(USER_INPUT!$D$27*(3.14159*(USER_INPUT!$D$28/24)^2))*(SQRT(2*32.2*(A34-(USER_INPUT!$D$24/12)))))+IF(A34<(USER_INPUT!$D$25/12),0,(0.6*(USER_INPUT!D57*(3.14159*(USER_INPUT!$D$28/24)^2))*(SQRT(2*32.2*(A34-(USER_INPUT!$D$25/12)))))+IF(A34<(USER_INPUT!$D$26/12),0,(0.6*(USER_INPUT!$D$27*(3.14159*(USER_INPUT!$D$28/24)^2))*(SQRT(2*32.2*(A34-(USER_INPUT!$D$26/12)))))+IF(A34<(USER_INPUT!$D$22),0,(10.5*(USER_INPUT!$D$23/12)*((A34-USER_INPUT!$D$22)^(3/2)))+IF(A34<USER_INPUT!$D$17,0,(USER_INPUT!$D$16*(SQRT(32.2))*(2/3)*((A34-USER_INPUT!$D$17)^(3/2))))))))) -> 0.1908164371 | I34: =IF(A34>USER_INPUT!$D$14,#N/A,IF(A34<(USER_INPUT!$D$30/12),0,(0.6*3.14519*((USER_INPUT!$N$14/2/12)^2)*(SQRT(2*32.2*((USER_INPUT!$N$15/12)))))+IF(A34<USER_INPUT!$D$17,0,(USER_INPUT!$D$16*(SQRT(32.2))*(2/3)*((A34-USER_INPUT!$D$17)^(3/2)))))) -> 0.02717455331 | J34: =IF(USER_INPUT!$D$20=REFERENCE!$B$4,'STAGE-STORAGE'!H34,IF(USER_INPUT!$D$20=REFERENCE!$B$5,'STAGE-STORAGE'!I34,IF(USER_INPUT!$D$20=REFERENCE!$B$6,'STAGE-STORAGE'!G34,0))) -> 0.19
A35: 3.10 | B35: =IF(A35>USER_INPUT!$D$14,#N/A,(((A35/USER_INPUT!$D$11)+(A35/USER_INPUT!$D$15)))) -> 104.88 | C35: =IF(A35>USER_INPUT!$D$14,#N/A,((1/4)*(USER_INPUT!$D$8*(A35^2)))+((USER_INPUT!$D$10)*A35)+((1/4)*(USER_INPUT!$D$9*(A35^2)))) -> 46.62 | D35: =IF(A35>USER_INPUT!$D$14,#N/A,B35*C35) -> 4889.27 | G35: =IF(A35<USER_INPUT!$D$17,#N/A,(USER_INPUT!$D$16*(SQRT(32.2))*(2/3)*((A35-USER_INPUT!$D$17)^(3/2)))) ->  | H35: =IF(A35>USER_INPUT!$D$14,#N/A,IF(A35<(USER_INPUT!$D$24/12),0,(0.6*(USER_INPUT!$D$27*(3.14159*(USER_INPUT!$D$28/24)^2))*(SQRT(2*32.2*(A35-(USER_INPUT!$D$24/12)))))+IF(A35<(USER_INPUT!$D$25/12),0,(0.6*(USER_INPUT!D58*(3.14159*(USER_INPUT!$D$28/24)^2))*(SQRT(2*32.2*(A35-(USER_INPUT!$D$25/12)))))+IF(A35<(USER_INPUT!$D$26/12),0,(0.6*(USER_INPUT!$D$27*(3.14159*(USER_INPUT!$D$28/24)^2))*(SQRT(2*32.2*(A35-(USER_INPUT!$D$26/12)))))+IF(A35<(USER_INPUT!$D$22),0,(10.5*(USER_INPUT!$D$23/12)*((A35-USER_INPUT!$D$22)^(3/2)))+IF(A35<USER_INPUT!$D$17,0,(USER_INPUT!$D$16*(SQRT(32.2))*(2/3)*((A35-USER_INPUT!$D$17)^(3/2))))))))) -> 0.5341908658 | I35: =IF(A35>USER_INPUT!$D$14,#N/A,IF(A35<(USER_INPUT!$D$30/12),0,(0.6*3.14519*((USER_INPUT!$N$14/2/12)^2)*(SQRT(2*32.2*((USER_INPUT!$N$15/12)))))+IF(A35<USER_INPUT!$D$17,0,(USER_INPUT!$D$16*(SQRT(32.2))*(2/3)*((A35-USER_INPUT!$D$17)^(3/2)))))) -> 0.02717455331 | J35: =IF(USER_INPUT!$D$20=REFERENCE!$B$4,'STAGE-STORAGE'!H35,IF(USER_INPUT!$D$20=REFERENCE!$B$5,'STAGE-STORAGE'!I35,IF(USER_INPUT!$D$20=REFERENCE!$B$6,'STAGE-STORAGE'!G35,0))) -> 0.53
A36: 3.20 | B36: =IF(A36>USER_INPUT!$D$14,#N/A,(((A36/USER_INPUT!$D$11)+(A36/USER_INPUT!$D$15)))) -> 108.27 | C36: =IF(A36>USER_INPUT!$D$14,#N/A,((1/4)*(USER_INPUT!$D$8*(A36^2)))+((USER_INPUT!$D$10)*A36)+((1/4)*(USER_INPUT!$D$9*(A36^2)))) -> 48.64 | D36: =IF(A36>USER_INPUT!$D$14,#N/A,B36*C36) -> 5266.09 | G36: =IF(A36<USER_INPUT!$D$17,#N/A,(USER_INPUT!$D$16*(SQRT(32.2))*(2/3)*((A36-USER_INPUT!$D$17)^(3/2)))) ->  | H36: =IF(A36>USER_INPUT!$D$14,#N/A,IF(A36<(USER_INPUT!$D$24/12),0,(0.6*(USER_INPUT!$D$27*(3.14159*(USER_INPUT!$D$28/24)^2))*(SQRT(2*32.2*(A36-(USER_INPUT!$D$24/12)))))+IF(A36<(USER_INPUT!$D$25/12),0,(0.6*(USER_INPUT!D59*(3.14159*(USER_INPUT!$D$28/24)^2))*(SQRT(2*32.2*(A36-(USER_INPUT!$D$25/12)))))+IF(A36<(USER_INPUT!$D$26/12),0,(0.6*(USER_INPUT!$D$27*(3.14159*(USER_INPUT!$D$28/24)^2))*(SQRT(2*32.2*(A36-(USER_INPUT!$D$26/12)))))+IF(A36<(USER_INPUT!$D$22),0,(10.5*(USER_INPUT!$D$23/12)*((A36-USER_INPUT!$D$22)^(3/2)))+IF(A36<USER_INPUT!$D$17,0,(USER_INPUT!$D$16*(SQRT(32.2))*(2/3)*((A36-USER_INPUT!$D$17)^(3/2))))))))) -> 1.152014005 | I36: =IF(A36>USER_INPUT!$D$14,#N/A,IF(A36<(USER_INPUT!$D$30/12),0,(0.6*3.14519*((USER_INPUT!$N$14/2/12)^2)*(SQRT(2*32.2*((USER_INPUT!$N$15/12)))))+IF(A36<USER_INPUT!$D$17,0,(USER_INPUT!$D$16*(SQRT(32.2))*(2/3)*((A36-USER_INPUT!$D$17)^(3/2)))))) -> 0.02717455331 | J36: =IF(USER_INPUT!$D$20=REFERENCE!$B$4,'STAGE-STORAGE'!H36,IF(USER_INPUT!$D$20=REFERENCE!$B$5,'STAGE-STORAGE'!I36,IF(USER_INPUT!$D$20=REFERENCE!$B$6,'STAGE-STORAGE'!G36,0))) -> 1.15
A37: 3.30 | B37: =IF(A37>USER_INPUT!$D$14,#N/A,(((A37/USER_INPUT!$D$11)+(A37/USER_INPUT!$D$15)))) -> 111.65 | C37: =IF(A37>USER_INPUT!$D$14,#N/A,((1/4)*(USER_INPUT!$D$8*(A37^2)))+((USER_INPUT!$D$10)*A37)+((1/4)*(USER_INPUT!$D$9*(A37^2)))) -> 50.70 | D37: =IF(A37>USER_INPUT!$D$14,#N/A,B37*C37) -> 5660.24 | G37: =IF(A37<USER_INPUT!$D$17,#N/A,(USER_INPUT!$D$16*(SQRT(32.2))*(2/3)*((A37-USER_INPUT!$D$17)^(3/2)))) ->  | H37: =IF(A37>USER_INPUT!$D$14,#N/A,IF(A37<(USER_INPUT!$D$24/12),0,(0.6*(USER_INPUT!$D$27*(3.14159*(USER_INPUT!$D$28/24)^2))*(SQRT(2*32.2*(A37-(USER_INPUT!$D$24/12)))))+IF(A37<(USER_INPUT!$D$25/12),0,(0.6*(USER_INPUT!D60*(3.14159*(USER_INPUT!$D$28/24)^2))*(SQRT(2*32.2*(A37-(USER_INPUT!$D$25/12)))))+IF(A37<(USER_INPUT!$D$26/12),0,(0.6*(USER_INPUT!$D$27*(3.14159*(USER_INPUT!$D$28/24)^2))*(SQRT(2*32.2*(A37-(USER_INPUT!$D$26/12)))))+IF(A37<(USER_INPUT!$D$22),0,(10.5*(USER_INPUT!$D$23/12)*((A37-USER_INPUT!$D$22)^(3/2)))+IF(A37<USER_INPUT!$D$17,0,(USER_INPUT!$D$16*(SQRT(32.2))*(2/3)*((A37-USER_INPUT!$D$17)^(3/2))))))))) -> 1.948378181 | I37: =IF(A37>USER_INPUT!$D$14,#N/A,IF(A37<(USER_INPUT!$D$30/12),0,(0.6*3.14519*((USER_INPUT!$N$14/2/12)^2)*(SQRT(2*32.2*((USER_INPUT!$N$15/12)))))+IF(A37<USER_INPUT!$D$17,0,(USER_INPUT!$D$16*(SQRT(32.2))*(2/3)*((A37-USER_INPUT!$D$17)^(3/2)))))) -> 0.02717455331 | J37: =IF(USER_INPUT!$D$20=REFERENCE!$B$4,'STAGE-STORAGE'!H37,IF(USER_INPUT!$D$20=REFERENCE!$B$5,'STAGE-STORAGE'!I37,IF(USER_INPUT!$D$20=REFERENCE!$B$6,'STAGE-STORAGE'!G37,0))) -> 1.95
A38: 3.40 | B38: =IF(A38>USER_INPUT!$D$14,#N/A,(((A38/USER_INPUT!$D$11)+(A38/USER_INPUT!$D$15)))) -> 115.03 | C38: =IF(A38>USER_INPUT!$D$14,#N/A,((1/4)*(USER_INPUT!$D$8*(A38^2)))+((USER_INPUT!$D$10)*A38)+((1/4)*(USER_INPUT!$D$9*(A38^2)))) -> 52.79 | D38: =IF(A38>USER_INPUT!$D$14,#N/A,B38*C38) -> 6072.03 | G38: =IF(A38<USER_INPUT!$D$17,#N/A,(USER_INPUT!$D$16*(SQRT(32.2))*(2/3)*((A38-USER_INPUT!$D$17)^(3/2)))) ->  | H38: =IF(A38>USER_INPUT!$D$14,#N/A,IF(A38<(USER_INPUT!$D$24/12),0,(0.6*(USER_INPUT!$D$27*(3.14159*(USER_INPUT!$D$28/24)^2))*(SQRT(2*32.2*(A38-(USER_INPUT!$D$24/12)))))+IF(A38<(USER_INPUT!$D$25/12),0,(0.6*(USER_INPUT!D61*(3.14159*(USER_INPUT!$D$28/24)^2))*(SQRT(2*32.2*(A38-(USER_INPUT!$D$25/12)))))+IF(A38<(USER_INPUT!$D$26/12),0,(0.6*(USER_INPUT!$D$27*(3.14159*(USER_INPUT!$D$28/24)^2))*(SQRT(2*32.2*(A38-(USER_INPUT!$D$26/12)))))+IF(A38<(USER_INPUT!$D$22),0,(10.5*(USER_INPUT!$D$23/12)*((A38-USER_INPUT!$D$22)^(3/2)))+IF(A38<USER_INPUT!$D$17,0,(USER_INPUT!$D$16*(SQRT(32.2))*(2/3)*((A38-USER_INPUT!$D$17)^(3/2))))))))) -> 2.88909728 | I38: =IF(A38>USER_INPUT!$D$14,#N/A,IF(A38<(USER_INPUT!$D$30/12),0,(0.6*3.14519*((USER_INPUT!$N$14/2/12)^2)*(SQRT(2*32.2*((USER_INPUT!$N$15/12)))))+IF(A38<USER_INPUT!$D$17,0,(USER_INPUT!$D$16*(SQRT(32.2))*(2/3)*((A38-USER_INPUT!$D$17)^(3/2)))))) -> 0.02717455331 | J38: =IF(USER_INPUT!$D$20=REFERENCE!$B$4,'STAGE-STORAGE'!H38,IF(USER_INPUT!$D$20=REFERENCE!$B$5,'STAGE-STORAGE'!I38,IF(USER_INPUT!$D$20=REFERENCE!$B$6,'STAGE-STORAGE'!G38,0))) -> 2.89
A39: 3.50 | B39: =IF(A39>USER_INPUT!$D$14,#N/A,(((A39/USER_INPUT!$D$11)+(A39/USER_INPUT!$D$15)))) -> 118.42 | C39: =IF(A39>USER_INPUT!$D$14,#N/A,((1/4)*(USER_INPUT!$D$8*(A39^2)))+((USER_INPUT!$D$10)*A39)+((1/4)*(USER_INPUT!$D$9*(A39^2)))) -> 54.91 | D39: =IF(A39>USER_INPUT!$D$14,#N/A,B39*C39) -> 6501.82 | G39: =IF(A39<USER_INPUT!$D$17,#N/A,(USER_INPUT!$D$16*(SQRT(32.2))*(2/3)*((A39-USER_INPUT!$D$17)^(3/2)))) ->  | H39: =IF(A39>USER_INPUT!$D$14,#N/A,IF(A39<(USER_INPUT!$D$24/12),0,(0.6*(USER_INPUT!$D$27*(3.14159*(USER_INPUT!$D$28/24)^2))*(SQRT(2*32.2*(A39-(USER_INPUT!$D$24/12)))))+IF(A39<(USER_INPUT!$D$25/12),0,(0.6*(USER_INPUT!D62*(3.14159*(USER_INPUT!$D$28/24)^2))*(SQRT(2*32.2*(A39-(USER_INPUT!$D$25/12)))))+IF(A39<(USER_INPUT!$D$26/12),0,(0.6*(USER_INPUT!$D$27*(3.14159*(USER_INPUT!$D$28/24)^2))*(SQRT(2*32.2*(A39-(USER_INPUT!$D$26/12)))))+IF(A39<(USER_INPUT!$D$22),0,(10.5*(USER_INPUT!$D$23/12)*((A39-USER_INPUT!$D$22)^(3/2)))+IF(A39<USER_INPUT!$D$17,0,(USER_INPUT!$D$16*(SQRT(32.2))*(2/3)*((A39-USER_INPUT!$D$17)^(3/2))))))))) -> 3.954428734 | I39: =IF(A39>USER_INPUT!$D$14,#N/A,IF(A39<(USER_INPUT!$D$30/12),0,(0.6*3.14519*((USER_INPUT!$N$14/2/12)^2)*(SQRT(2*32.2*((USER_INPUT!$N$15/12)))))+IF(A39<USER_INPUT!$D$17,0,(USER_INPUT!$D$16*(SQRT(32.2))*(2/3)*((A39-USER_INPUT!$D$17)^(3/2)))))) -> 0.02717455331 | J39: =IF(USER_INPUT!$D$20=REFERENCE!$B$4,'STAGE-STORAGE'!H39,IF(USER_INPUT!$D$20=REFERENCE!$B$5,'STAGE-STORAGE'!I39,IF(USER_INPUT!$D$20=REFERENCE!$B$6,'STAGE-STORAGE'!G39,0))) -> 3.95
A40: 3.60 | B40: =IF(A40>USER_INPUT!$D$14,#N/A,(((A40/USER_INPUT!$D$11)+(A40/USER_INPUT!$D$15)))) -> 121.80 | C40: =IF(A40>USER_INPUT!$D$14,#N/A,((1/4)*(USER_INPUT!$D$8*(A40^2)))+((USER_INPUT!$D$10)*A40)+((1/4)*(USER_INPUT!$D$9*(A40^2)))) -> 57.06 | D40: =IF(A40>USER_INPUT!$D$14,#N/A,B40*C40) -> 6949.91 | G40: =IF(A40<USER_INPUT!$D$17,#N/A,(USER_INPUT!$D$16*(SQRT(32.2))*(2/3)*((A40-USER_INPUT!$D$17)^(3/2)))) ->  | H40: =IF(A40>USER_INPUT!$D$14,#N/A,IF(A40<(USER_INPUT!$D$24/12),0,(0.6*(USER_INPUT!$D$27*(3.14159*(USER_INPUT!$D$28/24)^2))*(SQRT(2*32.2*(A40-(USER_INPUT!$D$24/12)))))+IF(A40<(USER_INPUT!$D$25/12),0,(0.6*(USER_INPUT!D63*(3.14159*(USER_INPUT!$D$28/24)^2))*(SQRT(2*32.2*(A40-(USER_INPUT!$D$25/12)))))+IF(A40<(USER_INPUT!$D$26/12),0,(0.6*(USER_INPUT!$D$27*(3.14159*(USER_INPUT!$D$28/24)^2))*(SQRT(2*32.2*(A40-(USER_INPUT!$D$26/12)))))+IF(A40<(USER_INPUT!$D$22),0,(10.5*(USER_INPUT!$D$23/12)*((A40-USER_INPUT!$D$22)^(3/2)))+IF(A40<USER_INPUT!$D$17,0,(USER_INPUT!$D$16*(SQRT(32.2))*(2/3)*((A40-USER_INPUT!$D$17)^(3/2))))))))) -> 5.131059206 | I40: =IF(A40>USER_INPUT!$D$14,#N/A,IF(A40<(USER_INPUT!$D$30/12),0,(0.6*3.14519*((USER_INPUT!$N$14/2/12)^2)*(SQRT(2*32.2*((USER_INPUT!$N$15/12)))))+IF(A40<USER_INPUT!$D$17,0,(USER_INPUT!$D$16*(SQRT(32.2))*(2/3)*((A40-USER_INPUT!$D$17)^(3/2)))))) -> 0.02717455331 | J40: =IF(USER_INPUT!$D$20=REFERENCE!$B$4,'STAGE-STORAGE'!H40,IF(USER_INPUT!$D$20=REFERENCE!$B$5,'STAGE-STORAGE'!I40,IF(USER_INPUT!$D$20=REFERENCE!$B$6,'STAGE-STORAGE'!G40,0))) -> 5.13
A41: 3.70 | B41: =IF(A41>USER_INPUT!$D$14,#N/A,(((A41/USER_INPUT!$D$11)+(A41/USER_INPUT!$D$15)))) -> 125.18 | C41: =IF(A41>USER_INPUT!$D$14,#N/A,((1/4)*(USER_INPUT!$D$8*(A41^2)))+((USER_INPUT!$D$10)*A41)+((1/4)*(USER_INPUT!$D$9*(A41^2)))) -> 59.25 | D41: =IF(A41>USER_INPUT!$D$14,#N/A,B41*C41) -> 7416.64 | G41: =IF(A41<USER_INPUT!$D$17,#N/A,(USER_INPUT!$D$16*(SQRT(32.2))*(2/3)*((A41-USER_INPUT!$D$17)^(3/2)))) ->  | H41: =IF(A41>USER_INPUT!$D$14,#N/A,IF(A41<(USER_INPUT!$D$24/12),0,(0.6*(USER_INPUT!$D$27*(3.14159*(USER_INPUT!$D$28/24)^2))*(SQRT(2*32.2*(A41-(USER_INPUT!$D$24/12)))))+IF(A41<(USER_INPUT!$D$25/12),0,(0.6*(USER_INPUT!D64*(3.14159*(USER_INPUT!$D$28/24)^2))*(SQRT(2*32.2*(A41-(USER_INPUT!$D$25/12)))))+IF(A41<(USER_INPUT!$D$26/12),0,(0.6*(USER_INPUT!$D$27*(3.14159*(USER_INPUT!$D$28/24)^2))*(SQRT(2*32.2*(A41-(USER_INPUT!$D$26/12)))))+IF(A41<(USER_INPUT!$D$22),0,(10.5*(USER_INPUT!$D$23/12)*((A41-USER_INPUT!$D$22)^(3/2)))+IF(A41<USER_INPUT!$D$17,0,(USER_INPUT!$D$16*(SQRT(32.2))*(2/3)*((A41-USER_INPUT!$D$17)^(3/2))))))))) -> 6.409218947 | I41: =IF(A41>USER_INPUT!$D$14,#N/A,IF(A41<(USER_INPUT!$D$30/12),0,(0.6*3.14519*((USER_INPUT!$N$14/2/12)^2)*(SQRT(2*32.2*((USER_INPUT!$N$15/12)))))+IF(A41<USER_INPUT!$D$17,0,(USER_INPUT!$D$16*(SQRT(32.2))*(2/3)*((A41-USER_INPUT!$D$17)^(3/2)))))) -> 0.02717455331 | J41: =IF(USER_INPUT!$D$20=REFERENCE!$B$4,'STAGE-STORAGE'!H41,IF(USER_INPUT!$D$20=REFERENCE!$B$5,'STAGE-STORAGE'!I41,IF(USER_INPUT!$D$20=REFERENCE!$B$6,'STAGE-STORAGE'!G41,0))) -> 6.41
A42: 3.80 | B42: =IF(A42>USER_INPUT!$D$14,#N/A,(((A42/USER_INPUT!$D$11)+(A42/USER_INPUT!$D$15)))) -> 128.57 | C42: =IF(A42>USER_INPUT!$D$14,#N/A,((1/4)*(USER_INPUT!$D$8*(A42^2)))+((USER_INPUT!$D$10)*A42)+((1/4)*(USER_INPUT!$D$9*(A42^2)))) -> 61.47 | D42: =IF(A42>USER_INPUT!$D$14,#N/A,B42*C42) -> 7902.35 | G42: =IF(A42<USER_INPUT!$D$17,#N/A,(USER_INPUT!$D$16*(SQRT(32.2))*(2/3)*((A42-USER_INPUT!$D$17)^(3/2)))) ->  | H42: =IF(A42>USER_INPUT!$D$14,#N/A,IF(A42<(USER_INPUT!$D$24/12),0,(0.6*(USER_INPUT!$D$27*(3.14159*(USER_INPUT!$D$28/24)^2))*(SQRT(2*32.2*(A42-(USER_INPUT!$D$24/12)))))+IF(A42<(USER_INPUT!$D$25/12),0,(0.6*(USER_INPUT!D65*(3.14159*(USER_INPUT!$D$28/24)^2))*(SQRT(2*32.2*(A42-(USER_INPUT!$D$25/12)))))+IF(A42<(USER_INPUT!$D$26/12),0,(0.6*(USER_INPUT!$D$27*(3.14159*(USER_INPUT!$D$28/24)^2))*(SQRT(2*32.2*(A42-(USER_INPUT!$D$26/12)))))+IF(A42<(USER_INPUT!$D$22),0,(10.5*(USER_INPUT!$D$23/12)*((A42-USER_INPUT!$D$22)^(3/2)))+IF(A42<USER_INPUT!$D$17,0,(USER_INPUT!$D$16*(SQRT(32.2))*(2/3)*((A42-USER_INPUT!$D$17)^(3/2))))))))) -> 7.781340462 | I42: =IF(A42>USER_INPUT!$D$14,#N/A,IF(A42<(USER_INPUT!$D$30/12),0,(0.6*3.14519*((USER_INPUT!$N$14/2/12)^2)*(SQRT(2*32.2*((USER_INPUT!$N$15/12)))))+IF(A42<USER_INPUT!$D$17,0,(USER_INPUT!$D$16*(SQRT(32.2))*(2/3)*((A42-USER_INPUT!$D$17)^(3/2)))))) -> 0.02717455331 | J42: =IF(USER_INPUT!$D$20=REFERENCE!$B$4,'STAGE-STORAGE'!H42,IF(USER_INPUT!$D$20=REFERENCE!$B$5,'STAGE-STORAGE'!I42,IF(USER_INPUT!$D$20=REFERENCE!$B$6,'STAGE-STORAGE'!G42,0))) -> 7.78
A43: 3.90 | B43: =IF(A43>USER_INPUT!$D$14,#N/A,(((A43/USER_INPUT!$D$11)+(A43/USER_INPUT!$D$15)))) -> 131.95 | C43: =IF(A43>USER_INPUT!$D$14,#N/A,((1/4)*(USER_INPUT!$D$8*(A43^2)))+((USER_INPUT!$D$10)*A43)+((1/4)*(USER_INPUT!$D$9*(A43^2)))) -> 63.72 | D43: =IF(A43>USER_INPUT!$D$14,#N/A,B43*C43) -> 8407.36 | G43: =IF(A43<USER_INPUT!$D$17,#N/A,(USER_INPUT!$D$16*(SQRT(32.2))*(2/3)*((A43-USER_INPUT!$D$17)^(3/2)))) ->  | H43: =IF(A43>USER_INPUT!$D$14,#N/A,IF(A43<(USER_INPUT!$D$24/12),0,(0.6*(USER_INPUT!$D$27*(3.14159*(USER_INPUT!$D$28/24)^2))*(SQRT(2*32.2*(A43-(USER_INPUT!$D$24/12)))))+IF(A43<(USER_INPUT!$D$25/12),0,(0.6*(USER_INPUT!D66*(3.14159*(USER_INPUT!$D$28/24)^2))*(SQRT(2*32.2*(A43-(USER_INPUT!$D$25/12)))))+IF(A43<(USER_INPUT!$D$26/12),0,(0.6*(USER_INPUT!$D$27*(3.14159*(USER_INPUT!$D$28/24)^2))*(SQRT(2*32.2*(A43-(USER_INPUT!$D$26/12)))))+IF(A43<(USER_INPUT!$D$22),0,(10.5*(USER_INPUT!$D$23/12)*((A43-USER_INPUT!$D$22)^(3/2)))+IF(A43<USER_INPUT!$D$17,0,(USER_INPUT!$D$16*(SQRT(32.2))*(2/3)*((A43-USER_INPUT!$D$17)^(3/2))))))))) -> 9.241336613 | I43: =IF(A43>USER_INPUT!$D$14,#N/A,IF(A43<(USER_INPUT!$D$30/12),0,(0.6*3.14519*((USER_INPUT!$N$14/2/12)^2)*(SQRT(2*32.2*((USER_INPUT!$N$15/12)))))+IF(A43<USER_INPUT!$D$17,0,(USER_INPUT!$D$16*(SQRT(32.2))*(2/3)*((A43-USER_INPUT!$D$17)^(3/2)))))) -> 0.02717455331 | J43: =IF(USER_INPUT!$D$20=REFERENCE!$B$4,'STAGE-STORAGE'!H43,IF(USER_INPUT!$D$20=REFERENCE!$B$5,'STAGE-STORAGE'!I43,IF(USER_INPUT!$D$20=REFERENCE!$B$6,'STAGE-STORAGE'!G43,0))) -> 9.24
A44: 4.00 | B44: =IF(A44>USER_INPUT!$D$14,#N/A,(((A44/USER_INPUT!$D$11)+(A44/USER_INPUT!$D$15)))) -> 135.33 | C44: =IF(A44>USER_INPUT!$D$14,#N/A,((1/4)*(USER_INPUT!$D$8*(A44^2)))+((USER_INPUT!$D$10)*A44)+((1/4)*(USER_INPUT!$D$9*(A44^2)))) -> 66.00 | D44: =IF(A44>USER_INPUT!$D$14,#N/A,B44*C44) -> 8932.00 | G44: =IF(A44<USER_INPUT!$D$17,#N/A,(USER_INPUT!$D$16*(SQRT(32.2))*(2/3)*((A44-USER_INPUT!$D$17)^(3/2)))) -> 0 | H44: =IF(A44>USER_INPUT!$D$14,#N/A,IF(A44<(USER_INPUT!$D$24/12),0,(0.6*(USER_INPUT!$D$27*(3.14159*(USER_INPUT!$D$28/24)^2))*(SQRT(2*32.2*(A44-(USER_INPUT!$D$24/12)))))+IF(A44<(USER_INPUT!$D$25/12),0,(0.6*(USER_INPUT!D67*(3.14159*(USER_INPUT!$D$28/24)^2))*(SQRT(2*32.2*(A44-(USER_INPUT!$D$25/12)))))+IF(A44<(USER_INPUT!$D$26/12),0,(0.6*(USER_INPUT!$D$27*(3.14159*(USER_INPUT!$D$28/24)^2))*(SQRT(2*32.2*(A44-(USER_INPUT!$D$26/12)))))+IF(A44<(USER_INPUT!$D$22),0,(10.5*(USER_INPUT!$D$23/12)*((A44-USER_INPUT!$D$22)^(3/2)))+IF(A44<USER_INPUT!$D$17,0,(USER_INPUT!$D$16*(SQRT(32.2))*(2/3)*((A44-USER_INPUT!$D$17)^(3/2))))))))) -> 10.78417238 | I44: =IF(A44>USER_INPUT!$D$14,#N/A,IF(A44<(USER_INPUT!$D$30/12),0,(0.6*3.14519*((USER_INPUT!$N$14/2/12)^2)*(SQRT(2*32.2*((USER_INPUT!$N$15/12)))))+IF(A44<USER_INPUT!$D$17,0,(USER_INPUT!$D$16*(SQRT(32.2))*(2/3)*((A44-USER_INPUT!$D$17)^(3/2)))))) -> 0.02717455331 | J44: =IF(USER_INPUT!$D$20=REFERENCE!$B$4,'STAGE-STORAGE'!H44,IF(USER_INPUT!$D$20=REFERENCE!$B$5,'STAGE-STORAGE'!I44,IF(USER_INPUT!$D$20=REFERENCE!$B$6,'STAGE-STORAGE'!G44,0))) -> 10.78
A45: 4.10 | B45: =IF(A45>USER_INPUT!$D$14,#N/A,(((A45/USER_INPUT!$D$11)+(A45/USER_INPUT!$D$15)))) -> 138.72 | C45: =IF(A45>USER_INPUT!$D$14,#N/A,((1/4)*(USER_INPUT!$D$8*(A45^2)))+((USER_INPUT!$D$10)*A45)+((1/4)*(USER_INPUT!$D$9*(A45^2)))) -> 68.32 | D45: =IF(A45>USER_INPUT!$D$14,#N/A,B45*C45) -> 9476.60 | G45: =IF(A45<USER_INPUT!$D$17,#N/A,(USER_INPUT!$D$16*(SQRT(32.2))*(2/3)*((A45-USER_INPUT!$D$17)^(3/2)))) -> 0.4785162252 | H45: =IF(A45>USER_INPUT!$D$14,#N/A,IF(A45<(USER_INPUT!$D$24/12),0,(0.6*(USER_INPUT!$D$27*(3.14159*(USER_INPUT!$D$28/24)^2))*(SQRT(2*32.2*(A45-(USER_INPUT!$D$24/12)))))+IF(A45<(USER_INPUT!$D$25/12),0,(0.6*(USER_INPUT!D68*(3.14159*(USER_INPUT!$D$28/24)^2))*(SQRT(2*32.2*(A45-(USER_INPUT!$D$25/12)))))+IF(A45<(USER_INPUT!$D$26/12),0,(0.6*(USER_INPUT!$D$27*(3.14159*(USER_INPUT!$D$28/24)^2))*(SQRT(2*32.2*(A45-(USER_INPUT!$D$26/12)))))+IF(A45<(USER_INPUT!$D$22),0,(10.5*(USER_INPUT!$D$23/12)*((A45-USER_INPUT!$D$22)^(3/2)))+IF(A45<USER_INPUT!$D$17,0,(USER_INPUT!$D$16*(SQRT(32.2))*(2/3)*((A45-USER_INPUT!$D$17)^(3/2))))))))) -> 12.88410862 | I45: =IF(A45>USER_INPUT!$D$14,#N/A,IF(A45<(USER_INPUT!$D$30/12),0,(0.6*3.14519*((USER_INPUT!$N$14/2/12)^2)*(SQRT(2*32.2*((USER_INPUT!$N$15/12)))))+IF(A45<USER_INPUT!$D$17,0,(USER_INPUT!$D$16*(SQRT(32.2))*(2/3)*((A45-USER_INPUT!$D$17)^(3/2)))))) -> 0.5056907785 | J45: =IF(USER_INPUT!$D$20=REFERENCE!$B$4,'STAGE-STORAGE'!H45,IF(USER_INPUT!$D$20=REFERENCE!$B$5,'STAGE-STORAGE'!I45,IF(USER_INPUT!$D$20=REFERENCE!$B$6,'STAGE-STORAGE'!G45,0))) -> 12.88
A46: 4.20 | B46: =IF(A46>USER_INPUT!$D$14,#N/A,(((A46/USER_INPUT!$D$11)+(A46/USER_INPUT!$D$15)))) -> 142.10 | C46: =IF(A46>USER_INPUT!$D$14,#N/A,((1/4)*(USER_INPUT!$D$8*(A46^2)))+((USER_INPUT!$D$10)*A46)+((1/4)*(USER_INPUT!$D$9*(A46^2)))) -> 70.67 | D46: =IF(A46>USER_INPUT!$D$14,#N/A,B46*C46) -> 10041.50 | G46: =IF(A46<USER_INPUT!$D$17,#N/A,(USER_INPUT!$D$16*(SQRT(32.2))*(2/3)*((A46-USER_INPUT!$D$17)^(3/2)))) -> 1.353448271 | H46: =IF(A46>USER_INPUT!$D$14,#N/A,IF(A46<(USER_INPUT!$D$24/12),0,(0.6*(USER_INPUT!$D$27*(3.14159*(USER_INPUT!$D$28/24)^2))*(SQRT(2*32.2*(A46-(USER_INPUT!$D$24/12)))))+IF(A46<(USER_INPUT!$D$25/12),0,(0.6*(USER_INPUT!D69*(3.14159*(USER_INPUT!$D$28/24)^2))*(SQRT(2*32.2*(A46-(USER_INPUT!$D$25/12)))))+IF(A46<(USER_INPUT!$D$26/12),0,(0.6*(USER_INPUT!$D$27*(3.14159*(USER_INPUT!$D$28/24)^2))*(SQRT(2*32.2*(A46-(USER_INPUT!$D$26/12)))))+IF(A46<(USER_INPUT!$D$22),0,(10.5*(USER_INPUT!$D$23/12)*((A46-USER_INPUT!$D$22)^(3/2)))+IF(A46<USER_INPUT!$D$17,0,(USER_INPUT!$D$16*(SQRT(32.2))*(2/3)*((A46-USER_INPUT!$D$17)^(3/2))))))))) -> 15.45538643 | I46: =IF(A46>USER_INPUT!$D$14,#N/A,IF(A46<(USER_INPUT!$D$30/12),0,(0.6*3.14519*((USER_INPUT!$N$14/2/12)^2)*(SQRT(2*32.2*((USER_INPUT!$N$15/12)))))+IF(A46<USER_INPUT!$D$17,0,(USER_INPUT!$D$16*(SQRT(32.2))*(2/3)*((A46-USER_INPUT!$D$17)^(3/2)))))) -> 1.380622824 | J46: =IF(USER_INPUT!$D$20=REFERENCE!$B$4,'STAGE-STORAGE'!H46,IF(USER_INPUT!$D$20=REFERENCE!$B$5,'STAGE-STORAGE'!I46,IF(USER_INPUT!$D$20=REFERENCE!$B$6,'STAGE-STORAGE'!G46,0))) -> 15.46
A47: 4.30 | B47: =IF(A47>USER_INPUT!$D$14,#N/A,(((A47/USER_INPUT!$D$11)+(A47/USER_INPUT!$D$15)))) -> 145.48 | C47: =IF(A47>USER_INPUT!$D$14,#N/A,((1/4)*(USER_INPUT!$D$8*(A47^2)))+((USER_INPUT!$D$10)*A47)+((1/4)*(USER_INPUT!$D$9*(A47^2)))) -> 73.05 | D47: =IF(A47>USER_INPUT!$D$14,#N/A,B47*C47) -> 10627.01 | G47: =IF(A47<USER_INPUT!$D$17,#N/A,(USER_INPUT!$D$16*(SQRT(32.2))*(2/3)*((A47-USER_INPUT!$D$17)^(3/2)))) -> 2.486443243 | H47: =IF(A47>USER_INPUT!$D$14,#N/A,IF(A47<(USER_INPUT!$D$24/12),0,(0.6*(USER_INPUT!$D$27*(3.14159*(USER_INPUT!$D$28/24)^2))*(SQRT(2*32.2*(A47-(USER_INPUT!$D$24/12)))))+IF(A47<(USER_INPUT!$D$25/12),0,(0.6*(USER_INPUT!D70*(3.14159*(USER_INPUT!$D$28/24)^2))*(SQRT(2*32.2*(A47-(USER_INPUT!$D$25/12)))))+IF(A47<(USER_INPUT!$D$26/12),0,(0.6*(USER_INPUT!$D$27*(3.14159*(USER_INPUT!$D$28/24)^2))*(SQRT(2*32.2*(A47-(USER_INPUT!$D$26/12)))))+IF(A47<(USER_INPUT!$D$22),0,(10.5*(USER_INPUT!$D$23/12)*((A47-USER_INPUT!$D$22)^(3/2)))+IF(A47<USER_INPUT!$D$17,0,(USER_INPUT!$D$16*(SQRT(32.2))*(2/3)*((A47-USER_INPUT!$D$17)^(3/2))))))))) -> 18.35646342 | I47: =IF(A47>USER_INPUT!$D$14,#N/A,IF(A47<(USER_INPUT!$D$30/12),0,(0.6*3.14519*((USER_INPUT!$N$14/2/12)^2)*(SQRT(2*32.2*((USER_INPUT!$N$15/12)))))+IF(A47<USER_INPUT!$D$17,0,(USER_INPUT!$D$16*(SQRT(32.2))*(2/3)*((A47-USER_INPUT!$D$17)^(3/2)))))) -> 2.513617796 | J47: =IF(USER_INPUT!$D$20=REFERENCE!$B$4,'STAGE-STORAGE'!H47,IF(USER_INPUT!$D$20=REFERENCE!$B$5,'STAGE-STORAGE'!I47,IF(USER_INPUT!$D$20=REFERENCE!$B$6,'STAGE-STORAGE'!G47,0))) -> 18.36
A48: 4.40 | B48: =IF(A48>USER_INPUT!$D$14,#N/A,(((A48/USER_INPUT!$D$11)+(A48/USER_INPUT!$D$15)))) -> 148.87 | C48: =IF(A48>USER_INPUT!$D$14,#N/A,((1/4)*(USER_INPUT!$D$8*(A48^2)))+((USER_INPUT!$D$10)*A48)+((1/4)*(USER_INPUT!$D$9*(A48^2)))) -> 75.46 | D48: =IF(A48>USER_INPUT!$D$14,#N/A,B48*C48) -> 11233.48 | G48: =IF(A48<USER_INPUT!$D$17,#N/A,(USER_INPUT!$D$16*(SQRT(32.2))*(2/3)*((A48-USER_INPUT!$D$17)^(3/2)))) -> 3.828129802 | H48: =IF(A48>USER_INPUT!$D$14,#N/A,IF(A48<(USER_INPUT!$D$24/12),0,(0.6*(USER_INPUT!$D$27*(3.14159*(USER_INPUT!$D$28/24)^2))*(SQRT(2*32.2*(A48-(USER_INPUT!$D$24/12)))))+IF(A48<(USER_INPUT!$D$25/12),0,(0.6*(USER_INPUT!D71*(3.14159*(USER_INPUT!$D$28/24)^2))*(SQRT(2*32.2*(A48-(USER_INPUT!$D$25/12)))))+IF(A48<(USER_INPUT!$D$26/12),0,(0.6*(USER_INPUT!$D$27*(3.14159*(USER_INPUT!$D$28/24)^2))*(SQRT(2*32.2*(A48-(USER_INPUT!$D$26/12)))))+IF(A48<(USER_INPUT!$D$22),0,(10.5*(USER_INPUT!$D$23/12)*((A48-USER_INPUT!$D$22)^(3/2)))+IF(A48<USER_INPUT!$D$17,0,(USER_INPUT!$D$16*(SQRT(32.2))*(2/3)*((A48-USER_INPUT!$D$17)^(3/2))))))))) -> 21.53515528 | I48: =IF(A48>USER_INPUT!$D$14,#N/A,IF(A48<(USER_INPUT!$D$30/12),0,(0.6*3.14519*((USER_INPUT!$N$14/2/12)^2)*(SQRT(2*32.2*((USER_INPUT!$N$15/12)))))+IF(A48<USER_INPUT!$D$17,0,(USER_INPUT!$D$16*(SQRT(32.2))*(2/3)*((A48-USER_INPUT!$D$17)^(3/2)))))) -> 3.855304355 | J48: =IF(USER_INPUT!$D$20=REFERENCE!$B$4,'STAGE-STORAGE'!H48,IF(USER_INPUT!$D$20=REFERENCE!$B$5,'STAGE-STORAGE'!I48,IF(USER_INPUT!$D$20=REFERENCE!$B$6,'STAGE-STORAGE'!G48,0))) -> 21.54
A49: 4.50 | B49: =IF(A49>USER_INPUT!$D$14,#N/A,(((A49/USER_INPUT!$D$11)+(A49/USER_INPUT!$D$15)))) -> 152.25 | C49: =IF(A49>USER_INPUT!$D$14,#N/A,((1/4)*(USER_INPUT!$D$8*(A49^2)))+((USER_INPUT!$D$10)*A49)+((1/4)*(USER_INPUT!$D$9*(A49^2)))) -> 77.91 | D49: =IF(A49>USER_INPUT!$D$14,#N/A,B49*C49) -> 11861.23 | G49: =IF(A49<USER_INPUT!$D$17,#N/A,(USER_INPUT!$D$16*(SQRT(32.2))*(2/3)*((A49-USER_INPUT!$D$17)^(3/2)))) -> 5.349974039 | H49: =IF(A49>USER_INPUT!$D$14,#N/A,IF(A49<(USER_INPUT!$D$24/12),0,(0.6*(USER_INPUT!$D$27*(3.14159*(USER_INPUT!$D$28/24)^2))*(SQRT(2*32.2*(A49-(USER_INPUT!$D$24/12)))))+IF(A49<(USER_INPUT!$D$25/12),0,(0.6*(USER_INPUT!D72*(3.14159*(USER_INPUT!$D$28/24)^2))*(SQRT(2*32.2*(A49-(USER_INPUT!$D$25/12)))))+IF(A49<(USER_INPUT!$D$26/12),0,(0.6*(USER_INPUT!$D$27*(3.14159*(USER_INPUT!$D$28/24)^2))*(SQRT(2*32.2*(A49-(USER_INPUT!$D$26/12)))))+IF(A49<(USER_INPUT!$D$22),0,(10.5*(USER_INPUT!$D$23/12)*((A49-USER_INPUT!$D$22)^(3/2)))+IF(A49<USER_INPUT!$D$17,0,(USER_INPUT!$D$16*(SQRT(32.2))*(2/3)*((A49-USER_INPUT!$D$17)^(3/2))))))))) -> 24.96042284 | I49: =IF(A49>USER_INPUT!$D$14,#N/A,IF(A49<(USER_INPUT!$D$30/12),0,(0.6*3.14519*((USER_INPUT!$N$14/2/12)^2)*(SQRT(2*32.2*((USER_INPUT!$N$15/12)))))+IF(A49<USER_INPUT!$D$17,0,(USER_INPUT!$D$16*(SQRT(32.2))*(2/3)*((A49-USER_INPUT!$D$17)^(3/2)))))) -> 5.377148593 | J49: =IF(USER_INPUT!$D$20=REFERENCE!$B$4,'STAGE-STORAGE'!H49,IF(USER_INPUT!$D$20=REFERENCE!$B$5,'STAGE-STORAGE'!I49,IF(USER_INPUT!$D$20=REFERENCE!$B$6,'STAGE-STORAGE'!G49,0))) -> 24.96
A50: 4.60 | B50: =IF(A50>USER_INPUT!$D$14,#N/A,(((A50/USER_INPUT!$D$11)+(A50/USER_INPUT!$D$15)))) ->  | C50: =IF(A50>USER_INPUT!$D$14,#N/A,((1/4)*(USER_INPUT!$D$8*(A50^2)))+((USER_INPUT!$D$10)*A50)+((1/4)*(USER_INPUT!$D$9*(A50^2)))) ->  | D50: =IF(A50>USER_INPUT!$D$14,#N/A,B50*C50) ->  | G50: =IF(A50<USER_INPUT!$D$17,#N/A,(USER_INPUT!$D$16*(SQRT(32.2))*(2/3)*((A50-USER_INPUT!$D$17)^(3/2)))) -> 7.032723512 | H50: =IF(A50>USER_INPUT!$D$14,#N/A,IF(A50<(USER_INPUT!$D$24/12),0,(0.6*(USER_INPUT!$D$27*(3.14159*(USER_INPUT!$D$28/24)^2))*(SQRT(2*32.2*(A50-(USER_INPUT!$D$24/12)))))+IF(A50<(USER_INPUT!$D$25/12),0,(0.6*(USER_INPUT!D73*(3.14159*(USER_INPUT!$D$28/24)^2))*(SQRT(2*32.2*(A50-(USER_INPUT!$D$25/12)))))+IF(A50<(USER_INPUT!$D$26/12),0,(0.6*(USER_INPUT!$D$27*(3.14159*(USER_INPUT!$D$28/24)^2))*(SQRT(2*32.2*(A50-(USER_INPUT!$D$26/12)))))+IF(A50<(USER_INPUT!$D$22),0,(10.5*(USER_INPUT!$D$23/12)*((A50-USER_INPUT!$D$22)^(3/2)))+IF(A50<USER_INPUT!$D$17,0,(USER_INPUT!$D$16*(SQRT(32.2))*(2/3)*((A50-USER_INPUT!$D$17)^(3/2))))))))) ->  | I50: =IF(A50>USER_INPUT!$D$14,#N/A,IF(A50<(USER_INPUT!$D$30/12),0,(0.6*3.14519*((USER_INPUT!$N$14/2/12)^2)*(SQRT(2*32.2*((USER_INPUT!$N$15/12)))))+IF(A50<USER_INPUT!$D$17,0,(USER_INPUT!$D$16*(SQRT(32.2))*(2/3)*((A50-USER_INPUT!$D$17)^(3/2)))))) ->  | J50: =IF(USER_INPUT!$D$20=REFERENCE!$B$4,'STAGE-STORAGE'!H50,IF(USER_INPUT!$D$20=REFERENCE!$B$5,'STAGE-STORAGE'!I50,IF(USER_INPUT!$D$20=REFERENCE!$B$6,'STAGE-STORAGE'!G50,#N/A))) -> 
A51: 4.70 | B51: =IF(A51>USER_INPUT!$D$14,#N/A,(((A51/USER_INPUT!$D$11)+(A51/USER_INPUT!$D$15)))) ->  | C51: =IF(A51>USER_INPUT!$D$14,#N/A,((1/4)*(USER_INPUT!$D$8*(A51^2)))+((USER_INPUT!$D$10)*A51)+((1/4)*(USER_INPUT!$D$9*(A51^2)))) ->  | D51: =IF(A51>USER_INPUT!$D$14,#N/A,B51*C51) ->  | G51: =IF(A51<USER_INPUT!$D$17,#N/A,(USER_INPUT!$D$16*(SQRT(32.2))*(2/3)*((A51-USER_INPUT!$D$17)^(3/2)))) -> 8.862244511 | H51: =IF(A51>USER_INPUT!$D$14,#N/A,IF(A51<(USER_INPUT!$D$24/12),0,(0.6*(USER_INPUT!$D$27*(3.14159*(USER_INPUT!$D$28/24)^2))*(SQRT(2*32.2*(A51-(USER_INPUT!$D$24/12)))))+IF(A51<(USER_INPUT!$D$25/12),0,(0.6*(USER_INPUT!D74*(3.14159*(USER_INPUT!$D$28/24)^2))*(SQRT(2*32.2*(A51-(USER_INPUT!$D$25/12)))))+IF(A51<(USER_INPUT!$D$26/12),0,(0.6*(USER_INPUT!$D$27*(3.14159*(USER_INPUT!$D$28/24)^2))*(SQRT(2*32.2*(A51-(USER_INPUT!$D$26/12)))))+IF(A51<(USER_INPUT!$D$22),0,(10.5*(USER_INPUT!$D$23/12)*((A51-USER_INPUT!$D$22)^(3/2)))+IF(A51<USER_INPUT!$D$17,0,(USER_INPUT!$D$16*(SQRT(32.2))*(2/3)*((A51-USER_INPUT!$D$17)^(3/2))))))))) ->  | I51: =IF(A51>USER_INPUT!$D$14,#N/A,IF(A51<(USER_INPUT!$D$30/12),0,(0.6*3.14519*((USER_INPUT!$N$14/2/12)^2)*(SQRT(2*32.2*((USER_INPUT!$N$15/12)))))+IF(A51<USER_INPUT!$D$17,0,(USER_INPUT!$D$16*(SQRT(32.2))*(2/3)*((A51-USER_INPUT!$D$17)^(3/2)))))) ->  | J51: =IF(USER_INPUT!$D$20=REFERENCE!$B$4,'STAGE-STORAGE'!H51,IF(USER_INPUT!$D$20=REFERENCE!$B$5,'STAGE-STORAGE'!I51,IF(USER_INPUT!$D$20=REFERENCE!$B$6,'STAGE-STORAGE'!G51,#N/A))) -> 
A52: 4.80 | B52: =IF(A52>USER_INPUT!$D$14,#N/A,(((A52/USER_INPUT!$D$11)+(A52/USER_INPUT!$D$15)))) ->  | C52: =IF(A52>USER_INPUT!$D$14,#N/A,((1/4)*(USER_INPUT!$D$8*(A52^2)))+((USER_INPUT!$D$10)*A52)+((1/4)*(USER_INPUT!$D$9*(A52^2)))) ->  | D52: =IF(A52>USER_INPUT!$D$14,#N/A,B52*C52) ->  | G52: =IF(A52<USER_INPUT!$D$17,#N/A,(USER_INPUT!$D$16*(SQRT(32.2))*(2/3)*((A52-USER_INPUT!$D$17)^(3/2)))) -> 10.82758617 | H52: =IF(A52>USER_INPUT!$D$14,#N/A,IF(A52<(USER_INPUT!$D$24/12),0,(0.6*(USER_INPUT!$D$27*(3.14159*(USER_INPUT!$D$28/24)^2))*(SQRT(2*32.2*(A52-(USER_INPUT!$D$24/12)))))+IF(A52<(USER_INPUT!$D$25/12),0,(0.6*(USER_INPUT!D75*(3.14159*(USER_INPUT!$D$28/24)^2))*(SQRT(2*32.2*(A52-(USER_INPUT!$D$25/12)))))+IF(A52<(USER_INPUT!$D$26/12),0,(0.6*(USER_INPUT!$D$27*(3.14159*(USER_INPUT!$D$28/24)^2))*(SQRT(2*32.2*(A52-(USER_INPUT!$D$26/12)))))+IF(A52<(USER_INPUT!$D$22),0,(10.5*(USER_INPUT!$D$23/12)*((A52-USER_INPUT!$D$22)^(3/2)))+IF(A52<USER_INPUT!$D$17,0,(USER_INPUT!$D$16*(SQRT(32.2))*(2/3)*((A52-USER_INPUT!$D$17)^(3/2))))))))) ->  | I52: =IF(A52>USER_INPUT!$D$14,#N/A,IF(A52<(USER_INPUT!$D$30/12),0,(0.6*3.14519*((USER_INPUT!$N$14/2/12)^2)*(SQRT(2*32.2*((USER_INPUT!$N$15/12)))))+IF(A52<USER_INPUT!$D$17,0,(USER_INPUT!$D$16*(SQRT(32.2))*(2/3)*((A52-USER_INPUT!$D$17)^(3/2)))))) ->  | J52: =IF(USER_INPUT!$D$20=REFERENCE!$B$4,'STAGE-STORAGE'!H52,IF(USER_INPUT!$D$20=REFERENCE!$B$5,'STAGE-STORAGE'!I52,IF(USER_INPUT!$D$20=REFERENCE!$B$6,'STAGE-STORAGE'!G52,#N/A))) -> 
A53: 4.90 | B53: =IF(A53>USER_INPUT!$D$14,#N/A,(((A53/USER_INPUT!$D$11)+(A53/USER_INPUT!$D$15)))) ->  | C53: =IF(A53>USER_INPUT!$D$14,#N/A,((1/4)*(USER_INPUT!$D$8*(A53^2)))+((USER_INPUT!$D$10)*A53)+((1/4)*(USER_INPUT!$D$9*(A53^2)))) ->  | D53: =IF(A53>USER_INPUT!$D$14,#N/A,B53*C53) ->  | G53: =IF(A53<USER_INPUT!$D$17,#N/A,(USER_INPUT!$D$16*(SQRT(32.2))*(2/3)*((A53-USER_INPUT!$D$17)^(3/2)))) -> 12.91993808 | H53: =IF(A53>USER_INPUT!$D$14,#N/A,IF(A53<(USER_INPUT!$D$24/12),0,(0.6*(USER_INPUT!$D$27*(3.14159*(USER_INPUT!$D$28/24)^2))*(SQRT(2*32.2*(A53-(USER_INPUT!$D$24/12)))))+IF(A53<(USER_INPUT!$D$25/12),0,(0.6*(USER_INPUT!D76*(3.14159*(USER_INPUT!$D$28/24)^2))*(SQRT(2*32.2*(A53-(USER_INPUT!$D$25/12)))))+IF(A53<(USER_INPUT!$D$26/12),0,(0.6*(USER_INPUT!$D$27*(3.14159*(USER_INPUT!$D$28/24)^2))*(SQRT(2*32.2*(A53-(USER_INPUT!$D$26/12)))))+IF(A53<(USER_INPUT!$D$22),0,(10.5*(USER_INPUT!$D$23/12)*((A53-USER_INPUT!$D$22)^(3/2)))+IF(A53<USER_INPUT!$D$17,0,(USER_INPUT!$D$16*(SQRT(32.2))*(2/3)*((A53-USER_INPUT!$D$17)^(3/2))))))))) ->  | I53: =IF(A53>USER_INPUT!$D$14,#N/A,IF(A53<(USER_INPUT!$D$30/12),0,(0.6*3.14519*((USER_INPUT!$N$14/2/12)^2)*(SQRT(2*32.2*((USER_INPUT!$N$15/12)))))+IF(A53<USER_INPUT!$D$17,0,(USER_INPUT!$D$16*(SQRT(32.2))*(2/3)*((A53-USER_INPUT!$D$17)^(3/2)))))) ->  | J53: =IF(USER_INPUT!$D$20=REFERENCE!$B$4,'STAGE-STORAGE'!H53,IF(USER_INPUT!$D$20=REFERENCE!$B$5,'STAGE-STORAGE'!I53,IF(USER_INPUT!$D$20=REFERENCE!$B$6,'STAGE-STORAGE'!G53,#N/A))) -> 
A54: 5.00 | B54: =IF(A54>USER_INPUT!$D$14,#N/A,(((A54/USER_INPUT!$D$11)+(A54/USER_INPUT!$D$15)))) ->  | C54: =IF(A54>USER_INPUT!$D$14,#N/A,((1/4)*(USER_INPUT!$D$8*(A54^2)))+((USER_INPUT!$D$10)*A54)+((1/4)*(USER_INPUT!$D$9*(A54^2)))) ->  | D54: =IF(A54>USER_INPUT!$D$14,#N/A,B54*C54) ->  | G54: =IF(A54<USER_INPUT!$D$17,#N/A,(USER_INPUT!$D$16*(SQRT(32.2))*(2/3)*((A54-USER_INPUT!$D$17)^(3/2)))) -> 15.13201169 | H54: =IF(A54>USER_INPUT!$D$14,#N/A,IF(A54<(USER_INPUT!$D$24/12),0,(0.6*(USER_INPUT!$D$27*(3.14159*(USER_INPUT!$D$28/24)^2))*(SQRT(2*32.2*(A54-(USER_INPUT!$D$24/12)))))+IF(A54<(USER_INPUT!$D$25/12),0,(0.6*(USER_INPUT!D77*(3.14159*(USER_INPUT!$D$28/24)^2))*(SQRT(2*32.2*(A54-(USER_INPUT!$D$25/12)))))+IF(A54<(USER_INPUT!$D$26/12),0,(0.6*(USER_INPUT!$D$27*(3.14159*(USER_INPUT!$D$28/24)^2))*(SQRT(2*32.2*(A54-(USER_INPUT!$D$26/12)))))+IF(A54<(USER_INPUT!$D$22),0,(10.5*(USER_INPUT!$D$23/12)*((A54-USER_INPUT!$D$22)^(3/2)))+IF(A54<USER_INPUT!$D$17,0,(USER_INPUT!$D$16*(SQRT(32.2))*(2/3)*((A54-USER_INPUT!$D$17)^(3/2))))))))) ->  | I54: =IF(A54>USER_INPUT!$D$14,#N/A,IF(A54<(USER_INPUT!$D$30/12),0,(0.6*3.14519*((USER_INPUT!$N$14/2/12)^2)*(SQRT(2*32.2*((USER_INPUT!$N$15/12)))))+IF(A54<USER_INPUT!$D$17,0,(USER_INPUT!$D$16*(SQRT(32.2))*(2/3)*((A54-USER_INPUT!$D$17)^(3/2)))))) ->  | J54: =IF(USER_INPUT!$D$20=REFERENCE!$B$4,'STAGE-STORAGE'!H54,IF(USER_INPUT!$D$20=REFERENCE!$B$5,'STAGE-STORAGE'!I54,IF(USER_INPUT!$D$20=REFERENCE!$B$6,'STAGE-STORAGE'!G54,#N/A))) -> 
G55: Skimmer Dewatering Volume | J55: =VLOOKUP(USER_INPUT!$D$17,'STAGE-STORAGE'!A4:D54,4,FALSE) -> 8932

Sheet SEDIMENTATION
A2: Sedimentation based on Stoke's Law
A3: Category | C3: Sieve No. (mm) | E3: % Finer | F3: ρ (kg/(m3)) | G3: V (m/s) | H3: Settling Distance (ft)
A4: Sand | B4: Coarse | C4: 4 | D4: 4.7500 | E4: =USER_INPUT!H9 -> 100% | F4: 1400.00 | G4: =(VLOOKUP(USER_INPUT!$K$7,REFERENCE!$B$17:$E$23,2,TRUE))*((F4/(VLOOKUP(USER_INPUT!$K$7,REFERENCE!$B$17:$E$23,3,TRUE)))-1)*((D4/1000)^2)/(18*(VLOOKUP(USER_INPUT!$K$7,REFERENCE!$B$17:$E$23,4,TRUE))) -> 4.94E+00 | H4: =(G4*(USER_INPUT!$D$21*24*60*60))*3.28 -> 2,798,759.44
C5: 10 | D5: 2.0000 | E5: =USER_INPUT!H10 -> 96% | F5: 1400.00 | G5: =(VLOOKUP(USER_INPUT!$K$7,REFERENCE!$B$17:$E$23,2,TRUE))*((F5/(VLOOKUP(USER_INPUT!$K$7,REFERENCE!$B$17:$E$23,3,TRUE)))-1)*((D5/1000)^2)/(18*(VLOOKUP(USER_INPUT!$K$7,REFERENCE!$B$17:$E$23,4,TRUE))) -> 8.75E-01 | H5: =(G5*(USER_INPUT!$D$21*24*60*60))*3.28 -> 496,178.96
B6: Med | C6: 20 | D6: 0.8500 | E6: =USER_INPUT!H11 -> 89% | F6: 1400.00 | G6: =(VLOOKUP(USER_INPUT!$K$7,REFERENCE!$B$17:$E$23,2,TRUE))*((F6/(VLOOKUP(USER_INPUT!$K$7,REFERENCE!$B$17:$E$23,3,TRUE)))-1)*((D6/1000)^2)/(18*(VLOOKUP(USER_INPUT!$K$7,REFERENCE!$B$17:$E$23,4,TRUE))) -> 1.58E-01 | H6: =(G6*(USER_INPUT!$D$21*24*60*60))*3.28 -> 89,622.32
C7: 40 | D7: 0.4250 | E7: =USER_INPUT!H12 -> 80% | F7: 1400.00 | G7: =(VLOOKUP(USER_INPUT!$K$7,REFERENCE!$B$17:$E$23,2,TRUE))*((F7/(VLOOKUP(USER_INPUT!$K$7,REFERENCE!$B$17:$E$23,3,TRUE)))-1)*((D7/1000)^2)/(18*(VLOOKUP(USER_INPUT!$K$7,REFERENCE!$B$17:$E$23,4,TRUE))) -> 3.95E-02 | H7: =(G7*(USER_INPUT!$D$21*24*60*60))*3.28 -> 22,405.58
B8: Fine | C8: 60 | D8: 0.2500 | E8: =USER_INPUT!H13 -> 75% | F8: 1400.00 | G8: =(VLOOKUP(USER_INPUT!$K$7,REFERENCE!$B$17:$E$23,2,TRUE))*((F8/(VLOOKUP(USER_INPUT!$K$7,REFERENCE!$B$17:$E$23,3,TRUE)))-1)*((D8/1000)^2)/(18*(VLOOKUP(USER_INPUT!$K$7,REFERENCE!$B$17:$E$23,4,TRUE))) -> 1.37E-02 | H8: =(G8*(USER_INPUT!$D$21*24*60*60))*3.28 -> 7,752.80
C9: 100 | D9: 0.1500 | E9: =USER_INPUT!H14 -> 68% | F9: 1400.00 | G9: =(VLOOKUP(USER_INPUT!$K$7,REFERENCE!$B$17:$E$23,2,TRUE))*((F9/(VLOOKUP(USER_INPUT!$K$7,REFERENCE!$B$17:$E$23,3,TRUE)))-1)*((D9/1000)^2)/(18*(VLOOKUP(USER_INPUT!$K$7,REFERENCE!$B$17:$E$23,4,TRUE))) -> 4.92E-03 | H9: =(G9*(USER_INPUT!$D$21*24*60*60))*3.28 -> 2,791.01
C10: 120 | D10: 0.1250 | E10: =USER_INPUT!H15 -> 61% | F10: 1400.00 | G10: =(VLOOKUP(USER_INPUT!$K$7,REFERENCE!$B$17:$E$23,2,TRUE))*((F10/(VLOOKUP(USER_INPUT!$K$7,REFERENCE!$B$17:$E$23,3,TRUE)))-1)*((D10/1000)^2)/(18*(VLOOKUP(USER_INPUT!$K$7,REFERENCE!$B$17:$E$23,4,TRUE))) -> 3.42E-03 | H10: =(G10*(USER_INPUT!$D$21*24*60*60))*3.28 -> 1,938.20
C11: 200 | D11: 0.0750 | E11: =USER_INPUT!H16 -> 62% | F11: 1400.00 | G11: =(VLOOKUP(USER_INPUT!$K$7,REFERENCE!$B$17:$E$23,2,TRUE))*((F11/(VLOOKUP(USER_INPUT!$K$7,REFERENCE!$B$17:$E$23,3,TRUE)))-1)*((D11/1000)^2)/(18*(VLOOKUP(USER_INPUT!$K$7,REFERENCE!$B$17:$E$23,4,TRUE))) -> 1.23E-03 | H11: =(G11*(USER_INPUT!$D$21*24*60*60))*3.28 -> 697.75
A12: Silt | B12: Coarse | C12: Pan- Hydrometer Analysis | D12: 0.0522 | E12: =USER_INPUT!H17 -> 61% | F12: 1350.00 | G12: =(VLOOKUP(USER_INPUT!$K$7,REFERENCE!$B$17:$E$23,2,TRUE))*((F12/(VLOOKUP(USER_INPUT!$K$7,REFERENCE!$B$17:$E$23,3,TRUE)))-1)*((D12/1000)^2)/(18*(VLOOKUP(USER_INPUT!$K$7,REFERENCE!$B$17:$E$23,4,TRUE))) -> 5.21E-04 | H12: =(G12*(USER_INPUT!$D$21*24*60*60))*3.28 -> 295.55
D13: 0.0379 | E13: =USER_INPUT!H18 -> 57% | F13: 1350.00 | G13: =(VLOOKUP(USER_INPUT!$K$7,REFERENCE!$B$17:$E$23,2,TRUE))*((F13/(VLOOKUP(USER_INPUT!$K$7,REFERENCE!$B$17:$E$23,3,TRUE)))-1)*((D13/1000)^2)/(18*(VLOOKUP(USER_INPUT!$K$7,REFERENCE!$B$17:$E$23,4,TRUE))) -> 2.75E-04 | H13: =(G13*(USER_INPUT!$D$21*24*60*60))*3.28 -> 155.67
D14: 0.0279 | E14: =USER_INPUT!H19 -> 52% | F14: 1350.00 | G14: =(VLOOKUP(USER_INPUT!$K$7,REFERENCE!$B$17:$E$23,2,TRUE))*((F14/(VLOOKUP(USER_INPUT!$K$7,REFERENCE!$B$17:$E$23,3,TRUE)))-1)*((D14/1000)^2)/(18*(VLOOKUP(USER_INPUT!$K$7,REFERENCE!$B$17:$E$23,4,TRUE))) -> 1.49E-04 | H14: =(G14*(USER_INPUT!$D$21*24*60*60))*3.28 -> 84.73
B15: Fine | D15: 0.0213 | E15: =USER_INPUT!H20 -> 40% | F15: 1350.00 | G15: =(VLOOKUP(USER_INPUT!$K$7,REFERENCE!$B$17:$E$23,2,TRUE))*((F15/(VLOOKUP(USER_INPUT!$K$7,REFERENCE!$B$17:$E$23,3,TRUE)))-1)*((D15/1000)^2)/(18*(VLOOKUP(USER_INPUT!$K$7,REFERENCE!$B$17:$E$23,4,TRUE))) -> 8.69E-05 | H15: =(G15*(USER_INPUT!$D$21*24*60*60))*3.28 -> 49.26
D16: 0.0156 | E16: =USER_INPUT!H21 -> 34% | F16: 1350.00 | G16: =(VLOOKUP(USER_INPUT!$K$7,REFERENCE!$B$17:$E$23,2,TRUE))*((F16/(VLOOKUP(USER_INPUT!$K$7,REFERENCE!$B$17:$E$23,3,TRUE)))-1)*((D16/1000)^2)/(18*(VLOOKUP(USER_INPUT!$K$7,REFERENCE!$B$17:$E$23,4,TRUE))) -> 4.67E-05 | H16: =(G16*(USER_INPUT!$D$21*24*60*60))*3.28 -> 26.48
D17: 0.0118 | E17: =USER_INPUT!H22 -> 28% | F17: 1350.00 | G17: =(VLOOKUP(USER_INPUT!$K$7,REFERENCE!$B$17:$E$23,2,TRUE))*((F17/(VLOOKUP(USER_INPUT!$K$7,REFERENCE!$B$17:$E$23,3,TRUE)))-1)*((D17/1000)^2)/(18*(VLOOKUP(USER_INPUT!$K$7,REFERENCE!$B$17:$E$23,4,TRUE))) -> 2.65E-05 | H17: =(G17*(USER_INPUT!$D$21*24*60*60))*3.28 -> 15.04
D18: 0.0085 | E18: =USER_INPUT!H23 -> 24% | F18: 1350.00 | G18: =(VLOOKUP(USER_INPUT!$K$7,REFERENCE!$B$17:$E$23,2,TRUE))*((F18/(VLOOKUP(USER_INPUT!$K$7,REFERENCE!$B$17:$E$23,3,TRUE)))-1)*((D18/1000)^2)/(18*(VLOOKUP(USER_INPUT!$K$7,REFERENCE!$B$17:$E$23,4,TRUE))) -> 1.38E-05 | H18: =(G18*(USER_INPUT!$D$21*24*60*60))*3.28 -> 7.85
D19: 0.0061 | E19: =USER_INPUT!H24 -> 22% | F19: 1350.00 | G19: =(VLOOKUP(USER_INPUT!$K$7,REFERENCE!$B$17:$E$23,2,TRUE))*((F19/(VLOOKUP(USER_INPUT!$K$7,REFERENCE!$B$17:$E$23,3,TRUE)))-1)*((D19/1000)^2)/(18*(VLOOKUP(USER_INPUT!$K$7,REFERENCE!$B$17:$E$23,4,TRUE))) -> 7.07E-06 | H19: =(G19*(USER_INPUT!$D$21*24*60*60))*3.28 -> 4.01
D20: 0.0043 | E20: =USER_INPUT!H25 -> 20% | F20: 1350.00 | G20: =(VLOOKUP(USER_INPUT!$K$7,REFERENCE!$B$17:$E$23,2,TRUE))*((F20/(VLOOKUP(USER_INPUT!$K$7,REFERENCE!$B$17:$E$23,3,TRUE)))-1)*((D20/1000)^2)/(18*(VLOOKUP(USER_INPUT!$K$7,REFERENCE!$B$17:$E$23,4,TRUE))) -> 3.61E-06 | H20: =(G20*(USER_INPUT!$D$21*24*60*60))*3.28 -> 2.04
D21: 0.0031 | E21: =USER_INPUT!H26 -> 19% | F21: 1350.00 | G21: =(VLOOKUP(USER_INPUT!$K$7,REFERENCE!$B$17:$E$23,2,TRUE))*((F21/(VLOOKUP(USER_INPUT!$K$7,REFERENCE!$B$17:$E$23,3,TRUE)))-1)*((D21/1000)^2)/(18*(VLOOKUP(USER_INPUT!$K$7,REFERENCE!$B$17:$E$23,4,TRUE))) -> 1.83E-06 | H21: =(G21*(USER_INPUT!$D$21*24*60*60))*3.28 -> 1.03
D22: 0.0025 | E22: =USER_INPUT!H27 -> 18% | F22: 1350.00 | G22: =(VLOOKUP(USER_INPUT!$K$7,REFERENCE!$B$17:$E$23,2,TRUE))*((F22/(VLOOKUP(USER_INPUT!$K$7,REFERENCE!$B$17:$E$23,3,TRUE)))-1)*((D22/1000)^2)/(18*(VLOOKUP(USER_INPUT!$K$7,REFERENCE!$B$17:$E$23,4,TRUE))) -> 1.22E-06 | H22: =(G22*(USER_INPUT!$D$21*24*60*60))*3.28 -> 0.69
D23: 0.0022 | E23: =USER_INPUT!H28 -> 18% | F23: 1350.00 | G23: =(VLOOKUP(USER_INPUT!$K$7,REFERENCE!$B$17:$E$23,2,TRUE))*((F23/(VLOOKUP(USER_INPUT!$K$7,REFERENCE!$B$17:$E$23,3,TRUE)))-1)*((D23/1000)^2)/(18*(VLOOKUP(USER_INPUT!$K$7,REFERENCE!$B$17:$E$23,4,TRUE))) -> 9.16E-07 | H23: =(G23*(USER_INPUT!$D$21*24*60*60))*3.28 -> 0.52
A24: Clay | D24: 0.0013 | E24: =USER_INPUT!H29 -> 17% | F24: 1300.00 | G24: =(VLOOKUP(USER_INPUT!$K$7,REFERENCE!$B$17:$E$23,2,TRUE))*((F24/(VLOOKUP(USER_INPUT!$K$7,REFERENCE!$B$17:$E$23,3,TRUE)))-1)*((D24/1000)^2)/(18*(VLOOKUP(USER_INPUT!$K$7,REFERENCE!$B$17:$E$23,4,TRUE))) -> 2.65E-07 | H24: =(G24*(USER_INPUT!$D$21*24*60*60))*3.28 -> 0.15
D25: 0.0009 | E25: =USER_INPUT!H30 -> 15% | F25: 1300.00 | G25: =(VLOOKUP(USER_INPUT!$K$7,REFERENCE!$B$17:$E$23,2,TRUE))*((F25/(VLOOKUP(USER_INPUT!$K$7,REFERENCE!$B$17:$E$23,3,TRUE)))-1)*((D25/1000)^2)/(18*(VLOOKUP(USER_INPUT!$K$7,REFERENCE!$B$17:$E$23,4,TRUE))) -> 1.35E-07 | H25: =(G25*(USER_INPUT!$D$21*24*60*60))*3.28 -> 0.08

Sheet HYDROGRAPH
A1: Hydrograph Routing
A2: n | B2: ΔT | C2: In | D2: in + in+1 | E2: 2S'/Δt - On | F2: 2S/Δt + On+1 | G2: Q | H2: Storage | I2: Stage
B3: hr | C3: ft³/s | D3: ft³/s | E3: ft³/s | F3: ft³/s | G3: ft³/s | H3: ft³ | I3: ft | K3: Volume Characteristics
A4: 1 | B4: 0 | C4: =IF(B4<(MAX(USER_INPUT!$J$14:$J$2000)),FINTERP(USER_INPUT!$J$14:$J$2000,USER_INPUT!$K$14:$K$2000,HYDROGRAPH!B4),0) -> 0.000 | D4: =C4+C5 -> 0.000 | E4: =(FINTERP(REFERENCE!$W$17:$W$67,REFERENCE!$V$17:$V$67,HYDROGRAPH!C4))/2 -> 0.000 | F4: =D4+E4 -> 0.000 | G4: =FINTERP(REFERENCE!$W$17:$W$67,REFERENCE!$V$17:$V$67,HYDROGRAPH!F4) -> 0.000 | H4: =(F4-G4)/2*REFERENCE!$P$19 -> 0.000 | I4: =(FINTERP('STAGE-STORAGE'!$D$4:$D$54,'STAGE-STORAGE'!$A$4:$A$54,H4)) -> 0 | K4: Total Runoff Volume | L4: =SUM(USER_INPUT!K14:K20000)*USER_INPUT!J15*3600 -> 0.00 | M4: ft3
A5: 2 | B5: =REFERENCE!$P$19/60/60 -> 0.167 | C5: =IF(B5<(MAX(USER_INPUT!$J$14:$J$2000)),FINTERP(USER_INPUT!$J$14:$J$2000,USER_INPUT!$K$14:$K$2000,HYDROGRAPH!B5),0) -> 0.000 | D5: =C5+C6 -> 0.000 | E5: =F4-(2*G4) -> 0.000 | F5: =D5+E5 -> 0.000 | G5: =FINTERP(REFERENCE!$W$17:$W$67,REFERENCE!$V$17:$V$67,HYDROGRAPH!F5) -> 0.000 | H5: =(F5-G5)/2*REFERENCE!$P$19 -> 0.000 | I5: =(FINTERP('STAGE-STORAGE'!$D$4:$D$54,'STAGE-STORAGE'!$A$4:$A$54,H5)) -> 0 | K5: Total Outflow Volume | L5: =SUM(HYDROGRAPH!G4:G6000)*HYDROGRAPH!B5*3600 -> 0.00 | M5: ft3
A6: 3 | B6: =$B$5*A5 -> 0.333 | C6: =IF(B6<(MAX(USER_INPUT!$J$14:$J$2000)),FINTERP(USER_INPUT!$J$14:$J$2000,USER_INPUT!$K$14:$K$2000,HYDROGRAPH!B6),0) -> 0.000 | D6: 0.000 | E6: =F5-(2*G5) -> 0.000 | F6: 0.000 | G6: =FINTERP(REFERENCE!$W$17:$W$67,REFERENCE!$V$17:$V$67,HYDROGRAPH!F6) -> 0.000 | H6: =(F6-G6)/2*REFERENCE!$P$19 -> 0.000 | I6: =(FINTERP('STAGE-STORAGE'!$D$4:$D$54,'STAGE-STORAGE'!$A$4:$A$54,H6)) -> 0 | K6: Storage at the end of routing | L6: =L4-L5 -> 0.00 | M6: ft3
A7: 4 | B7: =$B$5*A6 -> 0.500 | C7: =IF(B7<(MAX(USER_INPUT!$J$14:$J$2000)),FINTERP(USER_INPUT!$J$14:$J$2000,USER_INPUT!$K$14:$K$2000,HYDROGRAPH!B7),0) -> 0.000 | D7: 0.000 | E7: 0.000 | F7: 0.000 | G7: =FINTERP(REFERENCE!$W$17:$W$67,REFERENCE!$V$17:$V$67,HYDROGRAPH!F7) -> 0.000 | H7: =(F7-G7)/2*REFERENCE!$P$19 -> 0.000 | I7: =(FINTERP('STAGE-STORAGE'!$D$4:$D$54,'STAGE-STORAGE'!$A$4:$A$54,H7)) -> 0
A8: 5 | B8: 0.667 | C8: =IF(B8<(MAX(USER_INPUT!$J$14:$J$2000)),FINTERP(USER_INPUT!$J$14:$J$2000,USER_INPUT!$K$14:$K$2000,HYDROGRAPH!B8),0) -> 0.000 | D8: 0.000 | E8: 0.000 | F8: 0.000 | G8: =FINTERP(REFERENCE!$W$17:$W$67,REFERENCE!$V$17:$V$67,HYDROGRAPH!F8) -> 0.000 | H8: =(F8-G8)/2*REFERENCE!$P$19 -> 0.000 | I8: =(FINTERP('STAGE-STORAGE'!$D$4:$D$54,'STAGE-STORAGE'!$A$4:$A$54,H8)) -> 0
A9: 6 | B9: 0.833 | C9: =IF(B9<(MAX(USER_INPUT!$J$14:$J$2000)),FINTERP(USER_INPUT!$J$14:$J$2000,USER_INPUT!$K$14:$K$2000,HYDROGRAPH!B9),0) -> 0.000 | D9: 0.000 | E9: =F8-(2*G8) -> 0.000 | F9: =D9+E9 -> 0.000 | G9: =FINTERP(REFERENCE!$W$17:$W$67,REFERENCE!$V$17:$V$67,HYDROGRAPH!F9) -> 0.000 | H9: =(F9-G9)/2*REFERENCE!$P$19 -> 0.000 | I9: =(FINTERP('STAGE-STORAGE'!$D$4:$D$54,'STAGE-STORAGE'!$A$4:$A$54,H9)) -> 0
A10: 7 | B10: 1.000 | C10: =IF(B10<(MAX(USER_INPUT!$J$14:$J$2000)),FINTERP(USER_INPUT!$J$14:$J$2000,USER_INPUT!$K$14:$K$2000,HYDROGRAPH!B10),0) -> 0.000 | D10: 0.000 | E10: 0.000 | F10: 0.000 | G10: =FINTERP(REFERENCE!$W$17:$W$67,REFERENCE!$V$17:$V$67,HYDROGRAPH!F10) -> 0.000 | H10: =(F10-G10)/2*REFERENCE!$P$19 -> 0.000 | I10: =(FINTERP('STAGE-STORAGE'!$D$4:$D$54,'STAGE-STORAGE'!$A$4:$A$54,H10)) -> 0
A11: 8 | B11: 1.167 | C11: =IF(B11<(MAX(USER_INPUT!$J$14:$J$2000)),FINTERP(USER_INPUT!$J$14:$J$2000,USER_INPUT!$K$14:$K$2000,HYDROGRAPH!B11),0) -> 0.000 | D11: 0.000 | E11: 0.000 | F11: 0.000 | G11: =FINTERP(REFERENCE!$W$17:$W$67,REFERENCE!$V$17:$V$67,HYDROGRAPH!F11) -> 0.000 | H11: =(F11-G11)/2*REFERENCE!$P$19 -> 0.000 | I11: =(FINTERP('STAGE-STORAGE'!$D$4:$D$54,'STAGE-STORAGE'!$A$4:$A$54,H11)) -> 0
A12: 9 | B12: 1.333 | C12: =IF(B12<(MAX(USER_INPUT!$J$14:$J$2000)),FINTERP(USER_INPUT!$J$14:$J$2000,USER_INPUT!$K$14:$K$2000,HYDROGRAPH!B12),0) -> 0.000 | D12: 0.000 | E12: 0.000 | F12: 0.000 | G12: =FINTERP(REFERENCE!$W$17:$W$67,REFERENCE!$V$17:$V$67,HYDROGRAPH!F12) -> 0.000 | H12: =(F12-G12)/2*REFERENCE!$P$19 -> 0.000 | I12: =(FINTERP('STAGE-STORAGE'!$D$4:$D$54,'STAGE-STORAGE'!$A$4:$A$54,H12)) -> 0
A13: 10 | B13: 1.500 | C13: =IF(B13<(MAX(USER_INPUT!$J$14:$J$2000)),FINTERP(USER_INPUT!$J$14:$J$2000,USER_INPUT!$K$14:$K$2000,HYDROGRAPH!B13),0) -> 0.000 | D13: 0.000 | E13: 0.000 | F13: 0.000 | G13: =FINTERP(REFERENCE!$W$17:$W$67,REFERENCE!$V$17:$V$67,HYDROGRAPH!F13) -> 0.000 | H13: =(F13-G13)/2*REFERENCE!$P$19 -> 0.000 | I13: =(FINTERP('STAGE-STORAGE'!$D$4:$D$54,'STAGE-STORAGE'!$A$4:$A$54,H13)) -> 0
A14: 11 | B14: 1.667 | C14: =IF(B14<(MAX(USER_INPUT!$J$14:$J$2000)),FINTERP(USER_INPUT!$J$14:$J$2000,USER_INPUT!$K$14:$K$2000,HYDROGRAPH!B14),0) -> 0.000 | D14: 0.000 | E14: 0.000 | F14: 0.000 | G14: =FINTERP(REFERENCE!$W$17:$W$67,REFERENCE!$V$17:$V$67,HYDROGRAPH!F14) -> 0.000 | H14: =(F14-G14)/2*REFERENCE!$P$19 -> 0.000 | I14: =(FINTERP('STAGE-STORAGE'!$D$4:$D$54,'STAGE-STORAGE'!$A$4:$A$54,H14)) -> 0
A15: 12 | B15: 1.833 | C15: =IF(B15<(MAX(USER_INPUT!$J$14:$J$2000)),FINTERP(USER_INPUT!$J$14:$J$2000,USER_INPUT!$K$14:$K$2000,HYDROGRAPH!B15),0) -> 0.000 | D15: 0.000 | E15: 0.000 | F15: 0.000 | G15: =FINTERP(REFERENCE!$W$17:$W$67,REFERENCE!$V$17:$V$67,HYDROGRAPH!F15) -> 0.000 | H15: =(F15-G15)/2*REFERENCE!$P$19 -> 0.000 | I15: =(FINTERP('STAGE-STORAGE'!$D$4:$D$54,'STAGE-STORAGE'!$A$4:$A$54,H15)) -> 0
A16: 13 | B16: 2.000 | C16: =IF(B16<(MAX(USER_INPUT!$J$14:$J$2000)),FINTERP(USER_INPUT!$J$14:$J$2000,USER_INPUT!$K$14:$K$2000,HYDROGRAPH!B16),0) -> 0.000 | D16: 0.000 | E16: 0.000 | F16: 0.000 | G16: =FINTERP(REFERENCE!$W$17:$W$67,REFERENCE!$V$17:$V$67,HYDROGRAPH!F16) -> 0.000 | H16: =(F16-G16)/2*REFERENCE!$P$19 -> 0.000 | I16: =(FINTERP('STAGE-STORAGE'!$D$4:$D$54,'STAGE-STORAGE'!$A$4:$A$54,H16)) -> 0
A17: 14 | B17: 2.167 | C17: =IF(B17<(MAX(USER_INPUT!$J$14:$J$2000)),FINTERP(USER_INPUT!$J$14:$J$2000,USER_INPUT!$K$14:$K$2000,HYDROGRAPH!B17),0) -> 0.000 | D17: 0.000 | E17: 0.000 | F17: 0.000 | G17: =FINTERP(REFERENCE!$W$17:$W$67,REFERENCE!$V$17:$V$67,HYDROGRAPH!F17) -> 0.000 | H17: =(F17-G17)/2*REFERENCE!$P$19 -> 0.000 | I17: =(FINTERP('STAGE-STORAGE'!$D$4:$D$54,'STAGE-STORAGE'!$A$4:$A$54,H17)) -> 0
A18: 15 | B18: 2.333 | C18: =IF(B18<(MAX(USER_INPUT!$J$14:$J$2000)),FINTERP(USER_INPUT!$J$14:$J$2000,USER_INPUT!$K$14:$K$2000,HYDROGRAPH!B18),0) -> 0.000 | D18: 0.000 | E18: 0.000 | F18: 0.000 | G18: =FINTERP(REFERENCE!$W$17:$W$67,REFERENCE!$V$17:$V$67,HYDROGRAPH!F18) -> 0.000 | H18: =(F18-G18)/2*REFERENCE!$P$19 -> 0.000 | I18: =(FINTERP('STAGE-STORAGE'!$D$4:$D$54,'STAGE-STORAGE'!$A$4:$A$54,H18)) -> 0
A19: 16 | B19: 2.500 | C19: =IF(B19<(MAX(USER_INPUT!$J$14:$J$2000)),FINTERP(USER_INPUT!$J$14:$J$2000,USER_INPUT!$K$14:$K$2000,HYDROGRAPH!B19),0) -> 0.000 | D19: 0.000 | E19: 0.000 | F19: 0.000 | G19: =FINTERP(REFERENCE!$W$17:$W$67,REFERENCE!$V$17:$V$67,HYDROGRAPH!F19) -> 0.000 | H19: =(F19-G19)/2*REFERENCE!$P$19 -> 0.000 | I19: =(FINTERP('STAGE-STORAGE'!$D$4:$D$54,'STAGE-STORAGE'!$A$4:$A$54,H19)) -> 0
A20: 17 | B20: 2.667 | C20: =IF(B20<(MAX(USER_INPUT!$J$14:$J$2000)),FINTERP(USER_INPUT!$J$14:$J$2000,USER_INPUT!$K$14:$K$2000,HYDROGRAPH!B20),0) -> 0.000 | D20: 0.000 | E20: 0.000 | F20: 0.000 | G20: =FINTERP(REFERENCE!$W$17:$W$67,REFERENCE!$V$17:$V$67,HYDROGRAPH!F20) -> 0.000 | H20: =(F20-G20)/2*REFERENCE!$P$19 -> 0.000 | I20: =(FINTERP('STAGE-STORAGE'!$D$4:$D$54,'STAGE-STORAGE'!$A$4:$A$54,H20)) -> 0
A21: 18 | B21: 2.833 | C21: =IF(B21<(MAX(USER_INPUT!$J$14:$J$2000)),FINTERP(USER_INPUT!$J$14:$J$2000,USER_INPUT!$K$14:$K$2000,HYDROGRAPH!B21),0) -> 0.000 | D21: 0.000 | E21: 0.000 | F21: 0.000 | G21: =FINTERP(REFERENCE!$W$17:$W$67,REFERENCE!$V$17:$V$67,HYDROGRAPH!F21) -> 0.000 | H21: =(F21-G21)/2*REFERENCE!$P$19 -> 0.000 | I21: =(FINTERP('STAGE-STORAGE'!$D$4:$D$54,'STAGE-STORAGE'!$A$4:$A$54,H21)) -> 0
A22: 19 | B22: 3.000 | C22: =IF(B22<(MAX(USER_INPUT!$J$14:$J$2000)),FINTERP(USER_INPUT!$J$14:$J$2000,USER_INPUT!$K$14:$K$2000,HYDROGRAPH!B22),0) -> 0.000 | D22: 0.000 | E22: 0.000 | F22: 0.000 | G22: =FINTERP(REFERENCE!$W$17:$W$67,REFERENCE!$V$17:$V$67,HYDROGRAPH!F22) -> 0.000 | H22: =(F22-G22)/2*REFERENCE!$P$19 -> 0.000 | I22: =(FINTERP('STAGE-STORAGE'!$D$4:$D$54,'STAGE-STORAGE'!$A$4:$A$54,H22)) -> 0
A23: 20 | B23: 3.167 | C23: =IF(B23<(MAX(USER_INPUT!$J$14:$J$2000)),FINTERP(USER_INPUT!$J$14:$J$2000,USER_INPUT!$K$14:$K$2000,HYDROGRAPH!B23),0) -> 0.000 | D23: 0.000 | E23: 0.000 | F23: 0.000 | G23: =FINTERP(REFERENCE!$W$17:$W$67,REFERENCE!$V$17:$V$67,HYDROGRAPH!F23) -> 0.000 | H23: =(F23-G23)/2*REFERENCE!$P$19 -> 0.000 | I23: =(FINTERP('STAGE-STORAGE'!$D$4:$D$54,'STAGE-STORAGE'!$A$4:$A$54,H23)) -> 0
A24: 21 | B24: 3.333 | C24: =IF(B24<(MAX(USER_INPUT!$J$14:$J$2000)),FINTERP(USER_INPUT!$J$14:$J$2000,USER_INPUT!$K$14:$K$2000,HYDROGRAPH!B24),0) -> 0.000 | D24: 0.000 | E24: 0.000 | F24: 0.000 | G24: =FINTERP(REFERENCE!$W$17:$W$67,REFERENCE!$V$17:$V$67,HYDROGRAPH!F24) -> 0.000 | H24: =(F24-G24)/2*REFERENCE!$P$19 -> 0.000 | I24: =(FINTERP('STAGE-STORAGE'!$D$4:$D$54,'STAGE-STORAGE'!$A$4:$A$54,H24)) -> 0
A25: 22 | B25: 3.500 | C25: =IF(B25<(MAX(USER_INPUT!$J$14:$J$2000)),FINTERP(USER_INPUT!$J$14:$J$2000,USER_INPUT!$K$14:$K$2000,HYDROGRAPH!B25),0) -> 0.000 | D25: 0.000 | E25: 0.000 | F25: 0.000 | G25: =FINTERP(REFERENCE!$W$17:$W$67,REFERENCE!$V$17:$V$67,HYDROGRAPH!F25) -> 0.000 | H25: =(F25-G25)/2*REFERENCE!$P$19 -> 0.000 | I25: =(FINTERP('STAGE-STORAGE'!$D$4:$D$54,'STAGE-STORAGE'!$A$4:$A$54,H25)) -> 0
A26: 23 | B26: 3.667 | C26: =IF(B26<(MAX(USER_INPUT!$J$14:$J$2000)),FINTERP(USER_INPUT!$J$14:$J$2000,USER_INPUT!$K$14:$K$2000,HYDROGRAPH!B26),0) -> 0.000 | D26: 0.000 | E26: 0.000 | F26: 0.000 | G26: =FINTERP(REFERENCE!$W$17:$W$67,REFERENCE!$V$17:$V$67,HYDROGRAPH!F26) -> 0.000 | H26: =(F26-G26)/2*REFERENCE!$P$19 -> 0.000 | I26: =(FINTERP('STAGE-STORAGE'!$D$4:$D$54,'STAGE-STORAGE'!$A$4:$A$54,H26)) -> 0
A27: 24 | B27: 3.833 | C27: =IF(B27<(MAX(USER_INPUT!$J$14:$J$2000)),FINTERP(USER_INPUT!$J$14:$J$2000,USER_INPUT!$K$14:$K$2000,HYDROGRAPH!B27),0) -> 0.000 | D27: 0.000 | E27: 0.000 | F27: 0.000 | G27: =FINTERP(REFERENCE!$W$17:$W$67,REFERENCE!$V$17:$V$67,HYDROGRAPH!F27) -> 0.000 | H27: =(F27-G27)/2*REFERENCE!$P$19 -> 0.000 | I27: =(FINTERP('STAGE-STORAGE'!$D$4:$D$54,'STAGE-STORAGE'!$A$4:$A$54,H27)) -> 0
A28: 25 | B28: 4.000 | C28: =IF(B28<(MAX(USER_INPUT!$J$14:$J$2000)),FINTERP(USER_INPUT!$J$14:$J$2000,USER_INPUT!$K$14:$K$2000,HYDROGRAPH!B28),0) -> 0.000 | D28: 0.000 | E28: 0.000 | F28: 0.000 | G28: =FINTERP(REFERENCE!$W$17:$W$67,REFERENCE!$V$17:$V$67,HYDROGRAPH!F28) -> 0.000 | H28: =(F28-G28)/2*REFERENCE!$P$19 -> 0.000 | I28: =(FINTERP('STAGE-STORAGE'!$D$4:$D$54,'STAGE-STORAGE'!$A$4:$A$54,H28)) -> 0
A29: 26 | B29: 4.167 | C29: =IF(B29<(MAX(USER_INPUT!$J$14:$J$2000)),FINTERP(USER_INPUT!$J$14:$J$2000,USER_INPUT!$K$14:$K$2000,HYDROGRAPH!B29),0) -> 0.000 | D29: 0.000 | E29: 0.000 | F29: 0.000 | G29: =FINTERP(REFERENCE!$W$17:$W$67,REFERENCE!$V$17:$V$67,HYDROGRAPH!F29) -> 0.000 | H29: =(F29-G29)/2*REFERENCE!$P$19 -> 0.000 | I29: =(FINTERP('STAGE-STORAGE'!$D$4:$D$54,'STAGE-STORAGE'!$A$4:$A$54,H29)) -> 0
A30: 27 | B30: 4.333 | C30: =IF(B30<(MAX(USER_INPUT!$J$14:$J$2000)),FINTERP(USER_INPUT!$J$14:$J$2000,USER_INPUT!$K$14:$K$2000,HYDROGRAPH!B30),0) -> 0.000 | D30: 0.000 | E30: 0.000 | F30: 0.000 | G30: =FINTERP(REFERENCE!$W$17:$W$67,REFERENCE!$V$17:$V$67,HYDROGRAPH!F30) -> 0.000 | H30: =(F30-G30)/2*REFERENCE!$P$19 -> 0.000 | I30: =(FINTERP('STAGE-STORAGE'!$D$4:$D$54,'STAGE-STORAGE'!$A$4:$A$54,H30)) -> 0
A31: 28 | B31: 4.500 | C31: =IF(B31<(MAX(USER_INPUT!$J$14:$J$2000)),FINTERP(USER_INPUT!$J$14:$J$2000,USER_INPUT!$K$14:$K$2000,HYDROGRAPH!B31),0) -> 0.000 | D31: 0.000 | E31: 0.000 | F31: 0.000 | G31: =FINTERP(REFERENCE!$W$17:$W$67,REFERENCE!$V$17:$V$67,HYDROGRAPH!F31) -> 0.000 | H31: =(F31-G31)/2*REFERENCE!$P$19 -> 0.000 | I31: =(FINTERP('STAGE-STORAGE'!$D$4:$D$54,'STAGE-STORAGE'!$A$4:$A$54,H31)) -> 0
A32: 29 | B32: 4.667 | C32: =IF(B32<(MAX(USER_INPUT!$J$14:$J$2000)),FINTERP(USER_INPUT!$J$14:$J$2000,USER_INPUT!$K$14:$K$2000,HYDROGRAPH!B32),0) -> 0.000 | D32: 0.000 | E32: 0.000 | F32: 0.000 | G32: =FINTERP(REFERENCE!$W$17:$W$67,REFERENCE!$V$17:$V$67,HYDROGRAPH!F32) -> 0.000 | H32: =(F32-G32)/2*REFERENCE!$P$19 -> 0.000 | I32: =(FINTERP('STAGE-STORAGE'!$D$4:$D$54,'STAGE-STORAGE'!$A$4:$A$54,H32)) -> 0
A33: 30 | B33: 4.833 | C33: =IF(B33<(MAX(USER_INPUT!$J$14:$J$2000)),FINTERP(USER_INPUT!$J$14:$J$2000,USER_INPUT!$K$14:$K$2000,HYDROGRAPH!B33),0) -> 0.000 | D33: 0.000 | E33: 0.000 | F33: 0.000 | G33: =FINTERP(REFERENCE!$W$17:$W$67,REFERENCE!$V$17:$V$67,HYDROGRAPH!F33) -> 0.000 | H33: =(F33-G33)/2*REFERENCE!$P$19 -> 0.000 | I33: =(FINTERP('STAGE-STORAGE'!$D$4:$D$54,'STAGE-STORAGE'!$A$4:$A$54,H33)) -> 0
A34: 31 | B34: 5.000 | C34: =IF(B34<(MAX(USER_INPUT!$J$14:$J$2000)),FINTERP(USER_INPUT!$J$14:$J$2000,USER_INPUT!$K$14:$K$2000,HYDROGRAPH!B34),0) -> 0.000 | D34: 0.000 | E34: 0.000 | F34: 0.000 | G34: =FINTERP(REFERENCE!$W$17:$W$67,REFERENCE!$V$17:$V$67,HYDROGRAPH!F34) -> 0.000 | H34: =(F34-G34)/2*REFERENCE!$P$19 -> 0.000 | I34: =(FINTERP('STAGE-STORAGE'!$D$4:$D$54,'STAGE-STORAGE'!$A$4:$A$54,H34)) -> 0
A35: 32 | B35: 5.167 | C35: =IF(B35<(MAX(USER_INPUT!$J$14:$J$2000)),FINTERP(USER_INPUT!$J$14:$J$2000,USER_INPUT!$K$14:$K$2000,HYDROGRAPH!B35),0) -> 0.000 | D35: 0.000 | E35: 0.000 | F35: 0.000 | G35: =FINTERP(REFERENCE!$W$17:$W$67,REFERENCE!$V$17:$V$67,HYDROGRAPH!F35) -> 0.000 | H35: =(F35-G35)/2*REFERENCE!$P$19 -> 0.000 | I35: =(FINTERP('STAGE-STORAGE'!$D$4:$D$54,'STAGE-STORAGE'!$A$4:$A$54,H35)) -> 0
A36: 33 | B36: 5.333 | C36: =IF(B36<(MAX(USER_INPUT!$J$14:$J$2000)),FINTERP(USER_INPUT!$J$14:$J$2000,USER_INPUT!$K$14:$K$2000,HYDROGRAPH!B36),0) -> 0.000 | D36: 0.000 | E36: 0.000 | F36: 0.000 | G36: =FINTERP(REFERENCE!$W$17:$W$67,REFERENCE!$V$17:$V$67,HYDROGRAPH!F36) -> 0.000 | H36: =(F36-G36)/2*REFERENCE!$P$19 -> 0.000 | I36: =(FINTERP('STAGE-STORAGE'!$D$4:$D$54,'STAGE-STORAGE'!$A$4:$A$54,H36)) -> 0
A37: 34 | B37: 5.500 | C37: =IF(B37<(MAX(USER_INPUT!$J$14:$J$2000)),FINTERP(USER_INPUT!$J$14:$J$2000,USER_INPUT!$K$14:$K$2000,HYDROGRAPH!B37),0) -> 0.000 | D37: 0.000 | E37: 0.000 | F37: 0.000 | G37: =FINTERP(REFERENCE!$W$17:$W$67,REFERENCE!$V$17:$V$67,HYDROGRAPH!F37) -> 0.000 | H37: =(F37-G37)/2*REFERENCE!$P$19 -> 0.000 | I37: =(FINTERP('STAGE-STORAGE'!$D$4:$D$54,'STAGE-STORAGE'!$A$4:$A$54,H37)) -> 0
A38: 35 | B38: 5.667 | C38: =IF(B38<(MAX(USER_INPUT!$J$14:$J$2000)),FINTERP(USER_INPUT!$J$14:$J$2000,USER_INPUT!$K$14:$K$2000,HYDROGRAPH!B38),0) -> 0.000 | D38: 0.000 | E38: 0.000 | F38: 0.000 | G38: =FINTERP(REFERENCE!$W$17:$W$67,REFERENCE!$V$17:$V$67,HYDROGRAPH!F38) -> 0.000 | H38: =(F38-G38)/2*REFERENCE!$P$19 -> 0.000 | I38: =(FINTERP('STAGE-STORAGE'!$D$4:$D$54,'STAGE-STORAGE'!$A$4:$A$54,H38)) -> 0
A39: 36 | B39: 5.833 | C39: =IF(B39<(MAX(USER_INPUT!$J$14:$J$2000)),FINTERP(USER_INPUT!$J$14:$J$2000,USER_INPUT!$K$14:$K$2000,HYDROGRAPH!B39),0) -> 0.000 | D39: 0.000 | E39: 0.000 | F39: 0.000 | G39: =FINTERP(REFERENCE!$W$17:$W$67,REFERENCE!$V$17:$V$67,HYDROGRAPH!F39) -> 0.000 | H39: =(F39-G39)/2*REFERENCE!$P$19 -> 0.000 | I39: =(FINTERP('STAGE-STORAGE'!$D$4:$D$54,'STAGE-STORAGE'!$A$4:$A$54,H39)) -> 0
A40: 37 | B40: 6.000 | C40: =IF(B40<(MAX(USER_INPUT!$J$14:$J$2000)),FINTERP(USER_INPUT!$J$14:$J$2000,USER_INPUT!$K$14:$K$2000,HYDROGRAPH!B40),0) -> 0.000 | D40: 0.000 | E40: 0.000 | F40: 0.000 | G40: =FINTERP(REFERENCE!$W$17:$W$67,REFERENCE!$V$17:$V$67,HYDROGRAPH!F40) -> 0.000 | H40: =(F40-G40)/2*REFERENCE!$P$19 -> 0.000 | I40: =(FINTERP('STAGE-STORAGE'!$D$4:$D$54,'STAGE-STORAGE'!$A$4:$A$54,H40)) -> 0
A41: 38 | B41: 6.167 | C41: =IF(B41<(MAX(USER_INPUT!$J$14:$J$2000)),FINTERP(USER_INPUT!$J$14:$J$2000,USER_INPUT!$K$14:$K$2000,HYDROGRAPH!B41),0) -> 0.000 | D41: 0.000 | E41: 0.000 | F41: 0.000 | G41: =FINTERP(REFERENCE!$W$17:$W$67,REFERENCE!$V$17:$V$67,HYDROGRAPH!F41) -> 0.000 | H41: =(F41-G41)/2*REFERENCE!$P$19 -> 0.000 | I41: =(FINTERP('STAGE-STORAGE'!$D$4:$D$54,'STAGE-STORAGE'!$A$4:$A$54,H41)) -> 0
A42: 39 | B42: 6.333 | C42: =IF(B42<(MAX(USER_INPUT!$J$14:$J$2000)),FINTERP(USER_INPUT!$J$14:$J$2000,USER_INPUT!$K$14:$K$2000,HYDROGRAPH!B42),0) -> 0.000 | D42: 0.000 | E42: 0.000 | F42: 0.000 | G42: =FINTERP(REFERENCE!$W$17:$W$67,REFERENCE!$V$17:$V$67,HYDROGRAPH!F42) -> 0.000 | H42: =(F42-G42)/2*REFERENCE!$P$19 -> 0.000 | I42: =(FINTERP('STAGE-STORAGE'!$D$4:$D$54,'STAGE-STORAGE'!$A$4:$A$54,H42)) -> 0
A43: 40 | B43: 6.500 | C43: =IF(B43<(MAX(USER_INPUT!$J$14:$J$2000)),FINTERP(USER_INPUT!$J$14:$J$2000,USER_INPUT!$K$14:$K$2000,HYDROGRAPH!B43),0) -> 0.000 | D43: 0.000 | E43: 0.000 | F43: 0.000 | G43: =FINTERP(REFERENCE!$W$17:$W$67,REFERENCE!$V$17:$V$67,HYDROGRAPH!F43) -> 0.000 | H43: =(F43-G43)/2*REFERENCE!$P$19 -> 0.000 | I43: =(FINTERP('STAGE-STORAGE'!$D$4:$D$54,'STAGE-STORAGE'!$A$4:$A$54,H43)) -> 0
A44: 41 | B44: 6.667 | C44: =IF(B44<(MAX(USER_INPUT!$J$14:$J$2000)),FINTERP(USER_INPUT!$J$14:$J$2000,USER_INPUT!$K$14:$K$2000,HYDROGRAPH!B44),0) -> 0.000 | D44: 0.000 | E44: 0.000 | F44: 0.000 | G44: =FINTERP(REFERENCE!$W$17:$W$67,REFERENCE!$V$17:$V$67,HYDROGRAPH!F44) -> 0.000 | H44: =(F44-G44)/2*REFERENCE!$P$19 -> 0.000 | I44: =(FINTERP('STAGE-STORAGE'!$D$4:$D$54,'STAGE-STORAGE'!$A$4:$A$54,H44)) -> 0
A45: 42 | B45: 6.833 | C45: =IF(B45<(MAX(USER_INPUT!$J$14:$J$2000)),FINTERP(USER_INPUT!$J$14:$J$2000,USER_INPUT!$K$14:$K$2000,HYDROGRAPH!B45),0) -> 0.000 | D45: 0.000 | E45: 0.000 | F45: 0.000 | G45: =FINTERP(REFERENCE!$W$17:$W$67,REFERENCE!$V$17:$V$67,HYDROGRAPH!F45) -> 0.000 | H45: =(F45-G45)/2*REFERENCE!$P$19 -> 0.000 | I45: =(FINTERP('STAGE-STORAGE'!$D$4:$D$54,'STAGE-STORAGE'!$A$4:$A$54,H45)) -> 0
A46: 43 | B46: 7.000 | C46: =IF(B46<(MAX(USER_INPUT!$J$14:$J$2000)),FINTERP(USER_INPUT!$J$14:$J$2000,USER_INPUT!$K$14:$K$2000,HYDROGRAPH!B46),0) -> 0.000 | D46: 0.000 | E46: 0.000 | F46: 0.000 | G46: =FINTERP(REFERENCE!$W$17:$W$67,REFERENCE!$V$17:$V$67,HYDROGRAPH!F46) -> 0.000 | H46: =(F46-G46)/2*REFERENCE!$P$19 -> 0.000 | I46: =(FINTERP('STAGE-STORAGE'!$D$4:$D$54,'STAGE-STORAGE'!$A$4:$A$54,H46)) -> 0
A47: 44 | B47: 7.167 | C47: =IF(B47<(MAX(USER_INPUT!$J$14:$J$2000)),FINTERP(USER_INPUT!$J$14:$J$2000,USER_INPUT!$K$14:$K$2000,HYDROGRAPH!B47),0) -> 0.000 | D47: 0.000 | E47: 0.000 | F47: 0.000 | G47: =FINTERP(REFERENCE!$W$17:$W$67,REFERENCE!$V$17:$V$67,HYDROGRAPH!F47) -> 0.000 | H47: =(F47-G47)/2*REFERENCE!$P$19 -> 0.000 | I47: =(FINTERP('STAGE-STORAGE'!$D$4:$D$54,'STAGE-STORAGE'!$A$4:$A$54,H47)) -> 0
A48: 45 | B48: 7.333 | C48: =IF(B48<(MAX(USER_INPUT!$J$14:$J$2000)),FINTERP(USER_INPUT!$J$14:$J$2000,USER_INPUT!$K$14:$K$2000,HYDROGRAPH!B48),0) -> 0.000 | D48: 0.000 | E48: 0.000 | F48: 0.000 | G48: =FINTERP(REFERENCE!$W$17:$W$67,REFERENCE!$V$17:$V$67,HYDROGRAPH!F48) -> 0.000 | H48: =(F48-G48)/2*REFERENCE!$P$19 -> 0.000 | I48: =(FINTERP('STAGE-STORAGE'!$D$4:$D$54,'STAGE-STORAGE'!$A$4:$A$54,H48)) -> 0
A49: 46 | B49: 7.500 | C49: =IF(B49<(MAX(USER_INPUT!$J$14:$J$2000)),FINTERP(USER_INPUT!$J$14:$J$2000,USER_INPUT!$K$14:$K$2000,HYDROGRAPH!B49),0) -> 0.000 | D49: 0.000 | E49: 0.000 | F49: 0.000 | G49: =FINTERP(REFERENCE!$W$17:$W$67,REFERENCE!$V$17:$V$67,HYDROGRAPH!F49) -> 0.000 | H49: =(F49-G49)/2*REFERENCE!$P$19 -> 0.000 | I49: =(FINTERP('STAGE-STORAGE'!$D$4:$D$54,'STAGE-STORAGE'!$A$4:$A$54,H49)) -> 0
A50: 47 | B50: 7.667 | C50: =IF(B50<(MAX(USER_INPUT!$J$14:$J$2000)),FINTERP(USER_INPUT!$J$14:$J$2000,USER_INPUT!$K$14:$K$2000,HYDROGRAPH!B50),0) -> 0.000 | D50: 0.000 | E50: 0.000 | F50: 0.000 | G50: =FINTERP(REFERENCE!$W$17:$W$67,REFERENCE!$V$17:$V$67,HYDROGRAPH!F50) -> 0.000 | H50: =(F50-G50)/2*REFERENCE!$P$19 -> 0.000 | I50: =(FINTERP('STAGE-STORAGE'!$D$4:$D$54,'STAGE-STORAGE'!$A$4:$A$54,H50)) -> 0
A51: 48 | B51: 7.833 | C51: =IF(B51<(MAX(USER_INPUT!$J$14:$J$2000)),FINTERP(USER_INPUT!$J$14:$J$2000,USER_INPUT!$K$14:$K$2000,HYDROGRAPH!B51),0) -> 0.000 | D51: 0.000 | E51: 0.000 | F51: 0.000 | G51: =FINTERP(REFERENCE!$W$17:$W$67,REFERENCE!$V$17:$V$67,HYDROGRAPH!F51) -> 0.000 | H51: =(F51-G51)/2*REFERENCE!$P$19 -> 0.000 | I51: =(FINTERP('STAGE-STORAGE'!$D$4:$D$54,'STAGE-STORAGE'!$A$4:$A$54,H51)) -> 0
A52: 49 | B52: 8.000 | C52: =IF(B52<(MAX(USER_INPUT!$J$14:$J$2000)),FINTERP(USER_INPUT!$J$14:$J$2000,USER_INPUT!$K$14:$K$2000,HYDROGRAPH!B52),0) -> 0.000 | D52: 0.000 | E52: 0.000 | F52: 0.000 | G52: =FINTERP(REFERENCE!$W$17:$W$67,REFERENCE!$V$17:$V$67,HYDROGRAPH!F52) -> 0.000 | H52: =(F52-G52)/2*REFERENCE!$P$19 -> 0.000 | I52: =(FINTERP('STAGE-STORAGE'!$D$4:$D$54,'STAGE-STORAGE'!$A$4:$A$54,H52)) -> 0
A53: 50 | B53: 8.167 | C53: =IF(B53<(MAX(USER_INPUT!$J$14:$J$2000)),FINTERP(USER_INPUT!$J$14:$J$2000,USER_INPUT!$K$14:$K$2000,HYDROGRAPH!B53),0) -> 0.000 | D53: 0.000 | E53: 0.000 | F53: 0.000 | G53: =FINTERP(REFERENCE!$W$17:$W$67,REFERENCE!$V$17:$V$67,HYDROGRAPH!F53) -> 0.000 | H53: =(F53-G53)/2*REFERENCE!$P$19 -> 0.000 | I53: =(FINTERP('STAGE-STORAGE'!$D$4:$D$54,'STAGE-STORAGE'!$A$4:$A$54,H53)) -> 0
A54: 51 | B54: 8.333 | C54: =IF(B54<(MAX(USER_INPUT!$J$14:$J$2000)),FINTERP(USER_INPUT!$J$14:$J$2000,USER_INPUT!$K$14:$K$2000,HYDROGRAPH!B54),0) -> 0.000 | D54: 0.000 | E54: 0.000 | F54: 0.000 | G54: =FINTERP(REFERENCE!$W$17:$W$67,REFERENCE!$V$17:$V$67,HYDROGRAPH!F54) -> 0.000 | H54: =(F54-G54)/2*REFERENCE!$P$19 -> 0.000 | I54: =(FINTERP('STAGE-STORAGE'!$D$4:$D$54,'STAGE-STORAGE'!$A$4:$A$54,H54)) -> 0
A55: 52 | B55: 8.500 | C55: =IF(B55<(MAX(USER_INPUT!$J$14:$J$2000)),FINTERP(USER_INPUT!$J$14:$J$2000,USER_INPUT!$K$14:$K$2000,HYDROGRAPH!B55),0) -> 0.000 | D55: 0.000 | E55: 0.000 | F55: 0.000 | G55: =FINTERP(REFERENCE!$W$17:$W$67,REFERENCE!$V$17:$V$67,HYDROGRAPH!F55) -> 0.000 | H55: =(F55-G55)/2*REFERENCE!$P$19 -> 0.000 | I55: =(FINTERP('STAGE-STORAGE'!$D$4:$D$54,'STAGE-STORAGE'!$A$4:$A$54,H55)) -> 0
A56: 53 | B56: 8.667 | C56: =IF(B56<(MAX(USER_INPUT!$J$14:$J$2000)),FINTERP(USER_INPUT!$J$14:$J$2000,USER_INPUT!$K$14:$K$2000,HYDROGRAPH!B56),0) -> 0.000 | D56: 0.000 | E56: 0.000 | F56: 0.000 | G56: =FINTERP(REFERENCE!$W$17:$W$67,REFERENCE!$V$17:$V$67,HYDROGRAPH!F56) -> 0.000 | H56: =(F56-G56)/2*REFERENCE!$P$19 -> 0.000 | I56: =(FINTERP('STAGE-STORAGE'!$D$4:$D$54,'STAGE-STORAGE'!$A$4:$A$54,H56)) -> 0
A57: 54 | B57: 8.833 | C57: =IF(B57<(MAX(USER_INPUT!$J$14:$J$2000)),FINTERP(USER_INPUT!$J$14:$J$2000,USER_INPUT!$K$14:$K$2000,HYDROGRAPH!B57),0) -> 0.000 | D57: 0.000 | E57: 0.000 | F57: 0.000 | G57: =FINTERP(REFERENCE!$W$17:$W$67,REFERENCE!$V$17:$V$67,HYDROGRAPH!F57) -> 0.000 | H57: =(F57-G57)/2*REFERENCE!$P$19 -> 0.000 | I57: =(FINTERP('STAGE-STORAGE'!$D$4:$D$54,'STAGE-STORAGE'!$A$4:$A$54,H57)) -> 0
A58: 55 | B58: 9.000 | C58: =IF(B58<(MAX(USER_INPUT!$J$14:$J$2000)),FINTERP(USER_INPUT!$J$14:$J$2000,USER_INPUT!$K$14:$K$2000,HYDROGRAPH!B58),0) -> 0.000 | D58: 0.000 | E58: 0.000 | F58: 0.000 | G58: =FINTERP(REFERENCE!$W$17:$W$67,REFERENCE!$V$17:$V$67,HYDROGRAPH!F58) -> 0.000 | H58: =(F58-G58)/2*REFERENCE!$P$19 -> 0.000 | I58: =(FINTERP('STAGE-STORAGE'!$D$4:$D$54,'STAGE-STORAGE'!$A$4:$A$54,H58)) -> 0
A59: 56 | B59: 9.167 | C59: =IF(B59<(MAX(USER_INPUT!$J$14:$J$2000)),FINTERP(USER_INPUT!$J$14:$J$2000,USER_INPUT!$K$14:$K$2000,HYDROGRAPH!B59),0) -> 0.000 | D59: 0.000 | E59: 0.000 | F59: 0.000 | G59: =FINTERP(REFERENCE!$W$17:$W$67,REFERENCE!$V$17:$V$67,HYDROGRAPH!F59) -> 0.000 | H59: =(F59-G59)/2*REFERENCE!$P$19 -> 0.000 | I59: =(FINTERP('STAGE-STORAGE'!$D$4:$D$54,'STAGE-STORAGE'!$A$4:$A$54,H59)) -> 0
A60: 57 | B60: 9.333 | C60: =IF(B60<(MAX(USER_INPUT!$J$14:$J$2000)),FINTERP(USER_INPUT!$J$14:$J$2000,USER_INPUT!$K$14:$K$2000,HYDROGRAPH!B60),0) -> 0.000 | D60: 0.000 | E60: 0.000 | F60: 0.000 | G60: =FINTERP(REFERENCE!$W$17:$W$67,REFERENCE!$V$17:$V$67,HYDROGRAPH!F60) -> 0.000 | H60: =(F60-G60)/2*REFERENCE!$P$19 -> 0.000 | I60: =(FINTERP('STAGE-STORAGE'!$D$4:$D$54,'STAGE-STORAGE'!$A$4:$A$54,H60)) -> 0
A61: 58 | B61: 9.500 | C61: =IF(B61<(MAX(USER_INPUT!$J$14:$J$2000)),FINTERP(USER_INPUT!$J$14:$J$2000,USER_INPUT!$K$14:$K$2000,HYDROGRAPH!B61),0) -> 0.000 | D61: 0.000 | E61: 0.000 | F61: 0.000 | G61: =FINTERP(REFERENCE!$W$17:$W$67,REFERENCE!$V$17:$V$67,HYDROGRAPH!F61) -> 0.000 | H61: =(F61-G61)/2*REFERENCE!$P$19 -> 0.000 | I61: =(FINTERP('STAGE-STORAGE'!$D$4:$D$54,'STAGE-STORAGE'!$A$4:$A$54,H61)) -> 0
A62: 59 | B62: 9.667 | C62: =IF(B62<(MAX(USER_INPUT!$J$14:$J$2000)),FINTERP(USER_INPUT!$J$14:$J$2000,USER_INPUT!$K$14:$K$2000,HYDROGRAPH!B62),0) -> 0.000 | D62: 0.000 | E62: 0.000 | F62: 0.000 | G62: =FINTERP(REFERENCE!$W$17:$W$67,REFERENCE!$V$17:$V$67,HYDROGRAPH!F62) -> 0.000 | H62: =(F62-G62)/2*REFERENCE!$P$19 -> 0.000 | I62: =(FINTERP('STAGE-STORAGE'!$D$4:$D$54,'STAGE-STORAGE'!$A$4:$A$54,H62)) -> 0
A63: 60 | B63: 9.833 | C63: =IF(B63<(MAX(USER_INPUT!$J$14:$J$2000)),FINTERP(USER_INPUT!$J$14:$J$2000,USER_INPUT!$K$14:$K$2000,HYDROGRAPH!B63),0) -> 0.000 | D63: 0.000 | E63: 0.000 | F63: 0.000 | G63: =FINTERP(REFERENCE!$W$17:$W$67,REFERENCE!$V$17:$V$67,HYDROGRAPH!F63) -> 0.000 | H63: =(F63-G63)/2*REFERENCE!$P$19 -> 0.000 | I63: =(FINTERP('STAGE-STORAGE'!$D$4:$D$54,'STAGE-STORAGE'!$A$4:$A$54,H63)) -> 0
A64: 61 | B64: 10.000 | C64: =IF(B64<(MAX(USER_INPUT!$J$14:$J$2000)),FINTERP(USER_INPUT!$J$14:$J$2000,USER_INPUT!$K$14:$K$2000,HYDROGRAPH!B64),0) -> 0.000 | D64: 0.000 | E64: 0.000 | F64: 0.000 | G64: =FINTERP(REFERENCE!$W$17:$W$67,REFERENCE!$V$17:$V$67,HYDROGRAPH!F64) -> 0.000 | H64: =(F64-G64)/2*REFERENCE!$P$19 -> 0.000 | I64: =(FINTERP('STAGE-STORAGE'!$D$4:$D$54,'STAGE-STORAGE'!$A$4:$A$54,H64)) -> 0
A65: 62 | B65: 10.167 | C65: =IF(B65<(MAX(USER_INPUT!$J$14:$J$2000)),FINTERP(USER_INPUT!$J$14:$J$2000,USER_INPUT!$K$14:$K$2000,HYDROGRAPH!B65),0) -> 0.000 | D65: 0.000 | E65: 0.000 | F65: 0.000 | G65: =FINTERP(REFERENCE!$W$17:$W$67,REFERENCE!$V$17:$V$67,HYDROGRAPH!F65) -> 0.000 | H65: =(F65-G65)/2*REFERENCE!$P$19 -> 0.000 | I65: =(FINTERP('STAGE-STORAGE'!$D$4:$D$54,'STAGE-STORAGE'!$A$4:$A$54,H65)) -> 0
A66: 63 | B66: 10.333 | C66: =IF(B66<(MAX(USER_INPUT!$J$14:$J$2000)),FINTERP(USER_INPUT!$J$14:$J$2000,USER_INPUT!$K$14:$K$2000,HYDROGRAPH!B66),0) -> 0.000 | D66: 0.000 | E66: 0.000 | F66: 0.000 | G66: =FINTERP(REFERENCE!$W$17:$W$67,REFERENCE!$V$17:$V$67,HYDROGRAPH!F66) -> 0.000 | H66: =(F66-G66)/2*REFERENCE!$P$19 -> 0.000 | I66: =(FINTERP('STAGE-STORAGE'!$D$4:$D$54,'STAGE-STORAGE'!$A$4:$A$54,H66)) -> 0
A67: 64 | B67: 10.500 | C67: =IF(B67<(MAX(USER_INPUT!$J$14:$J$2000)),FINTERP(USER_INPUT!$J$14:$J$2000,USER_INPUT!$K$14:$K$2000,HYDROGRAPH!B67),0) -> 0.000 | D67: 0.000 | E67: 0.000 | F67: 0.000 | G67: =FINTERP(REFERENCE!$W$17:$W$67,REFERENCE!$V$17:$V$67,HYDROGRAPH!F67) -> 0.000 | H67: =(F67-G67)/2*REFERENCE!$P$19 -> 0.000 | I67: =(FINTERP('STAGE-STORAGE'!$D$4:$D$54,'STAGE-STORAGE'!$A$4:$A$54,H67)) -> 0
A68: 65 | B68: 10.667 | C68: =IF(B68<(MAX(USER_INPUT!$J$14:$J$2000)),FINTERP(USER_INPUT!$J$14:$J$2000,USER_INPUT!$K$14:$K$2000,HYDROGRAPH!B68),0) -> 0.000 | D68: 0.000 | E68: 0.000 | F68: 0.000 | G68: =FINTERP(REFERENCE!$W$17:$W$67,REFERENCE!$V$17:$V$67,HYDROGRAPH!F68) -> 0.000 | H68: =(F68-G68)/2*REFERENCE!$P$19 -> 0.000 | I68: =(FINTERP('STAGE-STORAGE'!$D$4:$D$54,'STAGE-STORAGE'!$A$4:$A$54,H68)) -> 0
A69: 66 | B69: 10.833 | C69: =IF(B69<(MAX(USER_INPUT!$J$14:$J$2000)),FINTERP(USER_INPUT!$J$14:$J$2000,USER_INPUT!$K$14:$K$2000,HYDROGRAPH!B69),0) -> 0.000 | D69: =C69+C70 -> 0.000 | E69: 0.000 | F69: 0.000 | G69: =FINTERP(REFERENCE!$W$17:$W$67,REFERENCE!$V$17:$V$67,HYDROGRAPH!F69) -> 0.000 | H69: =(F69-G69)/2*REFERENCE!$P$19 -> 0.000 | I69: =(FINTERP('STAGE-STORAGE'!$D$4:$D$54,'STAGE-STORAGE'!$A$4:$A$54,H69)) -> 0
A70: 67 | B70: 11.000 | C70: =IF(B70<(MAX(USER_INPUT!$J$14:$J$2000)),FINTERP(USER_INPUT!$J$14:$J$2000,USER_INPUT!$K$14:$K$2000,HYDROGRAPH!B70),0) -> 0.000 | D70: 0.000 | E70: 0.000 | F70: 0.000 | G70: =FINTERP(REFERENCE!$W$17:$W$67,REFERENCE!$V$17:$V$67,HYDROGRAPH!F70) -> 0.000 | H70: =(F70-G70)/2*REFERENCE!$P$19 -> 0.000 | I70: =(FINTERP('STAGE-STORAGE'!$D$4:$D$54,'STAGE-STORAGE'!$A$4:$A$54,H70)) -> 0
A71: 68 | B71: =$B$5*A70 -> 11.167 | C71: =IF(B71<(MAX(USER_INPUT!$J$14:$J$2000)),FINTERP(USER_INPUT!$J$14:$J$2000,USER_INPUT!$K$14:$K$2000,HYDROGRAPH!B71),0) -> 0.000 | D71: 0.000 | E71: 0.000 | F71: 0.000 | G71: =FINTERP(REFERENCE!$W$17:$W$67,REFERENCE!$V$17:$V$67,HYDROGRAPH!F71) -> 0.000 | H71: =(F71-G71)/2*REFERENCE!$P$19 -> 0.000 | I71: =(FINTERP('STAGE-STORAGE'!$D$4:$D$54,'STAGE-STORAGE'!$A$4:$A$54,H71)) -> 0
A72: 69 | B72: 11.333 | C72: =IF(B72<(MAX(USER_INPUT!$J$14:$J$2000)),FINTERP(USER_INPUT!$J$14:$J$2000,USER_INPUT!$K$14:$K$2000,HYDROGRAPH!B72),0) -> 0.000 | D72: 0.000 | E72: 0.000 | F72: 0.000 | G72: =FINTERP(REFERENCE!$W$17:$W$67,REFERENCE!$V$17:$V$67,HYDROGRAPH!F72) -> 0.000 | H72: =(F72-G72)/2*REFERENCE!$P$19 -> 0.000 | I72: =(FINTERP('STAGE-STORAGE'!$D$4:$D$54,'STAGE-STORAGE'!$A$4:$A$54,H72)) -> 0
A73: 70 | B73: 11.500 | C73: =IF(B73<(MAX(USER_INPUT!$J$14:$J$2000)),FINTERP(USER_INPUT!$J$14:$J$2000,USER_INPUT!$K$14:$K$2000,HYDROGRAPH!B73),0) -> 0.000 | D73: 0.000 | E73: =F72-(2*G72) -> 0.000 | F73: =D73+E73 -> 0.000 | G73: =FINTERP(REFERENCE!$W$17:$W$67,REFERENCE!$V$17:$V$67,HYDROGRAPH!F73) -> 0.000 | H73: =(F73-G73)/2*REFERENCE!$P$19 -> 0.000 | I73: =(FINTERP('STAGE-STORAGE'!$D$4:$D$54,'STAGE-STORAGE'!$A$4:$A$54,H73)) -> 0
A74: 71 | B74: 11.667 | C74: =IF(B74<(MAX(USER_INPUT!$J$14:$J$2000)),FINTERP(USER_INPUT!$J$14:$J$2000,USER_INPUT!$K$14:$K$2000,HYDROGRAPH!B74),0) -> 0.000 | D74: 0.000 | E74: 0.000 | F74: 0.000 | G74: =FINTERP(REFERENCE!$W$17:$W$67,REFERENCE!$V$17:$V$67,HYDROGRAPH!F74) -> 0.000 | H74: =(F74-G74)/2*REFERENCE!$P$19 -> 0.000 | I74: =(FINTERP('STAGE-STORAGE'!$D$4:$D$54,'STAGE-STORAGE'!$A$4:$A$54,H74)) -> 0
A75: 72 | B75: 11.833 | C75: =IF(B75<(MAX(USER_INPUT!$J$14:$J$2000)),FINTERP(USER_INPUT!$J$14:$J$2000,USER_INPUT!$K$14:$K$2000,HYDROGRAPH!B75),0) -> 0.000 | D75: 0.000 | E75: 0.000 | F75: 0.000 | G75: =FINTERP(REFERENCE!$W$17:$W$67,REFERENCE!$V$17:$V$67,HYDROGRAPH!F75) -> 0.000 | H75: =(F75-G75)/2*REFERENCE!$P$19 -> 0.000 | I75: =(FINTERP('STAGE-STORAGE'!$D$4:$D$54,'STAGE-STORAGE'!$A$4:$A$54,H75)) -> 0
A76: 73 | B76: 12.000 | C76: =IF(B76<(MAX(USER_INPUT!$J$14:$J$2000)),FINTERP(USER_INPUT!$J$14:$J$2000,USER_INPUT!$K$14:$K$2000,HYDROGRAPH!B76),0) -> 0.000 | D76: 0.000 | E76: 0.000 | F76: 0.000 | G76: =FINTERP(REFERENCE!$W$17:$W$67,REFERENCE!$V$17:$V$67,HYDROGRAPH!F76) -> 0.000 | H76: =(F76-G76)/2*REFERENCE!$P$19 -> 0.000 | I76: =(FINTERP('STAGE-STORAGE'!$D$4:$D$54,'STAGE-STORAGE'!$A$4:$A$54,H76)) -> 0
A77: 74 | B77: 12.167 | C77: =IF(B77<(MAX(USER_INPUT!$J$14:$J$2000)),FINTERP(USER_INPUT!$J$14:$J$2000,USER_INPUT!$K$14:$K$2000,HYDROGRAPH!B77),0) -> 0.000 | D77: 0.000 | E77: 0.000 | F77: 0.000 | G77: =FINTERP(REFERENCE!$W$17:$W$67,REFERENCE!$V$17:$V$67,HYDROGRAPH!F77) -> 0.000 | H77: =(F77-G77)/2*REFERENCE!$P$19 -> 0.000 | I77: =(FINTERP('STAGE-STORAGE'!$D$4:$D$54,'STAGE-STORAGE'!$A$4:$A$54,H77)) -> 0
A78: 75 | B78: 12.333 | C78: =IF(B78<(MAX(USER_INPUT!$J$14:$J$2000)),FINTERP(USER_INPUT!$J$14:$J$2000,USER_INPUT!$K$14:$K$2000,HYDROGRAPH!B78),0) -> 0.000 | D78: 0.000 | E78: 0.000 | F78: 0.000 | G78: =FINTERP(REFERENCE!$W$17:$W$67,REFERENCE!$V$17:$V$67,HYDROGRAPH!F78) -> 0.000 | H78: =(F78-G78)/2*REFERENCE!$P$19 -> 0.000 | I78: =(FINTERP('STAGE-STORAGE'!$D$4:$D$54,'STAGE-STORAGE'!$A$4:$A$54,H78)) -> 0
A79: 76 | B79: 12.500 | C79: =IF(B79<(MAX(USER_INPUT!$J$14:$J$2000)),FINTERP(USER_INPUT!$J$14:$J$2000,USER_INPUT!$K$14:$K$2000,HYDROGRAPH!B79),0) -> 0.000 | D79: 0.000 | E79: 0.000 | F79: 0.000 | G79: =FINTERP(REFERENCE!$W$17:$W$67,REFERENCE!$V$17:$V$67,HYDROGRAPH!F79) -> 0.000 | H79: =(F79-G79)/2*REFERENCE!$P$19 -> 0.000 | I79: =(FINTERP('STAGE-STORAGE'!$D$4:$D$54,'STAGE-STORAGE'!$A$4:$A$54,H79)) -> 0
A80: 77 | B80: 12.667 | C80: =IF(B80<(MAX(USER_INPUT!$J$14:$J$2000)),FINTERP(USER_INPUT!$J$14:$J$2000,USER_INPUT!$K$14:$K$2000,HYDROGRAPH!B80),0) -> 0.000 | D80: 0.000 | E80: 0.000 | F80: 0.000 | G80: =FINTERP(REFERENCE!$W$17:$W$67,REFERENCE!$V$17:$V$67,HYDROGRAPH!F80) -> 0.000 | H80: =(F80-G80)/2*REFERENCE!$P$19 -> 0.000 | I80: =(FINTERP('STAGE-STORAGE'!$D$4:$D$54,'STAGE-STORAGE'!$A$4:$A$54,H80)) -> 0
A81: 78 | B81: 12.833 | C81: =IF(B81<(MAX(USER_INPUT!$J$14:$J$2000)),FINTERP(USER_INPUT!$J$14:$J$2000,USER_INPUT!$K$14:$K$2000,HYDROGRAPH!B81),0) -> 0.000 | D81: 0.000 | E81: 0.000 | F81: 0.000 | G81: =FINTERP(REFERENCE!$W$17:$W$67,REFERENCE!$V$17:$V$67,HYDROGRAPH!F81) -> 0.000 | H81: =(F81-G81)/2*REFERENCE!$P$19 -> 0.000 | I81: =(FINTERP('STAGE-STORAGE'!$D$4:$D$54,'STAGE-STORAGE'!$A$4:$A$54,H81)) -> 0
A82: 79 | B82: 13.000 | C82: =IF(B82<(MAX(USER_INPUT!$J$14:$J$2000)),FINTERP(USER_INPUT!$J$14:$J$2000,USER_INPUT!$K$14:$K$2000,HYDROGRAPH!B82),0) -> 0.000 | D82: 0.000 | E82: 0.000 | F82: 0.000 | G82: =FINTERP(REFERENCE!$W$17:$W$67,REFERENCE!$V$17:$V$67,HYDROGRAPH!F82) -> 0.000 | H82: =(F82-G82)/2*REFERENCE!$P$19 -> 0.000 | I82: =(FINTERP('STAGE-STORAGE'!$D$4:$D$54,'STAGE-STORAGE'!$A$4:$A$54,H82)) -> 0
A83: 80 | B83: 13.167 | C83: =IF(B83<(MAX(USER_INPUT!$J$14:$J$2000)),FINTERP(USER_INPUT!$J$14:$J$2000,USER_INPUT!$K$14:$K$2000,HYDROGRAPH!B83),0) -> 0.000 | D83: 0.000 | E83: 0.000 | F83: 0.000 | G83: =FINTERP(REFERENCE!$W$17:$W$67,REFERENCE!$V$17:$V$67,HYDROGRAPH!F83) -> 0.000 | H83: =(F83-G83)/2*REFERENCE!$P$19 -> 0.000 | I83: =(FINTERP('STAGE-STORAGE'!$D$4:$D$54,'STAGE-STORAGE'!$A$4:$A$54,H83)) -> 0
A84: 81 | B84: 13.333 | C84: =IF(B84<(MAX(USER_INPUT!$J$14:$J$2000)),FINTERP(USER_INPUT!$J$14:$J$2000,USER_INPUT!$K$14:$K$2000,HYDROGRAPH!B84),0) -> 0.000 | D84: 0.000 | E84: 0.000 | F84: 0.000 | G84: =FINTERP(REFERENCE!$W$17:$W$67,REFERENCE!$V$17:$V$67,HYDROGRAPH!F84) -> 0.000 | H84: =(F84-G84)/2*REFERENCE!$P$19 -> 0.000 | I84: =(FINTERP('STAGE-STORAGE'!$D$4:$D$54,'STAGE-STORAGE'!$A$4:$A$54,H84)) -> 0
A85: 82 | B85: 13.500 | C85: =IF(B85<(MAX(USER_INPUT!$J$14:$J$2000)),FINTERP(USER_INPUT!$J$14:$J$2000,USER_INPUT!$K$14:$K$2000,HYDROGRAPH!B85),0) -> 0.000 | D85: 0.000 | E85: 0.000 | F85: 0.000 | G85: =FINTERP(REFERENCE!$W$17:$W$67,REFERENCE!$V$17:$V$67,HYDROGRAPH!F85) -> 0.000 | H85: =(F85-G85)/2*REFERENCE!$P$19 -> 0.000 | I85: =(FINTERP('STAGE-STORAGE'!$D$4:$D$54,'STAGE-STORAGE'!$A$4:$A$54,H85)) -> 0
A86: 83 | B86: 13.667 | C86: =IF(B86<(MAX(USER_INPUT!$J$14:$J$2000)),FINTERP(USER_INPUT!$J$14:$J$2000,USER_INPUT!$K$14:$K$2000,HYDROGRAPH!B86),0) -> 0.000 | D86: 0.000 | E86: 0.000 | F86: 0.000 | G86: =FINTERP(REFERENCE!$W$17:$W$67,REFERENCE!$V$17:$V$67,HYDROGRAPH!F86) -> 0.000 | H86: =(F86-G86)/2*REFERENCE!$P$19 -> 0.000 | I86: =(FINTERP('STAGE-STORAGE'!$D$4:$D$54,'STAGE-STORAGE'!$A$4:$A$54,H86)) -> 0
A87: 84 | B87: 13.833 | C87: =IF(B87<(MAX(USER_INPUT!$J$14:$J$2000)),FINTERP(USER_INPUT!$J$14:$J$2000,USER_INPUT!$K$14:$K$2000,HYDROGRAPH!B87),0) -> 0.000 | D87: 0.000 | E87: 0.000 | F87: 0.000 | G87: =FINTERP(REFERENCE!$W$17:$W$67,REFERENCE!$V$17:$V$67,HYDROGRAPH!F87) -> 0.000 | H87: =(F87-G87)/2*REFERENCE!$P$19 -> 0.000 | I87: =(FINTERP('STAGE-STORAGE'!$D$4:$D$54,'STAGE-STORAGE'!$A$4:$A$54,H87)) -> 0
A88: 85 | B88: 14.000 | C88: =IF(B88<(MAX(USER_INPUT!$J$14:$J$2000)),FINTERP(USER_INPUT!$J$14:$J$2000,USER_INPUT!$K$14:$K$2000,HYDROGRAPH!B88),0) -> 0.000 | D88: 0.000 | E88: 0.000 | F88: 0.000 | G88: =FINTERP(REFERENCE!$W$17:$W$67,REFERENCE!$V$17:$V$67,HYDROGRAPH!F88) -> 0.000 | H88: =(F88-G88)/2*REFERENCE!$P$19 -> 0.000 | I88: =(FINTERP('STAGE-STORAGE'!$D$4:$D$54,'STAGE-STORAGE'!$A$4:$A$54,H88)) -> 0
A89: 86 | B89: 14.167 | C89: =IF(B89<(MAX(USER_INPUT!$J$14:$J$2000)),FINTERP(USER_INPUT!$J$14:$J$2000,USER_INPUT!$K$14:$K$2000,HYDROGRAPH!B89),0) -> 0.000 | D89: 0.000 | E89: 0.000 | F89: 0.000 | G89: =FINTERP(REFERENCE!$W$17:$W$67,REFERENCE!$V$17:$V$67,HYDROGRAPH!F89) -> 0.000 | H89: =(F89-G89)/2*REFERENCE!$P$19 -> 0.000 | I89: =(FINTERP('STAGE-STORAGE'!$D$4:$D$54,'STAGE-STORAGE'!$A$4:$A$54,H89)) -> 0
A90: 87 | B90: 14.333 | C90: =IF(B90<(MAX(USER_INPUT!$J$14:$J$2000)),FINTERP(USER_INPUT!$J$14:$J$2000,USER_INPUT!$K$14:$K$2000,HYDROGRAPH!B90),0) -> 0.000 | D90: 0.000 | E90: 0.000 | F90: 0.000 | G90: =FINTERP(REFERENCE!$W$17:$W$67,REFERENCE!$V$17:$V$67,HYDROGRAPH!F90) -> 0.000 | H90: =(F90-G90)/2*REFERENCE!$P$19 -> 0.000 | I90: =(FINTERP('STAGE-STORAGE'!$D$4:$D$54,'STAGE-STORAGE'!$A$4:$A$54,H90)) -> 0
A91: 88 | B91: 14.500 | C91: =IF(B91<(MAX(USER_INPUT!$J$14:$J$2000)),FINTERP(USER_INPUT!$J$14:$J$2000,USER_INPUT!$K$14:$K$2000,HYDROGRAPH!B91),0) -> 0.000 | D91: 0.000 | E91: 0.000 | F91: 0.000 | G91: =FINTERP(REFERENCE!$W$17:$W$67,REFERENCE!$V$17:$V$67,HYDROGRAPH!F91) -> 0.000 | H91: =(F91-G91)/2*REFERENCE!$P$19 -> 0.000 | I91: =(FINTERP('STAGE-STORAGE'!$D$4:$D$54,'STAGE-STORAGE'!$A$4:$A$54,H91)) -> 0
A92: 89 | B92: 14.667 | C92: =IF(B92<(MAX(USER_INPUT!$J$14:$J$2000)),FINTERP(USER_INPUT!$J$14:$J$2000,USER_INPUT!$K$14:$K$2000,HYDROGRAPH!B92),0) -> 0.000 | D92: 0.000 | E92: 0.000 | F92: 0.000 | G92: =FINTERP(REFERENCE!$W$17:$W$67,REFERENCE!$V$17:$V$67,HYDROGRAPH!F92) -> 0.000 | H92: =(F92-G92)/2*REFERENCE!$P$19 -> 0.000 | I92: =(FINTERP('STAGE-STORAGE'!$D$4:$D$54,'STAGE-STORAGE'!$A$4:$A$54,H92)) -> 0
A93: 90 | B93: 14.833 | C93: =IF(B93<(MAX(USER_INPUT!$J$14:$J$2000)),FINTERP(USER_INPUT!$J$14:$J$2000,USER_INPUT!$K$14:$K$2000,HYDROGRAPH!B93),0) -> 0.000 | D93: 0.000 | E93: 0.000 | F93: 0.000 | G93: =FINTERP(REFERENCE!$W$17:$W$67,REFERENCE!$V$17:$V$67,HYDROGRAPH!F93) -> 0.000 | H93: =(F93-G93)/2*REFERENCE!$P$19 -> 0.000 | I93: =(FINTERP('STAGE-STORAGE'!$D$4:$D$54,'STAGE-STORAGE'!$A$4:$A$54,H93)) -> 0
A94: 91 | B94: 15.000 | C94: =IF(B94<(MAX(USER_INPUT!$J$14:$J$2000)),FINTERP(USER_INPUT!$J$14:$J$2000,USER_INPUT!$K$14:$K$2000,HYDROGRAPH!B94),0) -> 0.000 | D94: 0.000 | E94: 0.000 | F94: 0.000 | G94: =FINTERP(REFERENCE!$W$17:$W$67,REFERENCE!$V$17:$V$67,HYDROGRAPH!F94) -> 0.000 | H94: =(F94-G94)/2*REFERENCE!$P$19 -> 0.000 | I94: =(FINTERP('STAGE-STORAGE'!$D$4:$D$54,'STAGE-STORAGE'!$A$4:$A$54,H94)) -> 0
A95: 92 | B95: 15.167 | C95: =IF(B95<(MAX(USER_INPUT!$J$14:$J$2000)),FINTERP(USER_INPUT!$J$14:$J$2000,USER_INPUT!$K$14:$K$2000,HYDROGRAPH!B95),0) -> 0.000 | D95: 0.000 | E95: 0.000 | F95: 0.000 | G95: =FINTERP(REFERENCE!$W$17:$W$67,REFERENCE!$V$17:$V$67,HYDROGRAPH!F95) -> 0.000 | H95: =(F95-G95)/2*REFERENCE!$P$19 -> 0.000 | I95: =(FINTERP('STAGE-STORAGE'!$D$4:$D$54,'STAGE-STORAGE'!$A$4:$A$54,H95)) -> 0
A96: 93 | B96: 15.333 | C96: =IF(B96<(MAX(USER_INPUT!$J$14:$J$2000)),FINTERP(USER_INPUT!$J$14:$J$2000,USER_INPUT!$K$14:$K$2000,HYDROGRAPH!B96),0) -> 0.000 | D96: 0.000 | E96: 0.000 | F96: 0.000 | G96: =FINTERP(REFERENCE!$W$17:$W$67,REFERENCE!$V$17:$V$67,HYDROGRAPH!F96) -> 0.000 | H96: =(F96-G96)/2*REFERENCE!$P$19 -> 0.000 | I96: =(FINTERP('STAGE-STORAGE'!$D$4:$D$54,'STAGE-STORAGE'!$A$4:$A$54,H96)) -> 0
A97: 94 | B97: 15.500 | C97: =IF(B97<(MAX(USER_INPUT!$J$14:$J$2000)),FINTERP(USER_INPUT!$J$14:$J$2000,USER_INPUT!$K$14:$K$2000,HYDROGRAPH!B97),0) -> 0.000 | D97: 0.000 | E97: 0.000 | F97: 0.000 | G97: =FINTERP(REFERENCE!$W$17:$W$67,REFERENCE!$V$17:$V$67,HYDROGRAPH!F97) -> 0.000 | H97: =(F97-G97)/2*REFERENCE!$P$19 -> 0.000 | I97: =(FINTERP('STAGE-STORAGE'!$D$4:$D$54,'STAGE-STORAGE'!$A$4:$A$54,H97)) -> 0
A98: 95 | B98: 15.667 | C98: =IF(B98<(MAX(USER_INPUT!$J$14:$J$2000)),FINTERP(USER_INPUT!$J$14:$J$2000,USER_INPUT!$K$14:$K$2000,HYDROGRAPH!B98),0) -> 0.000 | D98: 0.000 | E98: 0.000 | F98: 0.000 | G98: =FINTERP(REFERENCE!$W$17:$W$67,REFERENCE!$V$17:$V$67,HYDROGRAPH!F98) -> 0.000 | H98: =(F98-G98)/2*REFERENCE!$P$19 -> 0.000 | I98: =(FINTERP('STAGE-STORAGE'!$D$4:$D$54,'STAGE-STORAGE'!$A$4:$A$54,H98)) -> 0
A99: 96 | B99: 15.833 | C99: =IF(B99<(MAX(USER_INPUT!$J$14:$J$2000)),FINTERP(USER_INPUT!$J$14:$J$2000,USER_INPUT!$K$14:$K$2000,HYDROGRAPH!B99),0) -> 0.000 | D99: 0.000 | E99: 0.000 | F99: 0.000 | G99: =FINTERP(REFERENCE!$W$17:$W$67,REFERENCE!$V$17:$V$67,HYDROGRAPH!F99) -> 0.000 | H99: =(F99-G99)/2*REFERENCE!$P$19 -> 0.000 | I99: =(FINTERP('STAGE-STORAGE'!$D$4:$D$54,'STAGE-STORAGE'!$A$4:$A$54,H99)) -> 0
A100: 97 | B100: 16.000 | C100: =IF(B100<(MAX(USER_INPUT!$J$14:$J$2000)),FINTERP(USER_INPUT!$J$14:$J$2000,USER_INPUT!$K$14:$K$2000,HYDROGRAPH!B100),0) -> 0.000 | D100: 0.000 | E100: 0.000 | F100: 0.000 | G100: =FINTERP(REFERENCE!$W$17:$W$67,REFERENCE!$V$17:$V$67,HYDROGRAPH!F100) -> 0.000 | H100: =(F100-G100)/2*REFERENCE!$P$19 -> 0.000 | I100: =(FINTERP('STAGE-STORAGE'!$D$4:$D$54,'STAGE-STORAGE'!$A$4:$A$54,H100)) -> 0
A101: 98 | B101: 16.167 | C101: =IF(B101<(MAX(USER_INPUT!$J$14:$J$2000)),FINTERP(USER_INPUT!$J$14:$J$2000,USER_INPUT!$K$14:$K$2000,HYDROGRAPH!B101),0) -> 0.000 | D101: 0.000 | E101: 0.000 | F101: 0.000 | G101: =FINTERP(REFERENCE!$W$17:$W$67,REFERENCE!$V$17:$V$67,HYDROGRAPH!F101) -> 0.000 | H101: =(F101-G101)/2*REFERENCE!$P$19 -> 0.000 | I101: =(FINTERP('STAGE-STORAGE'!$D$4:$D$54,'STAGE-STORAGE'!$A$4:$A$54,H101)) -> 0
A102: 99 | B102: 16.333 | C102: =IF(B102<(MAX(USER_INPUT!$J$14:$J$2000)),FINTERP(USER_INPUT!$J$14:$J$2000,USER_INPUT!$K$14:$K$2000,HYDROGRAPH!B102),0) -> 0.000 | D102: 0.000 | E102: 0.000 | F102: 0.000 | G102: =FINTERP(REFERENCE!$W$17:$W$67,REFERENCE!$V$17:$V$67,HYDROGRAPH!F102) -> 0.000 | H102: =(F102-G102)/2*REFERENCE!$P$19 -> 0.000 | I102: =(FINTERP('STAGE-STORAGE'!$D$4:$D$54,'STAGE-STORAGE'!$A$4:$A$54,H102)) -> 0
A103: 100 | B103: 16.500 | C103: =IF(B103<(MAX(USER_INPUT!$J$14:$J$2000)),FINTERP(USER_INPUT!$J$14:$J$2000,USER_INPUT!$K$14:$K$2000,HYDROGRAPH!B103),0) -> 0.000 | D103: 0.000 | E103: 0.000 | F103: 0.000 | G103: =FINTERP(REFERENCE!$W$17:$W$67,REFERENCE!$V$17:$V$67,HYDROGRAPH!F103) -> 0.000 | H103: =(F103-G103)/2*REFERENCE!$P$19 -> 0.000 | I103: =(FINTERP('STAGE-STORAGE'!$D$4:$D$54,'STAGE-STORAGE'!$A$4:$A$54,H103)) -> 0
A104: 101 | B104: 16.667 | C104: =IF(B104<(MAX(USER_INPUT!$J$14:$J$2000)),FINTERP(USER_INPUT!$J$14:$J$2000,USER_INPUT!$K$14:$K$2000,HYDROGRAPH!B104),0) -> 0.000 | D104: 0.000 | E104: 0.000 | F104: 0.000 | G104: =FINTERP(REFERENCE!$W$17:$W$67,REFERENCE!$V$17:$V$67,HYDROGRAPH!F104) -> 0.000 | H104: =(F104-G104)/2*REFERENCE!$P$19 -> 0.000 | I104: =(FINTERP('STAGE-STORAGE'!$D$4:$D$54,'STAGE-STORAGE'!$A$4:$A$54,H104)) -> 0
A105: 102 | B105: 16.833 | C105: =IF(B105<(MAX(USER_INPUT!$J$14:$J$2000)),FINTERP(USER_INPUT!$J$14:$J$2000,USER_INPUT!$K$14:$K$2000,HYDROGRAPH!B105),0) -> 0.000 | D105: 0.000 | E105: 0.000 | F105: 0.000 | G105: =FINTERP(REFERENCE!$W$17:$W$67,REFERENCE!$V$17:$V$67,HYDROGRAPH!F105) -> 0.000 | H105: =(F105-G105)/2*REFERENCE!$P$19 -> 0.000 | I105: =(FINTERP('STAGE-STORAGE'!$D$4:$D$54,'STAGE-STORAGE'!$A$4:$A$54,H105)) -> 0
A106: 103 | B106: 17.000 | C106: =IF(B106<(MAX(USER_INPUT!$J$14:$J$2000)),FINTERP(USER_INPUT!$J$14:$J$2000,USER_INPUT!$K$14:$K$2000,HYDROGRAPH!B106),0) -> 0.000 | D106: 0.000 | E106: 0.000 | F106: 0.000 | G106: =FINTERP(REFERENCE!$W$17:$W$67,REFERENCE!$V$17:$V$67,HYDROGRAPH!F106) -> 0.000 | H106: =(F106-G106)/2*REFERENCE!$P$19 -> 0.000 | I106: =(FINTERP('STAGE-STORAGE'!$D$4:$D$54,'STAGE-STORAGE'!$A$4:$A$54,H106)) -> 0
A107: 104 | B107: 17.167 | C107: =IF(B107<(MAX(USER_INPUT!$J$14:$J$2000)),FINTERP(USER_INPUT!$J$14:$J$2000,USER_INPUT!$K$14:$K$2000,HYDROGRAPH!B107),0) -> 0.000 | D107: 0.000 | E107: 0.000 | F107: 0.000 | G107: =FINTERP(REFERENCE!$W$17:$W$67,REFERENCE!$V$17:$V$67,HYDROGRAPH!F107) -> 0.000 | H107: =(F107-G107)/2*REFERENCE!$P$19 -> 0.000 | I107: =(FINTERP('STAGE-STORAGE'!$D$4:$D$54,'STAGE-STORAGE'!$A$4:$A$54,H107)) -> 0
A108: 105 | B108: 17.333 | C108: =IF(B108<(MAX(USER_INPUT!$J$14:$J$2000)),FINTERP(USER_INPUT!$J$14:$J$2000,USER_INPUT!$K$14:$K$2000,HYDROGRAPH!B108),0) -> 0.000 | D108: 0.000 | E108: 0.000 | F108: 0.000 | G108: =FINTERP(REFERENCE!$W$17:$W$67,REFERENCE!$V$17:$V$67,HYDROGRAPH!F108) -> 0.000 | H108: =(F108-G108)/2*REFERENCE!$P$19 -> 0.000 | I108: =(FINTERP('STAGE-STORAGE'!$D$4:$D$54,'STAGE-STORAGE'!$A$4:$A$54,H108)) -> 0
A109: 106 | B109: 17.500 | C109: =IF(B109<(MAX(USER_INPUT!$J$14:$J$2000)),FINTERP(USER_INPUT!$J$14:$J$2000,USER_INPUT!$K$14:$K$2000,HYDROGRAPH!B109),0) -> 0.000 | D109: 0.000 | E109: 0.000 | F109: 0.000 | G109: =FINTERP(REFERENCE!$W$17:$W$67,REFERENCE!$V$17:$V$67,HYDROGRAPH!F109) -> 0.000 | H109: =(F109-G109)/2*REFERENCE!$P$19 -> 0.000 | I109: =(FINTERP('STAGE-STORAGE'!$D$4:$D$54,'STAGE-STORAGE'!$A$4:$A$54,H109)) -> 0
A110: 107 | B110: 17.667 | C110: =IF(B110<(MAX(USER_INPUT!$J$14:$J$2000)),FINTERP(USER_INPUT!$J$14:$J$2000,USER_INPUT!$K$14:$K$2000,HYDROGRAPH!B110),0) -> 0.000 | D110: 0.000 | E110: 0.000 | F110: 0.000 | G110: =FINTERP(REFERENCE!$W$17:$W$67,REFERENCE!$V$17:$V$67,HYDROGRAPH!F110) -> 0.000 | H110: =(F110-G110)/2*REFERENCE!$P$19 -> 0.000 | I110: =(FINTERP('STAGE-STORAGE'!$D$4:$D$54,'STAGE-STORAGE'!$A$4:$A$54,H110)) -> 0
A111: 108 | B111: 17.833 | C111: =IF(B111<(MAX(USER_INPUT!$J$14:$J$2000)),FINTERP(USER_INPUT!$J$14:$J$2000,USER_INPUT!$K$14:$K$2000,HYDROGRAPH!B111),0) -> 0.000 | D111: 0.000 | E111: 0.000 | F111: 0.000 | G111: =FINTERP(REFERENCE!$W$17:$W$67,REFERENCE!$V$17:$V$67,HYDROGRAPH!F111) -> 0.000 | H111: =(F111-G111)/2*REFERENCE!$P$19 -> 0.000 | I111: =(FINTERP('STAGE-STORAGE'!$D$4:$D$54,'STAGE-STORAGE'!$A$4:$A$54,H111)) -> 0
A112: 109 | B112: 18.000 | C112: =IF(B112<(MAX(USER_INPUT!$J$14:$J$2000)),FINTERP(USER_INPUT!$J$14:$J$2000,USER_INPUT!$K$14:$K$2000,HYDROGRAPH!B112),0) -> 0.000 | D112: 0.000 | E112: 0.000 | F112: 0.000 | G112: =FINTERP(REFERENCE!$W$17:$W$67,REFERENCE!$V$17:$V$67,HYDROGRAPH!F112) -> 0.000 | H112: =(F112-G112)/2*REFERENCE!$P$19 -> 0.000 | I112: =(FINTERP('STAGE-STORAGE'!$D$4:$D$54,'STAGE-STORAGE'!$A$4:$A$54,H112)) -> 0
A113: 110 | B113: 18.167 | C113: =IF(B113<(MAX(USER_INPUT!$J$14:$J$2000)),FINTERP(USER_INPUT!$J$14:$J$2000,USER_INPUT!$K$14:$K$2000,HYDROGRAPH!B113),0) -> 0.000 | D113: 0.000 | E113: 0.000 | F113: 0.000 | G113: =FINTERP(REFERENCE!$W$17:$W$67,REFERENCE!$V$17:$V$67,HYDROGRAPH!F113) -> 0.000 | H113: =(F113-G113)/2*REFERENCE!$P$19 -> 0.000 | I113: =(FINTERP('STAGE-STORAGE'!$D$4:$D$54,'STAGE-STORAGE'!$A$4:$A$54,H113)) -> 0
A114: 111 | B114: 18.333 | C114: =IF(B114<(MAX(USER_INPUT!$J$14:$J$2000)),FINTERP(USER_INPUT!$J$14:$J$2000,USER_INPUT!$K$14:$K$2000,HYDROGRAPH!B114),0) -> 0.000 | D114: 0.000 | E114: 0.000 | F114: 0.000 | G114: =FINTERP(REFERENCE!$W$17:$W$67,REFERENCE!$V$17:$V$67,HYDROGRAPH!F114) -> 0.000 | H114: =(F114-G114)/2*REFERENCE!$P$19 -> 0.000 | I114: =(FINTERP('STAGE-STORAGE'!$D$4:$D$54,'STAGE-STORAGE'!$A$4:$A$54,H114)) -> 0
A115: 112 | B115: 18.500 | C115: =IF(B115<(MAX(USER_INPUT!$J$14:$J$2000)),FINTERP(USER_INPUT!$J$14:$J$2000,USER_INPUT!$K$14:$K$2000,HYDROGRAPH!B115),0) -> 0.000 | D115: 0.000 | E115: 0.000 | F115: 0.000 | G115: =FINTERP(REFERENCE!$W$17:$W$67,REFERENCE!$V$17:$V$67,HYDROGRAPH!F115) -> 0.000 | H115: =(F115-G115)/2*REFERENCE!$P$19 -> 0.000 | I115: =(FINTERP('STAGE-STORAGE'!$D$4:$D$54,'STAGE-STORAGE'!$A$4:$A$54,H115)) -> 0
A116: 113 | B116: 18.667 | C116: =IF(B116<(MAX(USER_INPUT!$J$14:$J$2000)),FINTERP(USER_INPUT!$J$14:$J$2000,USER_INPUT!$K$14:$K$2000,HYDROGRAPH!B116),0) -> 0.000 | D116: 0.000 | E116: 0.000 | F116: 0.000 | G116: =FINTERP(REFERENCE!$W$17:$W$67,REFERENCE!$V$17:$V$67,HYDROGRAPH!F116) -> 0.000 | H116: =(F116-G116)/2*REFERENCE!$P$19 -> 0.000 | I116: =(FINTERP('STAGE-STORAGE'!$D$4:$D$54,'STAGE-STORAGE'!$A$4:$A$54,H116)) -> 0
A117: 114 | B117: 18.833 | C117: =IF(B117<(MAX(USER_INPUT!$J$14:$J$2000)),FINTERP(USER_INPUT!$J$14:$J$2000,USER_INPUT!$K$14:$K$2000,HYDROGRAPH!B117),0) -> 0.000 | D117: 0.000 | E117: 0.000 | F117: 0.000 | G117: =FINTERP(REFERENCE!$W$17:$W$67,REFERENCE!$V$17:$V$67,HYDROGRAPH!F117) -> 0.000 | H117: =(F117-G117)/2*REFERENCE!$P$19 -> 0.000 | I117: =(FINTERP('STAGE-STORAGE'!$D$4:$D$54,'STAGE-STORAGE'!$A$4:$A$54,H117)) -> 0
A118: 115 | B118: 19.000 | C118: =IF(B118<(MAX(USER_INPUT!$J$14:$J$2000)),FINTERP(USER_INPUT!$J$14:$J$2000,USER_INPUT!$K$14:$K$2000,HYDROGRAPH!B118),0) -> 0.000 | D118: 0.000 | E118: 0.000 | F118: 0.000 | G118: =FINTERP(REFERENCE!$W$17:$W$67,REFERENCE!$V$17:$V$67,HYDROGRAPH!F118) -> 0.000 | H118: =(F118-G118)/2*REFERENCE!$P$19 -> 0.000 | I118: =(FINTERP('STAGE-STORAGE'!$D$4:$D$54,'STAGE-STORAGE'!$A$4:$A$54,H118)) -> 0
A119: 116 | B119: 19.167 | C119: =IF(B119<(MAX(USER_INPUT!$J$14:$J$2000)),FINTERP(USER_INPUT!$J$14:$J$2000,USER_INPUT!$K$14:$K$2000,HYDROGRAPH!B119),0) -> 0.000 | D119: 0.000 | E119: 0.000 | F119: 0.000 | G119: =FINTERP(REFERENCE!$W$17:$W$67,REFERENCE!$V$17:$V$67,HYDROGRAPH!F119) -> 0.000 | H119: =(F119-G119)/2*REFERENCE!$P$19 -> 0.000 | I119: =(FINTERP('STAGE-STORAGE'!$D$4:$D$54,'STAGE-STORAGE'!$A$4:$A$54,H119)) -> 0
A120: 117 | B120: 19.333 | C120: =IF(B120<(MAX(USER_INPUT!$J$14:$J$2000)),FINTERP(USER_INPUT!$J$14:$J$2000,USER_INPUT!$K$14:$K$2000,HYDROGRAPH!B120),0) -> 0.000 | D120: 0.000 | E120: 0.000 | F120: 0.000 | G120: =FINTERP(REFERENCE!$W$17:$W$67,REFERENCE!$V$17:$V$67,HYDROGRAPH!F120) -> 0.000 | H120: =(F120-G120)/2*REFERENCE!$P$19 -> 0.000 | I120: =(FINTERP('STAGE-STORAGE'!$D$4:$D$54,'STAGE-STORAGE'!$A$4:$A$54,H120)) -> 0
A121: 118 | B121: 19.500 | C121: =IF(B121<(MAX(USER_INPUT!$J$14:$J$2000)),FINTERP(USER_INPUT!$J$14:$J$2000,USER_INPUT!$K$14:$K$2000,HYDROGRAPH!B121),0) -> 0.000 | D121: 0.000 | E121: 0.000 | F121: 0.000 | G121: =FINTERP(REFERENCE!$W$17:$W$67,REFERENCE!$V$17:$V$67,HYDROGRAPH!F121) -> 0.000 | H121: =(F121-G121)/2*REFERENCE!$P$19 -> 0.000 | I121: =(FINTERP('STAGE-STORAGE'!$D$4:$D$54,'STAGE-STORAGE'!$A$4:$A$54,H121)) -> 0
A122: 119 | B122: 19.667 | C122: =IF(B122<(MAX(USER_INPUT!$J$14:$J$2000)),FINTERP(USER_INPUT!$J$14:$J$2000,USER_INPUT!$K$14:$K$2000,HYDROGRAPH!B122),0) -> 0.000 | D122: 0.000 | E122: 0.000 | F122: 0.000 | G122: =FINTERP(REFERENCE!$W$17:$W$67,REFERENCE!$V$17:$V$67,HYDROGRAPH!F122) -> 0.000 | H122: =(F122-G122)/2*REFERENCE!$P$19 -> 0.000 | I122: =(FINTERP('STAGE-STORAGE'!$D$4:$D$54,'STAGE-STORAGE'!$A$4:$A$54,H122)) -> 0
A123: 120 | B123: 19.833 | C123: =IF(B123<(MAX(USER_INPUT!$J$14:$J$2000)),FINTERP(USER_INPUT!$J$14:$J$2000,USER_INPUT!$K$14:$K$2000,HYDROGRAPH!B123),0) -> 0.000 | D123: 0.000 | E123: 0.000 | F123: 0.000 | G123: =FINTERP(REFERENCE!$W$17:$W$67,REFERENCE!$V$17:$V$67,HYDROGRAPH!F123) -> 0.000 | H123: =(F123-G123)/2*REFERENCE!$P$19 -> 0.000 | I123: =(FINTERP('STAGE-STORAGE'!$D$4:$D$54,'STAGE-STORAGE'!$A$4:$A$54,H123)) -> 0
A124: 121 | B124: 20.000 | C124: =IF(B124<(MAX(USER_INPUT!$J$14:$J$2000)),FINTERP(USER_INPUT!$J$14:$J$2000,USER_INPUT!$K$14:$K$2000,HYDROGRAPH!B124),0) -> 0.000 | D124: 0.000 | E124: 0.000 | F124: 0.000 | G124: =FINTERP(REFERENCE!$W$17:$W$67,REFERENCE!$V$17:$V$67,HYDROGRAPH!F124) -> 0.000 | H124: =(F124-G124)/2*REFERENCE!$P$19 -> 0.000 | I124: =(FINTERP('STAGE-STORAGE'!$D$4:$D$54,'STAGE-STORAGE'!$A$4:$A$54,H124)) -> 0
A125: 122 | B125: 20.167 | C125: =IF(B125<(MAX(USER_INPUT!$J$14:$J$2000)),FINTERP(USER_INPUT!$J$14:$J$2000,USER_INPUT!$K$14:$K$2000,HYDROGRAPH!B125),0) -> 0.000 | D125: 0.000 | E125: 0.000 | F125: 0.000 | G125: =FINTERP(REFERENCE!$W$17:$W$67,REFERENCE!$V$17:$V$67,HYDROGRAPH!F125) -> 0.000 | H125: =(F125-G125)/2*REFERENCE!$P$19 -> 0.000 | I125: =(FINTERP('STAGE-STORAGE'!$D$4:$D$54,'STAGE-STORAGE'!$A$4:$A$54,H125)) -> 0
A126: 123 | B126: 20.333 | C126: =IF(B126<(MAX(USER_INPUT!$J$14:$J$2000)),FINTERP(USER_INPUT!$J$14:$J$2000,USER_INPUT!$K$14:$K$2000,HYDROGRAPH!B126),0) -> 0.000 | D126: 0.000 | E126: 0.000 | F126: 0.000 | G126: =FINTERP(REFERENCE!$W$17:$W$67,REFERENCE!$V$17:$V$67,HYDROGRAPH!F126) -> 0.000 | H126: =(F126-G126)/2*REFERENCE!$P$19 -> 0.000 | I126: =(FINTERP('STAGE-STORAGE'!$D$4:$D$54,'STAGE-STORAGE'!$A$4:$A$54,H126)) -> 0
A127: 124 | B127: 20.500 | C127: =IF(B127<(MAX(USER_INPUT!$J$14:$J$2000)),FINTERP(USER_INPUT!$J$14:$J$2000,USER_INPUT!$K$14:$K$2000,HYDROGRAPH!B127),0) -> 0.000 | D127: 0.000 | E127: 0.000 | F127: 0.000 | G127: =FINTERP(REFERENCE!$W$17:$W$67,REFERENCE!$V$17:$V$67,HYDROGRAPH!F127) -> 0.000 | H127: =(F127-G127)/2*REFERENCE!$P$19 -> 0.000 | I127: =(FINTERP('STAGE-STORAGE'!$D$4:$D$54,'STAGE-STORAGE'!$A$4:$A$54,H127)) -> 0
A128: 125 | B128: 20.667 | C128: =IF(B128<(MAX(USER_INPUT!$J$14:$J$2000)),FINTERP(USER_INPUT!$J$14:$J$2000,USER_INPUT!$K$14:$K$2000,HYDROGRAPH!B128),0) -> 0.000 | D128: 0.000 | E128: 0.000 | F128: 0.000 | G128: =FINTERP(REFERENCE!$W$17:$W$67,REFERENCE!$V$17:$V$67,HYDROGRAPH!F128) -> 0.000 | H128: =(F128-G128)/2*REFERENCE!$P$19 -> 0.000 | I128: =(FINTERP('STAGE-STORAGE'!$D$4:$D$54,'STAGE-STORAGE'!$A$4:$A$54,H128)) -> 0
A129: 126 | B129: 20.833 | C129: =IF(B129<(MAX(USER_INPUT!$J$14:$J$2000)),FINTERP(USER_INPUT!$J$14:$J$2000,USER_INPUT!$K$14:$K$2000,HYDROGRAPH!B129),0) -> 0.000 | D129: 0.000 | E129: 0.000 | F129: 0.000 | G129: =FINTERP(REFERENCE!$W$17:$W$67,REFERENCE!$V$17:$V$67,HYDROGRAPH!F129) -> 0.000 | H129: =(F129-G129)/2*REFERENCE!$P$19 -> 0.000 | I129: =(FINTERP('STAGE-STORAGE'!$D$4:$D$54,'STAGE-STORAGE'!$A$4:$A$54,H129)) -> 0
A130: 127 | B130: 21.000 | C130: =IF(B130<(MAX(USER_INPUT!$J$14:$J$2000)),FINTERP(USER_INPUT!$J$14:$J$2000,USER_INPUT!$K$14:$K$2000,HYDROGRAPH!B130),0) -> 0.000 | D130: 0.000 | E130: 0.000 | F130: 0.000 | G130: =FINTERP(REFERENCE!$W$17:$W$67,REFERENCE!$V$17:$V$67,HYDROGRAPH!F130) -> 0.000 | H130: =(F130-G130)/2*REFERENCE!$P$19 -> 0.000 | I130: =(FINTERP('STAGE-STORAGE'!$D$4:$D$54,'STAGE-STORAGE'!$A$4:$A$54,H130)) -> 0
A131: 128 | B131: 21.167 | C131: =IF(B131<(MAX(USER_INPUT!$J$14:$J$2000)),FINTERP(USER_INPUT!$J$14:$J$2000,USER_INPUT!$K$14:$K$2000,HYDROGRAPH!B131),0) -> 0.000 | D131: 0.000 | E131: 0.000 | F131: 0.000 | G131: =FINTERP(REFERENCE!$W$17:$W$67,REFERENCE!$V$17:$V$67,HYDROGRAPH!F131) -> 0.000 | H131: =(F131-G131)/2*REFERENCE!$P$19 -> 0.000 | I131: =(FINTERP('STAGE-STORAGE'!$D$4:$D$54,'STAGE-STORAGE'!$A$4:$A$54,H131)) -> 0
A132: 129 | B132: 21.333 | C132: =IF(B132<(MAX(USER_INPUT!$J$14:$J$2000)),FINTERP(USER_INPUT!$J$14:$J$2000,USER_INPUT!$K$14:$K$2000,HYDROGRAPH!B132),0) -> 0.000 | D132: 0.000 | E132: 0.000 | F132: 0.000 | G132: =FINTERP(REFERENCE!$W$17:$W$67,REFERENCE!$V$17:$V$67,HYDROGRAPH!F132) -> 0.000 | H132: =(F132-G132)/2*REFERENCE!$P$19 -> 0.000 | I132: =(FINTERP('STAGE-STORAGE'!$D$4:$D$54,'STAGE-STORAGE'!$A$4:$A$54,H132)) -> 0
A133: 130 | B133: 21.500 | C133: =IF(B133<(MAX(USER_INPUT!$J$14:$J$2000)),FINTERP(USER_INPUT!$J$14:$J$2000,USER_INPUT!$K$14:$K$2000,HYDROGRAPH!B133),0) -> 0.000 | D133: =C133+C134 -> 0.000 | E133: 0.000 | F133: 0.000 | G133: =FINTERP(REFERENCE!$W$17:$W$67,REFERENCE!$V$17:$V$67,HYDROGRAPH!F133) -> 0.000 | H133: =(F133-G133)/2*REFERENCE!$P$19 -> 0.000 | I133: =(FINTERP('STAGE-STORAGE'!$D$4:$D$54,'STAGE-STORAGE'!$A$4:$A$54,H133)) -> 0
A134: 131 | B134: 21.667 | C134: =IF(B134<(MAX(USER_INPUT!$J$14:$J$2000)),FINTERP(USER_INPUT!$J$14:$J$2000,USER_INPUT!$K$14:$K$2000,HYDROGRAPH!B134),0) -> 0.000 | D134: 0.000 | E134: 0.000 | F134: 0.000 | G134: =FINTERP(REFERENCE!$W$17:$W$67,REFERENCE!$V$17:$V$67,HYDROGRAPH!F134) -> 0.000 | H134: =(F134-G134)/2*REFERENCE!$P$19 -> 0.000 | I134: =(FINTERP('STAGE-STORAGE'!$D$4:$D$54,'STAGE-STORAGE'!$A$4:$A$54,H134)) -> 0
A135: 132 | B135: =$B$5*A134 -> 21.833 | C135: =IF(B135<(MAX(USER_INPUT!$J$14:$J$2000)),FINTERP(USER_INPUT!$J$14:$J$2000,USER_INPUT!$K$14:$K$2000,HYDROGRAPH!B135),0) -> 0.000 | D135: 0.000 | E135: 0.000 | F135: 0.000 | G135: =FINTERP(REFERENCE!$W$17:$W$67,REFERENCE!$V$17:$V$67,HYDROGRAPH!F135) -> 0.000 | H135: =(F135-G135)/2*REFERENCE!$P$19 -> 0.000 | I135: =(FINTERP('STAGE-STORAGE'!$D$4:$D$54,'STAGE-STORAGE'!$A$4:$A$54,H135)) -> 0
A136: 133 | B136: 22.000 | C136: =IF(B136<(MAX(USER_INPUT!$J$14:$J$2000)),FINTERP(USER_INPUT!$J$14:$J$2000,USER_INPUT!$K$14:$K$2000,HYDROGRAPH!B136),0) -> 0.000 | D136: 0.000 | E136: 0.000 | F136: 0.000 | G136: =FINTERP(REFERENCE!$W$17:$W$67,REFERENCE!$V$17:$V$67,HYDROGRAPH!F136) -> 0.000 | H136: =(F136-G136)/2*REFERENCE!$P$19 -> 0.000 | I136: =(FINTERP('STAGE-STORAGE'!$D$4:$D$54,'STAGE-STORAGE'!$A$4:$A$54,H136)) -> 0
A137: 134 | B137: 22.167 | C137: =IF(B137<(MAX(USER_INPUT!$J$14:$J$2000)),FINTERP(USER_INPUT!$J$14:$J$2000,USER_INPUT!$K$14:$K$2000,HYDROGRAPH!B137),0) -> 0.000 | D137: 0.000 | E137: =F136-(2*G136) -> 0.000 | F137: =D137+E137 -> 0.000 | G137: =FINTERP(REFERENCE!$W$17:$W$67,REFERENCE!$V$17:$V$67,HYDROGRAPH!F137) -> 0.000 | H137: =(F137-G137)/2*REFERENCE!$P$19 -> 0.000 | I137: =(FINTERP('STAGE-STORAGE'!$D$4:$D$54,'STAGE-STORAGE'!$A$4:$A$54,H137)) -> 0
A138: 135 | B138: 22.333 | C138: =IF(B138<(MAX(USER_INPUT!$J$14:$J$2000)),FINTERP(USER_INPUT!$J$14:$J$2000,USER_INPUT!$K$14:$K$2000,HYDROGRAPH!B138),0) -> 0.000 | D138: 0.000 | E138: 0.000 | F138: 0.000 | G138: =FINTERP(REFERENCE!$W$17:$W$67,REFERENCE!$V$17:$V$67,HYDROGRAPH!F138) -> 0.000 | H138: =(F138-G138)/2*REFERENCE!$P$19 -> 0.000 | I138: =(FINTERP('STAGE-STORAGE'!$D$4:$D$54,'STAGE-STORAGE'!$A$4:$A$54,H138)) -> 0
A139: 136 | B139: 22.500 | C139: =IF(B139<(MAX(USER_INPUT!$J$14:$J$2000)),FINTERP(USER_INPUT!$J$14:$J$2000,USER_INPUT!$K$14:$K$2000,HYDROGRAPH!B139),0) -> 0.000 | D139: 0.000 | E139: 0.000 | F139: 0.000 | G139: =FINTERP(REFERENCE!$W$17:$W$67,REFERENCE!$V$17:$V$67,HYDROGRAPH!F139) -> 0.000 | H139: =(F139-G139)/2*REFERENCE!$P$19 -> 0.000 | I139: =(FINTERP('STAGE-STORAGE'!$D$4:$D$54,'STAGE-STORAGE'!$A$4:$A$54,H139)) -> 0
A140: 137 | B140: 22.667 | C140: =IF(B140<(MAX(USER_INPUT!$J$14:$J$2000)),FINTERP(USER_INPUT!$J$14:$J$2000,USER_INPUT!$K$14:$K$2000,HYDROGRAPH!B140),0) -> 0.000 | D140: 0.000 | E140: 0.000 | F140: 0.000 | G140: =FINTERP(REFERENCE!$W$17:$W$67,REFERENCE!$V$17:$V$67,HYDROGRAPH!F140) -> 0.000 | H140: =(F140-G140)/2*REFERENCE!$P$19 -> 0.000 | I140: =(FINTERP('STAGE-STORAGE'!$D$4:$D$54,'STAGE-STORAGE'!$A$4:$A$54,H140)) -> 0
A141: 138 | B141: 22.833 | C141: =IF(B141<(MAX(USER_INPUT!$J$14:$J$2000)),FINTERP(USER_INPUT!$J$14:$J$2000,USER_INPUT!$K$14:$K$2000,HYDROGRAPH!B141),0) -> 0.000 | D141: 0.000 | E141: 0.000 | F141: 0.000 | G141: =FINTERP(REFERENCE!$W$17:$W$67,REFERENCE!$V$17:$V$67,HYDROGRAPH!F141) -> 0.000 | H141: =(F141-G141)/2*REFERENCE!$P$19 -> 0.000 | I141: =(FINTERP('STAGE-STORAGE'!$D$4:$D$54,'STAGE-STORAGE'!$A$4:$A$54,H141)) -> 0
A142: 139 | B142: 23.000 | C142: =IF(B142<(MAX(USER_INPUT!$J$14:$J$2000)),FINTERP(USER_INPUT!$J$14:$J$2000,USER_INPUT!$K$14:$K$2000,HYDROGRAPH!B142),0) -> 0.000 | D142: 0.000 | E142: 0.000 | F142: 0.000 | G142: =FINTERP(REFERENCE!$W$17:$W$67,REFERENCE!$V$17:$V$67,HYDROGRAPH!F142) -> 0.000 | H142: =(F142-G142)/2*REFERENCE!$P$19 -> 0.000 | I142: =(FINTERP('STAGE-STORAGE'!$D$4:$D$54,'STAGE-STORAGE'!$A$4:$A$54,H142)) -> 0
A143: 140 | B143: 23.167 | C143: =IF(B143<(MAX(USER_INPUT!$J$14:$J$2000)),FINTERP(USER_INPUT!$J$14:$J$2000,USER_INPUT!$K$14:$K$2000,HYDROGRAPH!B143),0) -> 0.000 | D143: 0.000 | E143: 0.000 | F143: 0.000 | G143: =FINTERP(REFERENCE!$W$17:$W$67,REFERENCE!$V$17:$V$67,HYDROGRAPH!F143) -> 0.000 | H143: =(F143-G143)/2*REFERENCE!$P$19 -> 0.000 | I143: =(FINTERP('STAGE-STORAGE'!$D$4:$D$54,'STAGE-STORAGE'!$A$4:$A$54,H143)) -> 0
A144: 141 | B144: 23.333 | C144: =IF(B144<(MAX(USER_INPUT!$J$14:$J$2000)),FINTERP(USER_INPUT!$J$14:$J$2000,USER_INPUT!$K$14:$K$2000,HYDROGRAPH!B144),0) -> 0.000 | D144: 0.000 | E144: 0.000 | F144: 0.000 | G144: =FINTERP(REFERENCE!$W$17:$W$67,REFERENCE!$V$17:$V$67,HYDROGRAPH!F144) -> 0.000 | H144: =(F144-G144)/2*REFERENCE!$P$19 -> 0.000 | I144: =(FINTERP('STAGE-STORAGE'!$D$4:$D$54,'STAGE-STORAGE'!$A$4:$A$54,H144)) -> 0
A145: 142 | B145: 23.500 | C145: =IF(B145<(MAX(USER_INPUT!$J$14:$J$2000)),FINTERP(USER_INPUT!$J$14:$J$2000,USER_INPUT!$K$14:$K$2000,HYDROGRAPH!B145),0) -> 0.000 | D145: 0.000 | E145: 0.000 | F145: 0.000 | G145: =FINTERP(REFERENCE!$W$17:$W$67,REFERENCE!$V$17:$V$67,HYDROGRAPH!F145) -> 0.000 | H145: =(F145-G145)/2*REFERENCE!$P$19 -> 0.000 | I145: =(FINTERP('STAGE-STORAGE'!$D$4:$D$54,'STAGE-STORAGE'!$A$4:$A$54,H145)) -> 0
A146: 143 | B146: 23.667 | C146: =IF(B146<(MAX(USER_INPUT!$J$14:$J$2000)),FINTERP(USER_INPUT!$J$14:$J$2000,USER_INPUT!$K$14:$K$2000,HYDROGRAPH!B146),0) -> 0.000 | D146: 0.000 | E146: 0.000 | F146: 0.000 | G146: =FINTERP(REFERENCE!$W$17:$W$67,REFERENCE!$V$17:$V$67,HYDROGRAPH!F146) -> 0.000 | H146: =(F146-G146)/2*REFERENCE!$P$19 -> 0.000 | I146: =(FINTERP('STAGE-STORAGE'!$D$4:$D$54,'STAGE-STORAGE'!$A$4:$A$54,H146)) -> 0
A147: 144 | B147: 23.833 | C147: =IF(B147<(MAX(USER_INPUT!$J$14:$J$2000)),FINTERP(USER_INPUT!$J$14:$J$2000,USER_INPUT!$K$14:$K$2000,HYDROGRAPH!B147),0) -> 0.000 | D147: 0.000 | E147: 0.000 | F147: 0.000 | G147: =FINTERP(REFERENCE!$W$17:$W$67,REFERENCE!$V$17:$V$67,HYDROGRAPH!F147) -> 0.000 | H147: =(F147-G147)/2*REFERENCE!$P$19 -> 0.000 | I147: =(FINTERP('STAGE-STORAGE'!$D$4:$D$54,'STAGE-STORAGE'!$A$4:$A$54,H147)) -> 0
A148: 145 | B148: 24.000 | C148: =IF(B148<(MAX(USER_INPUT!$J$14:$J$2000)),FINTERP(USER_INPUT!$J$14:$J$2000,USER_INPUT!$K$14:$K$2000,HYDROGRAPH!B148),0) -> 0.000 | D148: 0.000 | E148: 0.000 | F148: 0.000 | G148: =FINTERP(REFERENCE!$W$17:$W$67,REFERENCE!$V$17:$V$67,HYDROGRAPH!F148) -> 0.000 | H148: =(F148-G148)/2*REFERENCE!$P$19 -> 0.000 | I148: =(FINTERP('STAGE-STORAGE'!$D$4:$D$54,'STAGE-STORAGE'!$A$4:$A$54,H148)) -> 0
A149: 146 | B149: 24.167 | C149: =IF(B149<(MAX(USER_INPUT!$J$14:$J$2000)),FINTERP(USER_INPUT!$J$14:$J$2000,USER_INPUT!$K$14:$K$2000,HYDROGRAPH!B149),0) -> 0.000 | D149: 0.000 | E149: 0.000 | F149: 0.000 | G149: =FINTERP(REFERENCE!$W$17:$W$67,REFERENCE!$V$17:$V$67,HYDROGRAPH!F149) -> 0.000 | H149: =(F149-G149)/2*REFERENCE!$P$19 -> 0.000 | I149: =(FINTERP('STAGE-STORAGE'!$D$4:$D$54,'STAGE-STORAGE'!$A$4:$A$54,H149)) -> 0
A150: 147 | B150: 24.333 | C150: =IF(B150<(MAX(USER_INPUT!$J$14:$J$2000)),FINTERP(USER_INPUT!$J$14:$J$2000,USER_INPUT!$K$14:$K$2000,HYDROGRAPH!B150),0) -> 0.000 | D150: 0.000 | E150: 0.000 | F150: 0.000 | G150: =FINTERP(REFERENCE!$W$17:$W$67,REFERENCE!$V$17:$V$67,HYDROGRAPH!F150) -> 0.000 | H150: =(F150-G150)/2*REFERENCE!$P$19 -> 0.000 | I150: =(FINTERP('STAGE-STORAGE'!$D$4:$D$54,'STAGE-STORAGE'!$A$4:$A$54,H150)) -> 0
A151: 148 | B151: 24.500 | C151: =IF(B151<(MAX(USER_INPUT!$J$14:$J$2000)),FINTERP(USER_INPUT!$J$14:$J$2000,USER_INPUT!$K$14:$K$2000,HYDROGRAPH!B151),0) -> 0.000 | D151: 0.000 | E151: 0.000 | F151: 0.000 | G151: =FINTERP(REFERENCE!$W$17:$W$67,REFERENCE!$V$17:$V$67,HYDROGRAPH!F151) -> 0.000 | H151: =(F151-G151)/2*REFERENCE!$P$19 -> 0.000 | I151: =(FINTERP('STAGE-STORAGE'!$D$4:$D$54,'STAGE-STORAGE'!$A$4:$A$54,H151)) -> 0
A152: 149 | B152: 24.667 | C152: =IF(B152<(MAX(USER_INPUT!$J$14:$J$2000)),FINTERP(USER_INPUT!$J$14:$J$2000,USER_INPUT!$K$14:$K$2000,HYDROGRAPH!B152),0) -> 0.000 | D152: 0.000 | E152: 0.000 | F152: 0.000 | G152: =FINTERP(REFERENCE!$W$17:$W$67,REFERENCE!$V$17:$V$67,HYDROGRAPH!F152) -> 0.000 | H152: =(F152-G152)/2*REFERENCE!$P$19 -> 0.000 | I152: =(FINTERP('STAGE-STORAGE'!$D$4:$D$54,'STAGE-STORAGE'!$A$4:$A$54,H152)) -> 0
A153: 150 | B153: 24.833 | C153: =IF(B153<(MAX(USER_INPUT!$J$14:$J$2000)),FINTERP(USER_INPUT!$J$14:$J$2000,USER_INPUT!$K$14:$K$2000,HYDROGRAPH!B153),0) -> 0.000 | D153: 0.000 | E153: 0.000 | F153: 0.000 | G153: =FINTERP(REFERENCE!$W$17:$W$67,REFERENCE!$V$17:$V$67,HYDROGRAPH!F153) -> 0.000 | H153: =(F153-G153)/2*REFERENCE!$P$19 -> 0.000 | I153: =(FINTERP('STAGE-STORAGE'!$D$4:$D$54,'STAGE-STORAGE'!$A$4:$A$54,H153)) -> 0
A154: 151 | B154: 25.000 | C154: =IF(B154<(MAX(USER_INPUT!$J$14:$J$2000)),FINTERP(USER_INPUT!$J$14:$J$2000,USER_INPUT!$K$14:$K$2000,HYDROGRAPH!B154),0) -> 0.000 | D154: 0.000 | E154: 0.000 | F154: 0.000 | G154: =FINTERP(REFERENCE!$W$17:$W$67,REFERENCE!$V$17:$V$67,HYDROGRAPH!F154) -> 0.000 | H154: =(F154-G154)/2*REFERENCE!$P$19 -> 0.000 | I154: =(FINTERP('STAGE-STORAGE'!$D$4:$D$54,'STAGE-STORAGE'!$A$4:$A$54,H154)) -> 0
A155: 152 | B155: 25.167 | C155: =IF(B155<(MAX(USER_INPUT!$J$14:$J$2000)),FINTERP(USER_INPUT!$J$14:$J$2000,USER_INPUT!$K$14:$K$2000,HYDROGRAPH!B155),0) -> 0.000 | D155: 0.000 | E155: 0.000 | F155: 0.000 | G155: =FINTERP(REFERENCE!$W$17:$W$67,REFERENCE!$V$17:$V$67,HYDROGRAPH!F155) -> 0.000 | H155: =(F155-G155)/2*REFERENCE!$P$19 -> 0.000 | I155: =(FINTERP('STAGE-STORAGE'!$D$4:$D$54,'STAGE-STORAGE'!$A$4:$A$54,H155)) -> 0
A156: 153 | B156: 25.333 | C156: =IF(B156<(MAX(USER_INPUT!$J$14:$J$2000)),FINTERP(USER_INPUT!$J$14:$J$2000,USER_INPUT!$K$14:$K$2000,HYDROGRAPH!B156),0) -> 0.000 | D156: 0.000 | E156: 0.000 | F156: 0.000 | G156: =FINTERP(REFERENCE!$W$17:$W$67,REFERENCE!$V$17:$V$67,HYDROGRAPH!F156) -> 0.000 | H156: =(F156-G156)/2*REFERENCE!$P$19 -> 0.000 | I156: =(FINTERP('STAGE-STORAGE'!$D$4:$D$54,'STAGE-STORAGE'!$A$4:$A$54,H156)) -> 0
A157: 154 | B157: 25.500 | C157: =IF(B157<(MAX(USER_INPUT!$J$14:$J$2000)),FINTERP(USER_INPUT!$J$14:$J$2000,USER_INPUT!$K$14:$K$2000,HYDROGRAPH!B157),0) -> 0.000 | D157: 0.000 | E157: 0.000 | F157: 0.000 | G157: =FINTERP(REFERENCE!$W$17:$W$67,REFERENCE!$V$17:$V$67,HYDROGRAPH!F157) -> 0.000 | H157: =(F157-G157)/2*REFERENCE!$P$19 -> 0.000 | I157: =(FINTERP('STAGE-STORAGE'!$D$4:$D$54,'STAGE-STORAGE'!$A$4:$A$54,H157)) -> 0
A158: 155 | B158: 25.667 | C158: =IF(B158<(MAX(USER_INPUT!$J$14:$J$2000)),FINTERP(USER_INPUT!$J$14:$J$2000,USER_INPUT!$K$14:$K$2000,HYDROGRAPH!B158),0) -> 0.000 | D158: 0.000 | E158: 0.000 | F158: 0.000 | G158: =FINTERP(REFERENCE!$W$17:$W$67,REFERENCE!$V$17:$V$67,HYDROGRAPH!F158) -> 0.000 | H158: =(F158-G158)/2*REFERENCE!$P$19 -> 0.000 | I158: =(FINTERP('STAGE-STORAGE'!$D$4:$D$54,'STAGE-STORAGE'!$A$4:$A$54,H158)) -> 0
A159: 156 | B159: 25.833 | C159: =IF(B159<(MAX(USER_INPUT!$J$14:$J$2000)),FINTERP(USER_INPUT!$J$14:$J$2000,USER_INPUT!$K$14:$K$2000,HYDROGRAPH!B159),0) -> 0.000 | D159: 0.000 | E159: 0.000 | F159: 0.000 | G159: =FINTERP(REFERENCE!$W$17:$W$67,REFERENCE!$V$17:$V$67,HYDROGRAPH!F159) -> 0.000 | H159: =(F159-G159)/2*REFERENCE!$P$19 -> 0.000 | I159: =(FINTERP('STAGE-STORAGE'!$D$4:$D$54,'STAGE-STORAGE'!$A$4:$A$54,H159)) -> 0
A160: 157 | B160: 26.000 | C160: =IF(B160<(MAX(USER_INPUT!$J$14:$J$2000)),FINTERP(USER_INPUT!$J$14:$J$2000,USER_INPUT!$K$14:$K$2000,HYDROGRAPH!B160),0) -> 0.000 | D160: 0.000 | E160: 0.000 | F160: 0.000 | G160: =FINTERP(REFERENCE!$W$17:$W$67,REFERENCE!$V$17:$V$67,HYDROGRAPH!F160) -> 0.000 | H160: =(F160-G160)/2*REFERENCE!$P$19 -> 0.000 | I160: =(FINTERP('STAGE-STORAGE'!$D$4:$D$54,'STAGE-STORAGE'!$A$4:$A$54,H160)) -> 0
A161: 158 | B161: 26.167 | C161: =IF(B161<(MAX(USER_INPUT!$J$14:$J$2000)),FINTERP(USER_INPUT!$J$14:$J$2000,USER_INPUT!$K$14:$K$2000,HYDROGRAPH!B161),0) -> 0.000 | D161: 0.000 | E161: 0.000 | F161: 0.000 | G161: =FINTERP(REFERENCE!$W$17:$W$67,REFERENCE!$V$17:$V$67,HYDROGRAPH!F161) -> 0.000 | H161: =(F161-G161)/2*REFERENCE!$P$19 -> 0.000 | I161: =(FINTERP('STAGE-STORAGE'!$D$4:$D$54,'STAGE-STORAGE'!$A$4:$A$54,H161)) -> 0
A162: 159 | B162: 26.333 | C162: =IF(B162<(MAX(USER_INPUT!$J$14:$J$2000)),FINTERP(USER_INPUT!$J$14:$J$2000,USER_INPUT!$K$14:$K$2000,HYDROGRAPH!B162),0) -> 0.000 | D162: 0.000 | E162: 0.000 | F162: 0.000 | G162: =FINTERP(REFERENCE!$W$17:$W$67,REFERENCE!$V$17:$V$67,HYDROGRAPH!F162) -> 0.000 | H162: =(F162-G162)/2*REFERENCE!$P$19 -> 0.000 | I162: =(FINTERP('STAGE-STORAGE'!$D$4:$D$54,'STAGE-STORAGE'!$A$4:$A$54,H162)) -> 0
A163: 160 | B163: 26.500 | C163: =IF(B163<(MAX(USER_INPUT!$J$14:$J$2000)),FINTERP(USER_INPUT!$J$14:$J$2000,USER_INPUT!$K$14:$K$2000,HYDROGRAPH!B163),0) -> 0.000 | D163: 0.000 | E163: 0.000 | F163: 0.000 | G163: =FINTERP(REFERENCE!$W$17:$W$67,REFERENCE!$V$17:$V$67,HYDROGRAPH!F163) -> 0.000 | H163: =(F163-G163)/2*REFERENCE!$P$19 -> 0.000 | I163: =(FINTERP('STAGE-STORAGE'!$D$4:$D$54,'STAGE-STORAGE'!$A$4:$A$54,H163)) -> 0
A164: 161 | B164: 26.667 | C164: =IF(B164<(MAX(USER_INPUT!$J$14:$J$2000)),FINTERP(USER_INPUT!$J$14:$J$2000,USER_INPUT!$K$14:$K$2000,HYDROGRAPH!B164),0) -> 0.000 | D164: 0.000 | E164: 0.000 | F164: 0.000 | G164: =FINTERP(REFERENCE!$W$17:$W$67,REFERENCE!$V$17:$V$67,HYDROGRAPH!F164) -> 0.000 | H164: =(F164-G164)/2*REFERENCE!$P$19 -> 0.000 | I164: =(FINTERP('STAGE-STORAGE'!$D$4:$D$54,'STAGE-STORAGE'!$A$4:$A$54,H164)) -> 0
A165: 162 | B165: 26.833 | C165: =IF(B165<(MAX(USER_INPUT!$J$14:$J$2000)),FINTERP(USER_INPUT!$J$14:$J$2000,USER_INPUT!$K$14:$K$2000,HYDROGRAPH!B165),0) -> 0.000 | D165: 0.000 | E165: 0.000 | F165: 0.000 | G165: =FINTERP(REFERENCE!$W$17:$W$67,REFERENCE!$V$17:$V$67,HYDROGRAPH!F165) -> 0.000 | H165: =(F165-G165)/2*REFERENCE!$P$19 -> 0.000 | I165: =(FINTERP('STAGE-STORAGE'!$D$4:$D$54,'STAGE-STORAGE'!$A$4:$A$54,H165)) -> 0
A166: 163 | B166: 27.000 | C166: =IF(B166<(MAX(USER_INPUT!$J$14:$J$2000)),FINTERP(USER_INPUT!$J$14:$J$2000,USER_INPUT!$K$14:$K$2000,HYDROGRAPH!B166),0) -> 0.000 | D166: 0.000 | E166: 0.000 | F166: 0.000 | G166: =FINTERP(REFERENCE!$W$17:$W$67,REFERENCE!$V$17:$V$67,HYDROGRAPH!F166) -> 0.000 | H166: =(F166-G166)/2*REFERENCE!$P$19 -> 0.000 | I166: =(FINTERP('STAGE-STORAGE'!$D$4:$D$54,'STAGE-STORAGE'!$A$4:$A$54,H166)) -> 0
A167: 164 | B167: 27.167 | C167: =IF(B167<(MAX(USER_INPUT!$J$14:$J$2000)),FINTERP(USER_INPUT!$J$14:$J$2000,USER_INPUT!$K$14:$K$2000,HYDROGRAPH!B167),0) -> 0.000 | D167: 0.000 | E167: 0.000 | F167: 0.000 | G167: =FINTERP(REFERENCE!$W$17:$W$67,REFERENCE!$V$17:$V$67,HYDROGRAPH!F167) -> 0.000 | H167: =(F167-G167)/2*REFERENCE!$P$19 -> 0.000 | I167: =(FINTERP('STAGE-STORAGE'!$D$4:$D$54,'STAGE-STORAGE'!$A$4:$A$54,H167)) -> 0
A168: 165 | B168: 27.333 | C168: =IF(B168<(MAX(USER_INPUT!$J$14:$J$2000)),FINTERP(USER_INPUT!$J$14:$J$2000,USER_INPUT!$K$14:$K$2000,HYDROGRAPH!B168),0) -> 0.000 | D168: 0.000 | E168: 0.000 | F168: 0.000 | G168: =FINTERP(REFERENCE!$W$17:$W$67,REFERENCE!$V$17:$V$67,HYDROGRAPH!F168) -> 0.000 | H168: =(F168-G168)/2*REFERENCE!$P$19 -> 0.000 | I168: =(FINTERP('STAGE-STORAGE'!$D$4:$D$54,'STAGE-STORAGE'!$A$4:$A$54,H168)) -> 0
A169: 166 | B169: 27.500 | C169: =IF(B169<(MAX(USER_INPUT!$J$14:$J$2000)),FINTERP(USER_INPUT!$J$14:$J$2000,USER_INPUT!$K$14:$K$2000,HYDROGRAPH!B169),0) -> 0.000 | D169: 0.000 | E169: 0.000 | F169: 0.000 | G169: =FINTERP(REFERENCE!$W$17:$W$67,REFERENCE!$V$17:$V$67,HYDROGRAPH!F169) -> 0.000 | H169: =(F169-G169)/2*REFERENCE!$P$19 -> 0.000 | I169: =(FINTERP('STAGE-STORAGE'!$D$4:$D$54,'STAGE-STORAGE'!$A$4:$A$54,H169)) -> 0
A170: 167 | B170: 27.667 | C170: =IF(B170<(MAX(USER_INPUT!$J$14:$J$2000)),FINTERP(USER_INPUT!$J$14:$J$2000,USER_INPUT!$K$14:$K$2000,HYDROGRAPH!B170),0) -> 0.000 | D170: 0.000 | E170: 0.000 | F170: 0.000 | G170: =FINTERP(REFERENCE!$W$17:$W$67,REFERENCE!$V$17:$V$67,HYDROGRAPH!F170) -> 0.000 | H170: =(F170-G170)/2*REFERENCE!$P$19 -> 0.000 | I170: =(FINTERP('STAGE-STORAGE'!$D$4:$D$54,'STAGE-STORAGE'!$A$4:$A$54,H170)) -> 0
A171: 168 | B171: 27.833 | C171: =IF(B171<(MAX(USER_INPUT!$J$14:$J$2000)),FINTERP(USER_INPUT!$J$14:$J$2000,USER_INPUT!$K$14:$K$2000,HYDROGRAPH!B171),0) -> 0.000 | D171: 0.000 | E171: 0.000 | F171: 0.000 | G171: =FINTERP(REFERENCE!$W$17:$W$67,REFERENCE!$V$17:$V$67,HYDROGRAPH!F171) -> 0.000 | H171: =(F171-G171)/2*REFERENCE!$P$19 -> 0.000 | I171: =(FINTERP('STAGE-STORAGE'!$D$4:$D$54,'STAGE-STORAGE'!$A$4:$A$54,H171)) -> 0
A172: 169 | B172: 28.000 | C172: =IF(B172<(MAX(USER_INPUT!$J$14:$J$2000)),FINTERP(USER_INPUT!$J$14:$J$2000,USER_INPUT!$K$14:$K$2000,HYDROGRAPH!B172),0) -> 0.000 | D172: 0.000 | E172: 0.000 | F172: 0.000 | G172: =FINTERP(REFERENCE!$W$17:$W$67,REFERENCE!$V$17:$V$67,HYDROGRAPH!F172) -> 0.000 | H172: =(F172-G172)/2*REFERENCE!$P$19 -> 0.000 | I172: =(FINTERP('STAGE-STORAGE'!$D$4:$D$54,'STAGE-STORAGE'!$A$4:$A$54,H172)) -> 0
A173: 170 | B173: 28.167 | C173: =IF(B173<(MAX(USER_INPUT!$J$14:$J$2000)),FINTERP(USER_INPUT!$J$14:$J$2000,USER_INPUT!$K$14:$K$2000,HYDROGRAPH!B173),0) -> 0.000 | D173: 0.000 | E173: 0.000 | F173: 0.000 | G173: =FINTERP(REFERENCE!$W$17:$W$67,REFERENCE!$V$17:$V$67,HYDROGRAPH!F173) -> 0.000 | H173: =(F173-G173)/2*REFERENCE!$P$19 -> 0.000 | I173: =(FINTERP('STAGE-STORAGE'!$D$4:$D$54,'STAGE-STORAGE'!$A$4:$A$54,H173)) -> 0
A174: 171 | B174: 28.333 | C174: =IF(B174<(MAX(USER_INPUT!$J$14:$J$2000)),FINTERP(USER_INPUT!$J$14:$J$2000,USER_INPUT!$K$14:$K$2000,HYDROGRAPH!B174),0) -> 0.000 | D174: 0.000 | E174: 0.000 | F174: 0.000 | G174: =FINTERP(REFERENCE!$W$17:$W$67,REFERENCE!$V$17:$V$67,HYDROGRAPH!F174) -> 0.000 | H174: =(F174-G174)/2*REFERENCE!$P$19 -> 0.000 | I174: =(FINTERP('STAGE-STORAGE'!$D$4:$D$54,'STAGE-STORAGE'!$A$4:$A$54,H174)) -> 0
A175: 172 | B175: 28.500 | C175: =IF(B175<(MAX(USER_INPUT!$J$14:$J$2000)),FINTERP(USER_INPUT!$J$14:$J$2000,USER_INPUT!$K$14:$K$2000,HYDROGRAPH!B175),0) -> 0.000 | D175: 0.000 | E175: 0.000 | F175: 0.000 | G175: =FINTERP(REFERENCE!$W$17:$W$67,REFERENCE!$V$17:$V$67,HYDROGRAPH!F175) -> 0.000 | H175: =(F175-G175)/2*REFERENCE!$P$19 -> 0.000 | I175: =(FINTERP('STAGE-STORAGE'!$D$4:$D$54,'STAGE-STORAGE'!$A$4:$A$54,H175)) -> 0
A176: 173 | B176: 28.667 | C176: =IF(B176<(MAX(USER_INPUT!$J$14:$J$2000)),FINTERP(USER_INPUT!$J$14:$J$2000,USER_INPUT!$K$14:$K$2000,HYDROGRAPH!B176),0) -> 0.000 | D176: 0.000 | E176: 0.000 | F176: 0.000 | G176: =FINTERP(REFERENCE!$W$17:$W$67,REFERENCE!$V$17:$V$67,HYDROGRAPH!F176) -> 0.000 | H176: =(F176-G176)/2*REFERENCE!$P$19 -> 0.000 | I176: =(FINTERP('STAGE-STORAGE'!$D$4:$D$54,'STAGE-STORAGE'!$A$4:$A$54,H176)) -> 0
A177: 174 | B177: 28.833 | C177: =IF(B177<(MAX(USER_INPUT!$J$14:$J$2000)),FINTERP(USER_INPUT!$J$14:$J$2000,USER_INPUT!$K$14:$K$2000,HYDROGRAPH!B177),0) -> 0.000 | D177: 0.000 | E177: 0.000 | F177: 0.000 | G177: =FINTERP(REFERENCE!$W$17:$W$67,REFERENCE!$V$17:$V$67,HYDROGRAPH!F177) -> 0.000 | H177: =(F177-G177)/2*REFERENCE!$P$19 -> 0.000 | I177: =(FINTERP('STAGE-STORAGE'!$D$4:$D$54,'STAGE-STORAGE'!$A$4:$A$54,H177)) -> 0
A178: 175 | B178: 29.000 | C178: =IF(B178<(MAX(USER_INPUT!$J$14:$J$2000)),FINTERP(USER_INPUT!$J$14:$J$2000,USER_INPUT!$K$14:$K$2000,HYDROGRAPH!B178),0) -> 0.000 | D178: 0.000 | E178: 0.000 | F178: 0.000 | G178: =FINTERP(REFERENCE!$W$17:$W$67,REFERENCE!$V$17:$V$67,HYDROGRAPH!F178) -> 0.000 | H178: =(F178-G178)/2*REFERENCE!$P$19 -> 0.000 | I178: =(FINTERP('STAGE-STORAGE'!$D$4:$D$54,'STAGE-STORAGE'!$A$4:$A$54,H178)) -> 0
A179: 176 | B179: 29.167 | C179: =IF(B179<(MAX(USER_INPUT!$J$14:$J$2000)),FINTERP(USER_INPUT!$J$14:$J$2000,USER_INPUT!$K$14:$K$2000,HYDROGRAPH!B179),0) -> 0.000 | D179: 0.000 | E179: 0.000 | F179: 0.000 | G179: =FINTERP(REFERENCE!$W$17:$W$67,REFERENCE!$V$17:$V$67,HYDROGRAPH!F179) -> 0.000 | H179: =(F179-G179)/2*REFERENCE!$P$19 -> 0.000 | I179: =(FINTERP('STAGE-STORAGE'!$D$4:$D$54,'STAGE-STORAGE'!$A$4:$A$54,H179)) -> 0
A180: 177 | B180: 29.333 | C180: =IF(B180<(MAX(USER_INPUT!$J$14:$J$2000)),FINTERP(USER_INPUT!$J$14:$J$2000,USER_INPUT!$K$14:$K$2000,HYDROGRAPH!B180),0) -> 0.000 | D180: 0.000 | E180: 0.000 | F180: 0.000 | G180: =FINTERP(REFERENCE!$W$17:$W$67,REFERENCE!$V$17:$V$67,HYDROGRAPH!F180) -> 0.000 | H180: =(F180-G180)/2*REFERENCE!$P$19 -> 0.000 | I180: =(FINTERP('STAGE-STORAGE'!$D$4:$D$54,'STAGE-STORAGE'!$A$4:$A$54,H180)) -> 0
A181: 178 | B181: 29.500 | C181: =IF(B181<(MAX(USER_INPUT!$J$14:$J$2000)),FINTERP(USER_INPUT!$J$14:$J$2000,USER_INPUT!$K$14:$K$2000,HYDROGRAPH!B181),0) -> 0.000 | D181: 0.000 | E181: 0.000 | F181: 0.000 | G181: =FINTERP(REFERENCE!$W$17:$W$67,REFERENCE!$V$17:$V$67,HYDROGRAPH!F181) -> 0.000 | H181: =(F181-G181)/2*REFERENCE!$P$19 -> 0.000 | I181: =(FINTERP('STAGE-STORAGE'!$D$4:$D$54,'STAGE-STORAGE'!$A$4:$A$54,H181)) -> 0
A182: 179 | B182: 29.667 | C182: =IF(B182<(MAX(USER_INPUT!$J$14:$J$2000)),FINTERP(USER_INPUT!$J$14:$J$2000,USER_INPUT!$K$14:$K$2000,HYDROGRAPH!B182),0) -> 0.000 | D182: 0.000 | E182: 0.000 | F182: 0.000 | G182: =FINTERP(REFERENCE!$W$17:$W$67,REFERENCE!$V$17:$V$67,HYDROGRAPH!F182) -> 0.000 | H182: =(F182-G182)/2*REFERENCE!$P$19 -> 0.000 | I182: =(FINTERP('STAGE-STORAGE'!$D$4:$D$54,'STAGE-STORAGE'!$A$4:$A$54,H182)) -> 0
A183: 180 | B183: 29.833 | C183: =IF(B183<(MAX(USER_INPUT!$J$14:$J$2000)),FINTERP(USER_INPUT!$J$14:$J$2000,USER_INPUT!$K$14:$K$2000,HYDROGRAPH!B183),0) -> 0.000 | D183: 0.000 | E183: 0.000 | F183: 0.000 | G183: =FINTERP(REFERENCE!$W$17:$W$67,REFERENCE!$V$17:$V$67,HYDROGRAPH!F183) -> 0.000 | H183: =(F183-G183)/2*REFERENCE!$P$19 -> 0.000 | I183: =(FINTERP('STAGE-STORAGE'!$D$4:$D$54,'STAGE-STORAGE'!$A$4:$A$54,H183)) -> 0
A184: 181 | B184: 30.000 | C184: =IF(B184<(MAX(USER_INPUT!$J$14:$J$2000)),FINTERP(USER_INPUT!$J$14:$J$2000,USER_INPUT!$K$14:$K$2000,HYDROGRAPH!B184),0) -> 0.000 | D184: 0.000 | E184: 0.000 | F184: 0.000 | G184: =FINTERP(REFERENCE!$W$17:$W$67,REFERENCE!$V$17:$V$67,HYDROGRAPH!F184) -> 0.000 | H184: =(F184-G184)/2*REFERENCE!$P$19 -> 0.000 | I184: =(FINTERP('STAGE-STORAGE'!$D$4:$D$54,'STAGE-STORAGE'!$A$4:$A$54,H184)) -> 0
A185: 182 | B185: 30.167 | C185: =IF(B185<(MAX(USER_INPUT!$J$14:$J$2000)),FINTERP(USER_INPUT!$J$14:$J$2000,USER_INPUT!$K$14:$K$2000,HYDROGRAPH!B185),0) -> 0.000 | D185: 0.000 | E185: 0.000 | F185: 0.000 | G185: =FINTERP(REFERENCE!$W$17:$W$67,REFERENCE!$V$17:$V$67,HYDROGRAPH!F185) -> 0.000 | H185: =(F185-G185)/2*REFERENCE!$P$19 -> 0.000 | I185: =(FINTERP('STAGE-STORAGE'!$D$4:$D$54,'STAGE-STORAGE'!$A$4:$A$54,H185)) -> 0
A186: 183 | B186: 30.333 | C186: =IF(B186<(MAX(USER_INPUT!$J$14:$J$2000)),FINTERP(USER_INPUT!$J$14:$J$2000,USER_INPUT!$K$14:$K$2000,HYDROGRAPH!B186),0) -> 0.000 | D186: 0.000 | E186: 0.000 | F186: 0.000 | G186: =FINTERP(REFERENCE!$W$17:$W$67,REFERENCE!$V$17:$V$67,HYDROGRAPH!F186) -> 0.000 | H186: =(F186-G186)/2*REFERENCE!$P$19 -> 0.000 | I186: =(FINTERP('STAGE-STORAGE'!$D$4:$D$54,'STAGE-STORAGE'!$A$4:$A$54,H186)) -> 0
A187: 184 | B187: 30.500 | C187: =IF(B187<(MAX(USER_INPUT!$J$14:$J$2000)),FINTERP(USER_INPUT!$J$14:$J$2000,USER_INPUT!$K$14:$K$2000,HYDROGRAPH!B187),0) -> 0.000 | D187: 0.000 | E187: 0.000 | F187: 0.000 | G187: =FINTERP(REFERENCE!$W$17:$W$67,REFERENCE!$V$17:$V$67,HYDROGRAPH!F187) -> 0.000 | H187: =(F187-G187)/2*REFERENCE!$P$19 -> 0.000 | I187: =(FINTERP('STAGE-STORAGE'!$D$4:$D$54,'STAGE-STORAGE'!$A$4:$A$54,H187)) -> 0
A188: 185 | B188: 30.667 | C188: =IF(B188<(MAX(USER_INPUT!$J$14:$J$2000)),FINTERP(USER_INPUT!$J$14:$J$2000,USER_INPUT!$K$14:$K$2000,HYDROGRAPH!B188),0) -> 0.000 | D188: 0.000 | E188: 0.000 | F188: 0.000 | G188: =FINTERP(REFERENCE!$W$17:$W$67,REFERENCE!$V$17:$V$67,HYDROGRAPH!F188) -> 0.000 | H188: =(F188-G188)/2*REFERENCE!$P$19 -> 0.000 | I188: =(FINTERP('STAGE-STORAGE'!$D$4:$D$54,'STAGE-STORAGE'!$A$4:$A$54,H188)) -> 0
A189: 186 | B189: 30.833 | C189: =IF(B189<(MAX(USER_INPUT!$J$14:$J$2000)),FINTERP(USER_INPUT!$J$14:$J$2000,USER_INPUT!$K$14:$K$2000,HYDROGRAPH!B189),0) -> 0.000 | D189: 0.000 | E189: 0.000 | F189: 0.000 | G189: =FINTERP(REFERENCE!$W$17:$W$67,REFERENCE!$V$17:$V$67,HYDROGRAPH!F189) -> 0.000 | H189: =(F189-G189)/2*REFERENCE!$P$19 -> 0.000 | I189: =(FINTERP('STAGE-STORAGE'!$D$4:$D$54,'STAGE-STORAGE'!$A$4:$A$54,H189)) -> 0
A190: 187 | B190: 31.000 | C190: =IF(B190<(MAX(USER_INPUT!$J$14:$J$2000)),FINTERP(USER_INPUT!$J$14:$J$2000,USER_INPUT!$K$14:$K$2000,HYDROGRAPH!B190),0) -> 0.000 | D190: 0.000 | E190: 0.000 | F190: 0.000 | G190: =FINTERP(REFERENCE!$W$17:$W$67,REFERENCE!$V$17:$V$67,HYDROGRAPH!F190) -> 0.000 | H190: =(F190-G190)/2*REFERENCE!$P$19 -> 0.000 | I190: =(FINTERP('STAGE-STORAGE'!$D$4:$D$54,'STAGE-STORAGE'!$A$4:$A$54,H190)) -> 0
A191: 188 | B191: 31.167 | C191: =IF(B191<(MAX(USER_INPUT!$J$14:$J$2000)),FINTERP(USER_INPUT!$J$14:$J$2000,USER_INPUT!$K$14:$K$2000,HYDROGRAPH!B191),0) -> 0.000 | D191: 0.000 | E191: 0.000 | F191: 0.000 | G191: =FINTERP(REFERENCE!$W$17:$W$67,REFERENCE!$V$17:$V$67,HYDROGRAPH!F191) -> 0.000 | H191: =(F191-G191)/2*REFERENCE!$P$19 -> 0.000 | I191: =(FINTERP('STAGE-STORAGE'!$D$4:$D$54,'STAGE-STORAGE'!$A$4:$A$54,H191)) -> 0
A192: 189 | B192: 31.333 | C192: =IF(B192<(MAX(USER_INPUT!$J$14:$J$2000)),FINTERP(USER_INPUT!$J$14:$J$2000,USER_INPUT!$K$14:$K$2000,HYDROGRAPH!B192),0) -> 0.000 | D192: 0.000 | E192: 0.000 | F192: 0.000 | G192: =FINTERP(REFERENCE!$W$17:$W$67,REFERENCE!$V$17:$V$67,HYDROGRAPH!F192) -> 0.000 | H192: =(F192-G192)/2*REFERENCE!$P$19 -> 0.000 | I192: =(FINTERP('STAGE-STORAGE'!$D$4:$D$54,'STAGE-STORAGE'!$A$4:$A$54,H192)) -> 0
A193: 190 | B193: 31.500 | C193: =IF(B193<(MAX(USER_INPUT!$J$14:$J$2000)),FINTERP(USER_INPUT!$J$14:$J$2000,USER_INPUT!$K$14:$K$2000,HYDROGRAPH!B193),0) -> 0.000 | D193: 0.000 | E193: 0.000 | F193: 0.000 | G193: =FINTERP(REFERENCE!$W$17:$W$67,REFERENCE!$V$17:$V$67,HYDROGRAPH!F193) -> 0.000 | H193: =(F193-G193)/2*REFERENCE!$P$19 -> 0.000 | I193: =(FINTERP('STAGE-STORAGE'!$D$4:$D$54,'STAGE-STORAGE'!$A$4:$A$54,H193)) -> 0
A194: 191 | B194: 31.667 | C194: =IF(B194<(MAX(USER_INPUT!$J$14:$J$2000)),FINTERP(USER_INPUT!$J$14:$J$2000,USER_INPUT!$K$14:$K$2000,HYDROGRAPH!B194),0) -> 0.000 | D194: 0.000 | E194: 0.000 | F194: 0.000 | G194: =FINTERP(REFERENCE!$W$17:$W$67,REFERENCE!$V$17:$V$67,HYDROGRAPH!F194) -> 0.000 | H194: =(F194-G194)/2*REFERENCE!$P$19 -> 0.000 | I194: =(FINTERP('STAGE-STORAGE'!$D$4:$D$54,'STAGE-STORAGE'!$A$4:$A$54,H194)) -> 0
A195: 192 | B195: 31.833 | C195: =IF(B195<(MAX(USER_INPUT!$J$14:$J$2000)),FINTERP(USER_INPUT!$J$14:$J$2000,USER_INPUT!$K$14:$K$2000,HYDROGRAPH!B195),0) -> 0.000 | D195: 0.000 | E195: 0.000 | F195: 0.000 | G195: =FINTERP(REFERENCE!$W$17:$W$67,REFERENCE!$V$17:$V$67,HYDROGRAPH!F195) -> 0.000 | H195: =(F195-G195)/2*REFERENCE!$P$19 -> 0.000 | I195: =(FINTERP('STAGE-STORAGE'!$D$4:$D$54,'STAGE-STORAGE'!$A$4:$A$54,H195)) -> 0
A196: 193 | B196: 32.000 | C196: =IF(B196<(MAX(USER_INPUT!$J$14:$J$2000)),FINTERP(USER_INPUT!$J$14:$J$2000,USER_INPUT!$K$14:$K$2000,HYDROGRAPH!B196),0) -> 0.000 | D196: 0.000 | E196: 0.000 | F196: 0.000 | G196: =FINTERP(REFERENCE!$W$17:$W$67,REFERENCE!$V$17:$V$67,HYDROGRAPH!F196) -> 0.000 | H196: =(F196-G196)/2*REFERENCE!$P$19 -> 0.000 | I196: =(FINTERP('STAGE-STORAGE'!$D$4:$D$54,'STAGE-STORAGE'!$A$4:$A$54,H196)) -> 0
A197: 194 | B197: 32.167 | C197: =IF(B197<(MAX(USER_INPUT!$J$14:$J$2000)),FINTERP(USER_INPUT!$J$14:$J$2000,USER_INPUT!$K$14:$K$2000,HYDROGRAPH!B197),0) -> 0.000 | D197: =C197+C198 -> 0.000 | E197: 0.000 | F197: 0.000 | G197: =FINTERP(REFERENCE!$W$17:$W$67,REFERENCE!$V$17:$V$67,HYDROGRAPH!F197) -> 0.000 | H197: =(F197-G197)/2*REFERENCE!$P$19 -> 0.000 | I197: =(FINTERP('STAGE-STORAGE'!$D$4:$D$54,'STAGE-STORAGE'!$A$4:$A$54,H197)) -> 0
A198: 195 | B198: 32.333 | C198: =IF(B198<(MAX(USER_INPUT!$J$14:$J$2000)),FINTERP(USER_INPUT!$J$14:$J$2000,USER_INPUT!$K$14:$K$2000,HYDROGRAPH!B198),0) -> 0.000 | D198: 0.000 | E198: 0.000 | F198: 0.000 | G198: =FINTERP(REFERENCE!$W$17:$W$67,REFERENCE!$V$17:$V$67,HYDROGRAPH!F198) -> 0.000 | H198: =(F198-G198)/2*REFERENCE!$P$19 -> 0.000 | I198: =(FINTERP('STAGE-STORAGE'!$D$4:$D$54,'STAGE-STORAGE'!$A$4:$A$54,H198)) -> 0
A199: 196 | B199: =$B$5*A198 -> 32.500 | C199: =IF(B199<(MAX(USER_INPUT!$J$14:$J$2000)),FINTERP(USER_INPUT!$J$14:$J$2000,USER_INPUT!$K$14:$K$2000,HYDROGRAPH!B199),0) -> 0.000 | D199: 0.000 | E199: 0.000 | F199: 0.000 | G199: =FINTERP(REFERENCE!$W$17:$W$67,REFERENCE!$V$17:$V$67,HYDROGRAPH!F199) -> 0.000 | H199: =(F199-G199)/2*REFERENCE!$P$19 -> 0.000 | I199: =(FINTERP('STAGE-STORAGE'!$D$4:$D$54,'STAGE-STORAGE'!$A$4:$A$54,H199)) -> 0
A200: 197 | B200: 32.667 | C200: =IF(B200<(MAX(USER_INPUT!$J$14:$J$2000)),FINTERP(USER_INPUT!$J$14:$J$2000,USER_INPUT!$K$14:$K$2000,HYDROGRAPH!B200),0) -> 0.000 | D200: 0.000 | E200: 0.000 | F200: 0.000 | G200: =FINTERP(REFERENCE!$W$17:$W$67,REFERENCE!$V$17:$V$67,HYDROGRAPH!F200) -> 0.000 | H200: =(F200-G200)/2*REFERENCE!$P$19 -> 0.000 | I200: =(FINTERP('STAGE-STORAGE'!$D$4:$D$54,'STAGE-STORAGE'!$A$4:$A$54,H200)) -> 0
... 3286 more rows

Sheet REFERENCE (hidden)
B2: Dewatering System | E2: Faircloth Skimmer Factors
B3: Structure | C3: Days | E3: 1 Days | I3: 2 Days | M3: 3 Days | Q3: 4 Days | U3: 5 Days | Y3: 6 Days | AC3: 7 Days | AF3: Head (in.)
B4: Riser | C4: 1 | E4: Flow Capacity | F4: Factor | G4: Skimmer Size (in.) | I4: Flow Capacity | J4: Factor | K4: Skimmer Size (in.) | M4: Flow Capacity | N4: Factor | O4: Skimmer Size (in.) | Q4: Flow Capacity | R4: Factor | S4: Skimmer Size (in.) | U4: Flow Capacity | V4: Factor | W4: Skimmer Size (in.) | Y4: Flow Capacity | Z4: Factor | AA4: Skimmer Size (in.) | AC4: Flow Capacity | AD4: Factor | AE4: Skimmer Size (in.)
B5: Skimmer | C5: 2 | E5: 1,728 | F5: 960 | G5: 1.5 | I5: 3456 | J5: 1920 | K5: 1.5 | M5: 5,184 | N5: 2,880 | O5: 1.5 | Q5: 6912 | R5: 3840 | S5: 1.5 | U5: 8640 | V5: =U5/1.77 -> 4881.355932 | W5: 1.5 | Y5: 10368 | Z5: =Y5/1.77 -> 5857.627119 | AA5: 1.5 | AC5: 12096 | AD5: 6720 | AE5: 1.5 | AF5: 1.5
B6: Rock Spillway | C6: 3 | E6: 3,283 | F6: 1,123 | G6: 2 | I6: 6566 | J6: 2246 | K6: 2 | M6: 9,849 | N6: 3,369 | O6: 2 | Q6: 13132 | R6: 4492 | S6: 2 | U6: 16415 | V6: =U6/3.14 -> 5227.707006 | W6: 2 | Y6: 19698 | Z6: =Y6/3.14 -> 6273.248408 | AA6: 2 | AC6: 22981 | AD6: 7861 | AE6: 2 | AF6: 2
C7: 4 | E7: 6,234 | F7: 1,270 | G7: 2.5 | I7: 12468 | J7: 2540 | K7: 2.5 | M7: 18,702 | N7: 3,810 | O7: 2.5 | Q7: 24936 | R7: 5080 | S7: 2.5 | U7: 31170 | V7: =U7/4.91 -> 6348.268839 | W7: 2.5 | Y7: 37404 | Z7: =Y7/4.91 -> 7617.922607 | AA7: 2.5 | AC7: 43638 | AD7: 8890 | AE7: 2.5 | AF7: 2.5
C8: 5 | E8: 9,774 | F8: 1,382 | G8: 3 | I8: 19548 | J8: 2765 | K8: 3 | M8: 29,322 | N8: 4,146 | O8: 3 | Q8: 39096 | R8: 5528 | S8: 3 | U8: 48870 | V8: =U8/7.07 -> 6912.305516 | W8: 3 | Y8: 58644 | Z8: =Y8/7.07 -> 8294.76662 | AA8: 3 | AC8: 68418 | AD8: 9677 | AE8: 3 | AF8: 3
C9: 6 | E9: 20,109 | F9: 1,601 | G9: 4 | I9: 40218 | J9: 3202 | K9: 4 | M9: 60,327 | N9: 4,803 | O9: 4 | Q9: 80436 | R9: 6404 | S9: 4 | U9: 100545 | V9: =U9/12.57 -> 7998.806683 | W9: 4 | Y9: 120654 | Z9: =Y9/12.57 -> 9598.568019 | AA9: 4 | AC9: 140763 | AD9: 11207 | AE9: 4 | AF9: 4
C10: 7 | E10: 32,832 | F10: 1,642 | G10: 5 | I10: 65664 | J10: 3283 | K10: 5 | M10: 98,496 | N10: 4,926 | O10: 5 | Q10: 131328 | R10: 6568 | S10: 5 | U10: 164160 | V10: =U10/19.63 -> 8362.710138 | W10: 5 | Y10: 196992 | Z10: =Y10/19.63 -> 10035.25217 | AA10: 5 | AC10: 229824 | AD10: 11491 | AE10: 5 | AF10: 4
E11: 51,840 | F11: 1,814 | G11: 6 | I11: 103680 | J11: 3628 | K11: 6 | M11: 155,520 | N11: 5,442 | O11: 6 | Q11: 207360 | R11: 7256 | S11: 6 | U11: 259200 | V11: =U11/28.27 -> 9168.730103 | W11: 6 | Y11: 311040 | Z11: =Y11/28.27 -> 11002.47612 | AA11: 6 | AC11: 362880 | AD11: 12701 | AE11: 6 | AF11: 5
E12: 97,978 | F12: 1,987 | G12: 8 | I12: 195956 | J12: 3974 | K12: 8 | M12: 293,934 | N12: 5,961 | O12: 8 | Q12: 391912 | R12: 7948 | S12: 8 | U12: 489890 | V12: =U12/50.27 -> 9745.176049 | W12: 8 | Y12: 587868 | Z12: =Y12/50.27 -> 11694.21126 | AA12: 8 | AC12: 685846 | AD12: 13909 | AE12: 8 | AF12: 6
B15: Water Characteristics for Settling | G15: Soil Settling | J15: Cross Sections | O15: Hydrograph | S15: Storage Indication Curve
B16: Temp (F) | C16: g (m/s2) | D16: ρ (kg/m3) | E16: ϒ (m2/s) | G16: Settlable | H16: Sus. | J16: x | K16: y | L16: Basin Component | O16: Yes | S16: Time Step (dT) | T16: Stage | U16: Storage (ft3) | V16: Discharge (cfs) | W16: Storage Indication (cfs)
B17: 32 | C17: 9.81 | D17: 999.87 | E17: 1.79E-06 | G17: =IF(SEDIMENTATION!$H4>USER_INPUT!$D$17,SEDIMENTATION!E4,#N/A) -> 100% | H17: =IF(SEDIMENTATION!$H4<USER_INPUT!$D$17,SEDIMENTATION!E4,#N/A) ->  | J17: =-(USER_INPUT!$D$8*USER_INPUT!$D$14)-(USER_INPUT!$D$10/2) -> -20.75 | K17: =USER_INPUT!$D$14 -> 4.50 | L17: Cross Section | O17: No | S17: =$P$19 -> 600 | T17: ='STAGE-STORAGE'!A4 -> 0.00 | U17: =IF(T17<USER_INPUT!$D$14,'STAGE-STORAGE'!D4,(VLOOKUP(USER_INPUT!$D$14,'STAGE-STORAGE'!$A$4:$J$54,4,FALSE))) -> 0.00 | V17: =IF(T17<USER_INPUT!$D$14,'STAGE-STORAGE'!J4,(VLOOKUP(USER_INPUT!$D$14,'STAGE-STORAGE'!$A$4:$J$54,10,FALSE))) -> 0.00 | W17: =(2*U17/$P$19)+V17 -> 0.000
B18: 40 | C18: 9.81 | D18: 999.99 | E18: 1.52E-06 | G18: =IF(SEDIMENTATION!$H5>USER_INPUT!$D$17,SEDIMENTATION!E5,#N/A) -> 96% | H18: =IF(SEDIMENTATION!$H5<USER_INPUT!$D$17,SEDIMENTATION!E5,#N/A) ->  | J18: =0-(USER_INPUT!$D$10/2) -> -5 | K18: 0 | S18: =$P$19 -> 600 | T18: ='STAGE-STORAGE'!A5 -> 0.10 | U18: =IF(T18<USER_INPUT!$D$14,'STAGE-STORAGE'!D5,(VLOOKUP(USER_INPUT!$D$14,'STAGE-STORAGE'!$A$4:$J$54,4,FALSE))) -> 3.44 | V18: =IF(T18<USER_INPUT!$D$14,'STAGE-STORAGE'!J5,(VLOOKUP(USER_INPUT!$D$14,'STAGE-STORAGE'!$A$4:$J$54,10,FALSE))) -> 0.00 | W18: =(2*U18/$P$19)+V18 -> 0.011
B19: 50 | C19: 9.81 | D19: 999.75 | E19: 1.31E-06 | G19: =IF(SEDIMENTATION!$H6>USER_INPUT!$D$17,SEDIMENTATION!E6,#N/A) -> 89% | H19: =IF(SEDIMENTATION!$H6<USER_INPUT!$D$17,SEDIMENTATION!E6,#N/A) ->  | J19: =USER_INPUT!$D$10/2 -> 5 | K19: 0 | O19: Time Step (s) | P19: 600 | S19: 600 | T19: ='STAGE-STORAGE'!A6 -> 0.20 | U19: =IF(T19<USER_INPUT!$D$14,'STAGE-STORAGE'!D6,(VLOOKUP(USER_INPUT!$D$14,'STAGE-STORAGE'!$A$4:$J$54,4,FALSE))) -> 13.97 | V19: =IF(T19<USER_INPUT!$D$14,'STAGE-STORAGE'!J6,(VLOOKUP(USER_INPUT!$D$14,'STAGE-STORAGE'!$A$4:$J$54,10,FALSE))) -> 0.00 | W19: 0.047
B20: 60 | C20: 9.81 | D20: 999.07 | E20: 1.16E-06 | G20: =IF(SEDIMENTATION!$H7>USER_INPUT!$D$17,SEDIMENTATION!E7,#N/A) -> 80% | H20: =IF(SEDIMENTATION!$H7<USER_INPUT!$D$17,SEDIMENTATION!E7,#N/A) ->  | J20: =(USER_INPUT!$D$9*USER_INPUT!$D$14)+(USER_INPUT!$D$10/2) -> 18.5 | K20: =USER_INPUT!$D$14 -> 4.50 | P20: =P19/60 -> 10 | Q20: Minutes | S20: 600 | T20: ='STAGE-STORAGE'!A7 -> 0.30 | U20: =IF(T20<USER_INPUT!$D$14,'STAGE-STORAGE'!D7,(VLOOKUP(USER_INPUT!$D$14,'STAGE-STORAGE'!$A$4:$J$54,4,FALSE))) -> 31.93 | V20: =IF(T20<USER_INPUT!$D$14,'STAGE-STORAGE'!J7,(VLOOKUP(USER_INPUT!$D$14,'STAGE-STORAGE'!$A$4:$J$54,10,FALSE))) -> 0.00 | W20: 0.106
B21: 70 | C21: 9.81 | D21: 998.02 | E21: =1.003*10^-6 -> 1.00E-06 | G21: =IF(SEDIMENTATION!$H8>USER_INPUT!$D$17,SEDIMENTATION!E8,#N/A) -> 75% | H21: =IF(SEDIMENTATION!$H8<USER_INPUT!$D$17,SEDIMENTATION!E8,#N/A) ->  | J21: =USER_INPUT!$D$10/2 -> 5 | K21: 0.0 | L21: Bottom | P21: =P20/60 -> 0.167 | Q21: Hours | S21: 600 | T21: ='STAGE-STORAGE'!A8 -> 0.40 | U21: =IF(T21<USER_INPUT!$D$14,'STAGE-STORAGE'!D8,(VLOOKUP(USER_INPUT!$D$14,'STAGE-STORAGE'!$A$4:$J$54,4,FALSE))) -> 57.65 | V21: =IF(T21<USER_INPUT!$D$14,'STAGE-STORAGE'!J8,(VLOOKUP(USER_INPUT!$D$14,'STAGE-STORAGE'!$A$4:$J$54,10,FALSE))) -> 0.00 | W21: 0.192
B22: 80 | C22: 9.81 | D22: 996.69 | E22: 8.69E-07 | G22: =IF(SEDIMENTATION!$H9>USER_INPUT!$D$17,SEDIMENTATION!E9,#N/A) -> 68% | H22: =IF(SEDIMENTATION!$H9<USER_INPUT!$D$17,SEDIMENTATION!E9,#N/A) ->  | J22: =-USER_INPUT!$D$10/2 -> -5 | K22: 0.0 | S22: 600 | T22: ='STAGE-STORAGE'!A9 -> 0.50 | U22: =IF(T22<USER_INPUT!$D$14,'STAGE-STORAGE'!D9,(VLOOKUP(USER_INPUT!$D$14,'STAGE-STORAGE'!$A$4:$J$54,4,FALSE))) -> 91.46 | V22: =IF(T22<USER_INPUT!$D$14,'STAGE-STORAGE'!J9,(VLOOKUP(USER_INPUT!$D$14,'STAGE-STORAGE'!$A$4:$J$54,10,FALSE))) -> 0.00 | W22: 0.305
B23: 90 | C23: 9.81 | D23: 995.1 | E23: 8.01E-07 | G23: =IF(SEDIMENTATION!$H10>USER_INPUT!$D$17,SEDIMENTATION!E10,#N/A) -> 61% | H23: =IF(SEDIMENTATION!$H10<USER_INPUT!$D$17,SEDIMENTATION!E10,#N/A) ->  | J23: =-(USER_INPUT!D8*USER_INPUT!D14)-(USER_INPUT!D10/2) -> -20.75 | K23: =USER_INPUT!$D$14 -> 4.5 | L23: Left of Spillway | S23: 600 | T23: ='STAGE-STORAGE'!A10 -> 0.60 | U23: =IF(T23<USER_INPUT!$D$14,'STAGE-STORAGE'!D10,(VLOOKUP(USER_INPUT!$D$14,'STAGE-STORAGE'!$A$4:$J$54,4,FALSE))) -> 133.68 | V23: =IF(T23<USER_INPUT!$D$14,'STAGE-STORAGE'!J10,(VLOOKUP(USER_INPUT!$D$14,'STAGE-STORAGE'!$A$4:$J$54,10,FALSE))) -> 0.00 | W23: 0.446
G24: =IF(SEDIMENTATION!$H11>USER_INPUT!$D$17,SEDIMENTATION!E11,#N/A) -> 62% | H24: =IF(SEDIMENTATION!$H11<USER_INPUT!$D$17,SEDIMENTATION!E11,#N/A) ->  | J24: =-(USER_INPUT!$D$16/2) -> -2 | K24: =USER_INPUT!$D$14 -> 4.5 | S24: 600 | T24: ='STAGE-STORAGE'!A11 -> 0.70 | U24: =IF(T24<USER_INPUT!$D$14,'STAGE-STORAGE'!D11,(VLOOKUP(USER_INPUT!$D$14,'STAGE-STORAGE'!$A$4:$J$54,4,FALSE))) -> 184.64 | V24: =IF(T24<USER_INPUT!$D$14,'STAGE-STORAGE'!J11,(VLOOKUP(USER_INPUT!$D$14,'STAGE-STORAGE'!$A$4:$J$54,10,FALSE))) -> 0.00 | W24: 0.615
G25: =IF(SEDIMENTATION!$H12>USER_INPUT!$D$17,SEDIMENTATION!E12,#N/A) -> 61% | H25: =IF(SEDIMENTATION!$H12<USER_INPUT!$D$17,SEDIMENTATION!E12,#N/A) ->  | J25: =-(USER_INPUT!$D$16/2) -> -2 | K25: =USER_INPUT!$D$17 -> 4.0 | S25: 600 | T25: ='STAGE-STORAGE'!A12 -> 0.80 | U25: =IF(T25<USER_INPUT!$D$14,'STAGE-STORAGE'!D12,(VLOOKUP(USER_INPUT!$D$14,'STAGE-STORAGE'!$A$4:$J$54,4,FALSE))) -> 244.68 | V25: =IF(T25<USER_INPUT!$D$14,'STAGE-STORAGE'!J12,(VLOOKUP(USER_INPUT!$D$14,'STAGE-STORAGE'!$A$4:$J$54,10,FALSE))) -> 0.00 | W25: 0.816
G26: =IF(SEDIMENTATION!$H13>USER_INPUT!$D$17,SEDIMENTATION!E13,#N/A) -> 57% | H26: =IF(SEDIMENTATION!$H13<USER_INPUT!$D$17,SEDIMENTATION!E13,#N/A) ->  | J26: =USER_INPUT!$D$16/2 -> 2 | K26: =USER_INPUT!$D$17 -> 4.0 | L26: Right of Spillway | S26: 600 | T26: ='STAGE-STORAGE'!A13 -> 0.90 | U26: =IF(T26<USER_INPUT!$D$14,'STAGE-STORAGE'!D13,(VLOOKUP(USER_INPUT!$D$14,'STAGE-STORAGE'!$A$4:$J$54,4,FALSE))) -> 314.13 | V26: =IF(T26<USER_INPUT!$D$14,'STAGE-STORAGE'!J13,(VLOOKUP(USER_INPUT!$D$14,'STAGE-STORAGE'!$A$4:$J$54,10,FALSE))) -> 0.00 | W26: 1.047
G27: =IF(SEDIMENTATION!$H14>USER_INPUT!$D$17,SEDIMENTATION!E14,#N/A) -> 52% | H27: =IF(SEDIMENTATION!$H14<USER_INPUT!$D$17,SEDIMENTATION!E14,#N/A) ->  | J27: =USER_INPUT!$D$16/2 -> 2 | K27: =USER_INPUT!$D$14 -> 4.5 | S27: 600 | T27: ='STAGE-STORAGE'!A14 -> 1.00 | U27: =IF(T27<USER_INPUT!$D$14,'STAGE-STORAGE'!D14,(VLOOKUP(USER_INPUT!$D$14,'STAGE-STORAGE'!$A$4:$J$54,4,FALSE))) -> 393.31 | V27: =IF(T27<USER_INPUT!$D$14,'STAGE-STORAGE'!J14,(VLOOKUP(USER_INPUT!$D$14,'STAGE-STORAGE'!$A$4:$J$54,10,FALSE))) -> 0.00 | W27: 1.311
G28: =IF(SEDIMENTATION!$H15>USER_INPUT!$D$17,SEDIMENTATION!E15,#N/A) -> 40% | H28: =IF(SEDIMENTATION!$H15<USER_INPUT!$D$17,SEDIMENTATION!E15,#N/A) ->  | J28: =(USER_INPUT!$D$9*USER_INPUT!$D$14)+(USER_INPUT!$D$10/2) -> 18.5 | K28: =USER_INPUT!$D$14 -> 4.5 | S28: 600 | T28: ='STAGE-STORAGE'!A15 -> 1.10 | U28: =IF(T28<USER_INPUT!$D$14,'STAGE-STORAGE'!D15,(VLOOKUP(USER_INPUT!$D$14,'STAGE-STORAGE'!$A$4:$J$54,4,FALSE))) -> 482.56 | V28: =IF(T28<USER_INPUT!$D$14,'STAGE-STORAGE'!J15,(VLOOKUP(USER_INPUT!$D$14,'STAGE-STORAGE'!$A$4:$J$54,10,FALSE))) -> 0.00 | W28: 1.609
G29: =IF(SEDIMENTATION!$H16>USER_INPUT!$D$17,SEDIMENTATION!E16,#N/A) -> 34% | H29: =IF(SEDIMENTATION!$H16<USER_INPUT!$D$17,SEDIMENTATION!E16,#N/A) ->  | J29: =-(USER_INPUT!$D$16/2) -> -2 | K29: =USER_INPUT!$D$17 -> 4.0 | L29: Spillway | S29: 600 | T29: ='STAGE-STORAGE'!A16 -> 1.20 | U29: =IF(T29<USER_INPUT!$D$14,'STAGE-STORAGE'!D16,(VLOOKUP(USER_INPUT!$D$14,'STAGE-STORAGE'!$A$4:$J$54,4,FALSE))) -> 582.20 | V29: =IF(T29<USER_INPUT!$D$14,'STAGE-STORAGE'!J16,(VLOOKUP(USER_INPUT!$D$14,'STAGE-STORAGE'!$A$4:$J$54,10,FALSE))) -> 0.00 | W29: 1.941
G30: =IF(SEDIMENTATION!$H17>USER_INPUT!$D$17,SEDIMENTATION!E17,#N/A) -> 28% | H30: =IF(SEDIMENTATION!$H17<USER_INPUT!$D$17,SEDIMENTATION!E17,#N/A) ->  | J30: =USER_INPUT!$D$16/2 -> 2 | K30: =USER_INPUT!$D$17 -> 4.0 | S30: 600 | T30: ='STAGE-STORAGE'!A17 -> 1.30 | U30: =IF(T30<USER_INPUT!$D$14,'STAGE-STORAGE'!D17,(VLOOKUP(USER_INPUT!$D$14,'STAGE-STORAGE'!$A$4:$J$54,4,FALSE))) -> 692.57 | V30: =IF(T30<USER_INPUT!$D$14,'STAGE-STORAGE'!J17,(VLOOKUP(USER_INPUT!$D$14,'STAGE-STORAGE'!$A$4:$J$54,10,FALSE))) -> 0.00 | W30: 2.309
G31: =IF(SEDIMENTATION!$H18>USER_INPUT!$D$17,SEDIMENTATION!E18,#N/A) -> 24% | H31: =IF(SEDIMENTATION!$H18<USER_INPUT!$D$17,SEDIMENTATION!E18,#N/A) ->  | J31: =IF(USER_INPUT!$D$20=REFERENCE!$B$5,-0.5,#N/A) ->  | K31: 0 | L31: Skimmer Rest | S31: 600 | T31: ='STAGE-STORAGE'!A18 -> 1.40 | U31: =IF(T31<USER_INPUT!$D$14,'STAGE-STORAGE'!D18,(VLOOKUP(USER_INPUT!$D$14,'STAGE-STORAGE'!$A$4:$J$54,4,FALSE))) -> 814.00 | V31: =IF(T31<USER_INPUT!$D$14,'STAGE-STORAGE'!J18,(VLOOKUP(USER_INPUT!$D$14,'STAGE-STORAGE'!$A$4:$J$54,10,FALSE))) -> 0.00 | W31: 2.713
G32: =IF(SEDIMENTATION!$H19>USER_INPUT!$D$17,SEDIMENTATION!E19,#N/A) -> 22% | H32: =IF(SEDIMENTATION!$H19<USER_INPUT!$D$17,SEDIMENTATION!E19,#N/A) ->  | J32: =IF(USER_INPUT!$D$20=REFERENCE!$B$5,-0.5,#N/A) ->  | K32: =USER_INPUT!$D$30/12 -> 0.5 | S32: 600 | T32: ='STAGE-STORAGE'!A19 -> 1.50 | U32: =IF(T32<USER_INPUT!$D$14,'STAGE-STORAGE'!D19,(VLOOKUP(USER_INPUT!$D$14,'STAGE-STORAGE'!$A$4:$J$54,4,FALSE))) -> 946.80 | V32: =IF(T32<USER_INPUT!$D$14,'STAGE-STORAGE'!J19,(VLOOKUP(USER_INPUT!$D$14,'STAGE-STORAGE'!$A$4:$J$54,10,FALSE))) -> 0.00 | W32: 3.156
G33: =IF(SEDIMENTATION!$H20>USER_INPUT!$D$17,SEDIMENTATION!E20,#N/A) ->  | H33: =IF(SEDIMENTATION!$H20<USER_INPUT!$D$17,SEDIMENTATION!E20,#N/A) -> 20% | J33: =IF(USER_INPUT!$D$20=REFERENCE!$B$5,0.5,#N/A) ->  | K33: =USER_INPUT!$D$30/12 -> 0.5 | S33: 600 | T33: ='STAGE-STORAGE'!A20 -> 1.60 | U33: =IF(T33<USER_INPUT!$D$14,'STAGE-STORAGE'!D20,(VLOOKUP(USER_INPUT!$D$14,'STAGE-STORAGE'!$A$4:$J$54,4,FALSE))) -> 1091.33 | V33: =IF(T33<USER_INPUT!$D$14,'STAGE-STORAGE'!J20,(VLOOKUP(USER_INPUT!$D$14,'STAGE-STORAGE'!$A$4:$J$54,10,FALSE))) -> 0.00 | W33: 3.638
G34: =IF(SEDIMENTATION!$H21>USER_INPUT!$D$17,SEDIMENTATION!E21,#N/A) ->  | H34: =IF(SEDIMENTATION!$H21<USER_INPUT!$D$17,SEDIMENTATION!E21,#N/A) -> 19% | J34: =IF(USER_INPUT!$D$20=REFERENCE!$B$5,0.5,#N/A) ->  | K34: 0.0 | S34: 600 | T34: ='STAGE-STORAGE'!A21 -> 1.70 | U34: =IF(T34<USER_INPUT!$D$14,'STAGE-STORAGE'!D21,(VLOOKUP(USER_INPUT!$D$14,'STAGE-STORAGE'!$A$4:$J$54,4,FALSE))) -> 1247.90 | V34: =IF(T34<USER_INPUT!$D$14,'STAGE-STORAGE'!J21,(VLOOKUP(USER_INPUT!$D$14,'STAGE-STORAGE'!$A$4:$J$54,10,FALSE))) -> 0.00 | W34: 4.160
G35: =IF(SEDIMENTATION!$H22>USER_INPUT!$D$17,SEDIMENTATION!E22,#N/A) ->  | H35: =IF(SEDIMENTATION!$H22<USER_INPUT!$D$17,SEDIMENTATION!E22,#N/A) -> 18% | J35: =IF(USER_INPUT!$D$20=REFERENCE!$B$4,(-(USER_INPUT!$D$23/12)/2),#N/A) -> -0.5 | K35: =IF(USER_INPUT!$D$20=REFERENCE!$B$4,USER_INPUT!D22,#N/A) -> 3.00 | L35: Riser Pipe | S35: 600 | T35: ='STAGE-STORAGE'!A22 -> 1.80 | U35: =IF(T35<USER_INPUT!$D$14,'STAGE-STORAGE'!D22,(VLOOKUP(USER_INPUT!$D$14,'STAGE-STORAGE'!$A$4:$J$54,4,FALSE))) -> 1416.84 | V35: =IF(T35<USER_INPUT!$D$14,'STAGE-STORAGE'!J22,(VLOOKUP(USER_INPUT!$D$14,'STAGE-STORAGE'!$A$4:$J$54,10,FALSE))) -> 0.00 | W35: 4.723
G36: =IF(SEDIMENTATION!$H23>USER_INPUT!$D$17,SEDIMENTATION!E23,#N/A) ->  | H36: =IF(SEDIMENTATION!$H23<USER_INPUT!$D$17,SEDIMENTATION!E23,#N/A) -> 18% | J36: =IF(USER_INPUT!$D$20=REFERENCE!$B$4,(-(USER_INPUT!$D$23/12)/2),#N/A) -> -0.5 | K36: 0 | S36: 600 | T36: ='STAGE-STORAGE'!A23 -> 1.90 | U36: =IF(T36<USER_INPUT!$D$14,'STAGE-STORAGE'!D23,(VLOOKUP(USER_INPUT!$D$14,'STAGE-STORAGE'!$A$4:$J$54,4,FALSE))) -> 1598.49 | V36: =IF(T36<USER_INPUT!$D$14,'STAGE-STORAGE'!J23,(VLOOKUP(USER_INPUT!$D$14,'STAGE-STORAGE'!$A$4:$J$54,10,FALSE))) -> 0.00 | W36: 5.328
G37: =IF(SEDIMENTATION!$H24>USER_INPUT!$D$17,SEDIMENTATION!E24,#N/A) ->  | H37: =IF(SEDIMENTATION!$H24<USER_INPUT!$D$17,SEDIMENTATION!E24,#N/A) -> 17% | J37: =IF(USER_INPUT!$D$20=REFERENCE!$B$4,((USER_INPUT!$D$23/12)/2),#N/A) -> 0.5 | K37: 0 | S37: 600 | T37: ='STAGE-STORAGE'!A24 -> 2.00 | U37: =IF(T37<USER_INPUT!$D$14,'STAGE-STORAGE'!D24,(VLOOKUP(USER_INPUT!$D$14,'STAGE-STORAGE'!$A$4:$J$54,4,FALSE))) -> 1793.17 | V37: =IF(T37<USER_INPUT!$D$14,'STAGE-STORAGE'!J24,(VLOOKUP(USER_INPUT!$D$14,'STAGE-STORAGE'!$A$4:$J$54,10,FALSE))) -> 0.00 | W37: 5.977
G38: =IF(SEDIMENTATION!$H25>USER_INPUT!$D$17,SEDIMENTATION!E25,#N/A) ->  | H38: =IF(SEDIMENTATION!$H25<USER_INPUT!$D$17,SEDIMENTATION!E25,#N/A) -> 15% | J38: =IF(USER_INPUT!$D$20=REFERENCE!$B$4,((USER_INPUT!$D$23/12)/2),#N/A) -> 0.5 | K38: =IF(USER_INPUT!$D$20=REFERENCE!$B$4,USER_INPUT!$D$22,#N/A) -> 3 | S38: 600 | T38: ='STAGE-STORAGE'!A25 -> 2.10 | U38: =IF(T38<USER_INPUT!$D$14,'STAGE-STORAGE'!D25,(VLOOKUP(USER_INPUT!$D$14,'STAGE-STORAGE'!$A$4:$J$54,4,FALSE))) -> 2001.21 | V38: =IF(T38<USER_INPUT!$D$14,'STAGE-STORAGE'!J25,(VLOOKUP(USER_INPUT!$D$14,'STAGE-STORAGE'!$A$4:$J$54,10,FALSE))) -> 0.03 | W38: 6.704
G39: =IF(SEDIMENTATION!$H26>USER_INPUT!$D$17,SEDIMENTATION!E26,#N/A) ->  | H39: =IF(SEDIMENTATION!$H26<USER_INPUT!$D$17,SEDIMENTATION!E26,#N/A) -> 0% | J39: =IF(USER_INPUT!$D$20=REFERENCE!$B$4,(-(USER_INPUT!$D$23/12)/2),#N/A) -> -0.5 | K39: =IF(USER_INPUT!$D$20=REFERENCE!$B$4,USER_INPUT!$D$22,#N/A) -> 3 | L39: Riser Crest | S39: 600 | T39: ='STAGE-STORAGE'!A26 -> 2.20 | U39: =IF(T39<USER_INPUT!$D$14,'STAGE-STORAGE'!D26,(VLOOKUP(USER_INPUT!$D$14,'STAGE-STORAGE'!$A$4:$J$54,4,FALSE))) -> 2222.95 | V39: =IF(T39<USER_INPUT!$D$14,'STAGE-STORAGE'!J26,(VLOOKUP(USER_INPUT!$D$14,'STAGE-STORAGE'!$A$4:$J$54,10,FALSE))) -> 0.05 | W39: 7.457
G40: =IF(SEDIMENTATION!$H27>USER_INPUT!$D$17,SEDIMENTATION!E27,#N/A) ->  | H40: =IF(SEDIMENTATION!$H27<USER_INPUT!$D$17,SEDIMENTATION!E27,#N/A) -> 0% | J40: =IF(USER_INPUT!$D$20=REFERENCE!$B$4,((USER_INPUT!$D$23/12)/2),#N/A) -> 0.5 | K40: =IF(USER_INPUT!$D$20=REFERENCE!$B$4,USER_INPUT!$D$22,#N/A) -> 3 | S40: 600 | T40: ='STAGE-STORAGE'!A27 -> 2.30 | U40: =IF(T40<USER_INPUT!$D$14,'STAGE-STORAGE'!D27,(VLOOKUP(USER_INPUT!$D$14,'STAGE-STORAGE'!$A$4:$J$54,4,FALSE))) -> 2458.71 | V40: =IF(T40<USER_INPUT!$D$14,'STAGE-STORAGE'!J27,(VLOOKUP(USER_INPUT!$D$14,'STAGE-STORAGE'!$A$4:$J$54,10,FALSE))) -> 0.06 | W40: 8.253
G41: Suspended | H41: =_xlfn.AGGREGATE(4,7,H17:H40) -> 20% | J41: 0 | K41: =IF(USER_INPUT!$D$20=REFERENCE!$B$4,(USER_INPUT!D24/12),#N/A) -> 2 | L41: Orifices | S41: 600 | T41: ='STAGE-STORAGE'!A28 -> 2.40 | U41: =IF(T41<USER_INPUT!$D$14,'STAGE-STORAGE'!D28,(VLOOKUP(USER_INPUT!$D$14,'STAGE-STORAGE'!$A$4:$J$54,4,FALSE))) -> 2708.83 | V41: =IF(T41<USER_INPUT!$D$14,'STAGE-STORAGE'!J28,(VLOOKUP(USER_INPUT!$D$14,'STAGE-STORAGE'!$A$4:$J$54,10,FALSE))) -> 0.09 | W41: 9.123
G42: Captured | H42: =1-H41 -> 80% | J42: 0 | K42: =IF(USER_INPUT!$D$20=REFERENCE!$B$4,(USER_INPUT!D25/12),#N/A) -> 2.166666667 | S42: 600 | T42: ='STAGE-STORAGE'!A29 -> 2.50 | U42: =IF(T42<USER_INPUT!$D$14,'STAGE-STORAGE'!D29,(VLOOKUP(USER_INPUT!$D$14,'STAGE-STORAGE'!$A$4:$J$54,4,FALSE))) -> 2973.63 | V42: =IF(T42<USER_INPUT!$D$14,'STAGE-STORAGE'!J29,(VLOOKUP(USER_INPUT!$D$14,'STAGE-STORAGE'!$A$4:$J$54,10,FALSE))) -> 0.12 | W42: 10.029
J43: 0 | K43: =IF(USER_INPUT!$D$20=REFERENCE!$B$4,(USER_INPUT!D26/12),#N/A) -> 2.333333333 | S43: 600 | T43: ='STAGE-STORAGE'!A30 -> 2.60 | U43: =IF(T43<USER_INPUT!$D$14,'STAGE-STORAGE'!D30,(VLOOKUP(USER_INPUT!$D$14,'STAGE-STORAGE'!$A$4:$J$54,4,FALSE))) -> 3253.45 | V43: =IF(T43<USER_INPUT!$D$14,'STAGE-STORAGE'!J30,(VLOOKUP(USER_INPUT!$D$14,'STAGE-STORAGE'!$A$4:$J$54,10,FALSE))) -> 0.14 | W43: 10.980
S44: 600 | T44: ='STAGE-STORAGE'!A31 -> 2.70 | U44: =IF(T44<USER_INPUT!$D$14,'STAGE-STORAGE'!D31,(VLOOKUP(USER_INPUT!$D$14,'STAGE-STORAGE'!$A$4:$J$54,4,FALSE))) -> 3548.60 | V44: =IF(T44<USER_INPUT!$D$14,'STAGE-STORAGE'!J31,(VLOOKUP(USER_INPUT!$D$14,'STAGE-STORAGE'!$A$4:$J$54,10,FALSE))) -> 0.15 | W44: 11.980
S45: 600 | T45: ='STAGE-STORAGE'!A32 -> 2.80 | U45: =IF(T45<USER_INPUT!$D$14,'STAGE-STORAGE'!D32,(VLOOKUP(USER_INPUT!$D$14,'STAGE-STORAGE'!$A$4:$J$54,4,FALSE))) -> 3859.44 | V45: =IF(T45<USER_INPUT!$D$14,'STAGE-STORAGE'!J32,(VLOOKUP(USER_INPUT!$D$14,'STAGE-STORAGE'!$A$4:$J$54,10,FALSE))) -> 0.17 | W45: 13.031
S46: 600 | T46: ='STAGE-STORAGE'!A33 -> 2.90 | U46: =IF(T46<USER_INPUT!$D$14,'STAGE-STORAGE'!D33,(VLOOKUP(USER_INPUT!$D$14,'STAGE-STORAGE'!$A$4:$J$54,4,FALSE))) -> 4186.27 | V46: =IF(T46<USER_INPUT!$D$14,'STAGE-STORAGE'!J33,(VLOOKUP(USER_INPUT!$D$14,'STAGE-STORAGE'!$A$4:$J$54,10,FALSE))) -> 0.18 | W46: =(2*U46/$P$19)+V46 -> 14.133
S47: 600 | T47: ='STAGE-STORAGE'!A34 -> 3.00 | U47: =IF(T47<USER_INPUT!$D$14,'STAGE-STORAGE'!D34,(VLOOKUP(USER_INPUT!$D$14,'STAGE-STORAGE'!$A$4:$J$54,4,FALSE))) -> 4529.44 | V47: =IF(T47<USER_INPUT!$D$14,'STAGE-STORAGE'!J34,(VLOOKUP(USER_INPUT!$D$14,'STAGE-STORAGE'!$A$4:$J$54,10,FALSE))) -> 0.19 | W47: 15.289
S48: 600 | T48: ='STAGE-STORAGE'!A35 -> 3.10 | U48: =IF(T48<USER_INPUT!$D$14,'STAGE-STORAGE'!D35,(VLOOKUP(USER_INPUT!$D$14,'STAGE-STORAGE'!$A$4:$J$54,4,FALSE))) -> 4889.27 | V48: =IF(T48<USER_INPUT!$D$14,'STAGE-STORAGE'!J35,(VLOOKUP(USER_INPUT!$D$14,'STAGE-STORAGE'!$A$4:$J$54,10,FALSE))) -> 0.53 | W48: 16.832
S49: 600 | T49: ='STAGE-STORAGE'!A36 -> 3.20 | U49: =IF(T49<USER_INPUT!$D$14,'STAGE-STORAGE'!D36,(VLOOKUP(USER_INPUT!$D$14,'STAGE-STORAGE'!$A$4:$J$54,4,FALSE))) -> 5266.09 | V49: =IF(T49<USER_INPUT!$D$14,'STAGE-STORAGE'!J36,(VLOOKUP(USER_INPUT!$D$14,'STAGE-STORAGE'!$A$4:$J$54,10,FALSE))) -> 1.15 | W49: 18.706
S50: 600 | T50: ='STAGE-STORAGE'!A37 -> 3.30 | U50: =IF(T50<USER_INPUT!$D$14,'STAGE-STORAGE'!D37,(VLOOKUP(USER_INPUT!$D$14,'STAGE-STORAGE'!$A$4:$J$54,4,FALSE))) -> 5660.24 | V50: =IF(T50<USER_INPUT!$D$14,'STAGE-STORAGE'!J37,(VLOOKUP(USER_INPUT!$D$14,'STAGE-STORAGE'!$A$4:$J$54,10,FALSE))) -> 1.95 | W50: 20.816
S51: 600 | T51: ='STAGE-STORAGE'!A38 -> 3.40 | U51: =IF(T51<USER_INPUT!$D$14,'STAGE-STORAGE'!D38,(VLOOKUP(USER_INPUT!$D$14,'STAGE-STORAGE'!$A$4:$J$54,4,FALSE))) -> 6072.03 | V51: =IF(T51<USER_INPUT!$D$14,'STAGE-STORAGE'!J38,(VLOOKUP(USER_INPUT!$D$14,'STAGE-STORAGE'!$A$4:$J$54,10,FALSE))) -> 2.89 | W51: 23.129
S52: 600 | T52: ='STAGE-STORAGE'!A39 -> 3.50 | U52: =IF(T52<USER_INPUT!$D$14,'STAGE-STORAGE'!D39,(VLOOKUP(USER_INPUT!$D$14,'STAGE-STORAGE'!$A$4:$J$54,4,FALSE))) -> 6501.82 | V52: =IF(T52<USER_INPUT!$D$14,'STAGE-STORAGE'!J39,(VLOOKUP(USER_INPUT!$D$14,'STAGE-STORAGE'!$A$4:$J$54,10,FALSE))) -> 3.95 | W52: 25.627
S53: 600 | T53: ='STAGE-STORAGE'!A40 -> 3.60 | U53: =IF(T53<USER_INPUT!$D$14,'STAGE-STORAGE'!D40,(VLOOKUP(USER_INPUT!$D$14,'STAGE-STORAGE'!$A$4:$J$54,4,FALSE))) -> 6949.91 | V53: =IF(T53<USER_INPUT!$D$14,'STAGE-STORAGE'!J40,(VLOOKUP(USER_INPUT!$D$14,'STAGE-STORAGE'!$A$4:$J$54,10,FALSE))) -> 5.13 | W53: 28.297
S54: 600 | T54: ='STAGE-STORAGE'!A41 -> 3.70 | U54: =IF(T54<USER_INPUT!$D$14,'STAGE-STORAGE'!D41,(VLOOKUP(USER_INPUT!$D$14,'STAGE-STORAGE'!$A$4:$J$54,4,FALSE))) -> 7416.64 | V54: =IF(T54<USER_INPUT!$D$14,'STAGE-STORAGE'!J41,(VLOOKUP(USER_INPUT!$D$14,'STAGE-STORAGE'!$A$4:$J$54,10,FALSE))) -> 6.41 | W54: 31.131
S55: 600 | T55: ='STAGE-STORAGE'!A42 -> 3.80 | U55: =IF(T55<USER_INPUT!$D$14,'STAGE-STORAGE'!D42,(VLOOKUP(USER_INPUT!$D$14,'STAGE-STORAGE'!$A$4:$J$54,4,FALSE))) -> 7902.35 | V55: =IF(T55<USER_INPUT!$D$14,'STAGE-STORAGE'!J42,(VLOOKUP(USER_INPUT!$D$14,'STAGE-STORAGE'!$A$4:$J$54,10,FALSE))) -> 7.78 | W55: 34.123
S56: 600 | T56: ='STAGE-STORAGE'!A43 -> 3.90 | U56: =IF(T56<USER_INPUT!$D$14,'STAGE-STORAGE'!D43,(VLOOKUP(USER_INPUT!$D$14,'STAGE-STORAGE'!$A$4:$J$54,4,FALSE))) -> 8407.36 | V56: =IF(T56<USER_INPUT!$D$14,'STAGE-STORAGE'!J43,(VLOOKUP(USER_INPUT!$D$14,'STAGE-STORAGE'!$A$4:$J$54,10,FALSE))) -> 9.24 | W56: 37.266
S57: 600 | T57: ='STAGE-STORAGE'!A44 -> 4.00 | U57: =IF(T57<USER_INPUT!$D$14,'STAGE-STORAGE'!D44,(VLOOKUP(USER_INPUT!$D$14,'STAGE-STORAGE'!$A$4:$J$54,4,FALSE))) -> 8932.00 | V57: =IF(T57<USER_INPUT!$D$14,'STAGE-STORAGE'!J44,(VLOOKUP(USER_INPUT!$D$14,'STAGE-STORAGE'!$A$4:$J$54,10,FALSE))) -> 10.78 | W57: 40.558
S58: 600 | T58: ='STAGE-STORAGE'!A45 -> 4.10 | U58: =IF(T58<USER_INPUT!$D$14,'STAGE-STORAGE'!D45,(VLOOKUP(USER_INPUT!$D$14,'STAGE-STORAGE'!$A$4:$J$54,4,FALSE))) -> 9476.60 | V58: =IF(T58<USER_INPUT!$D$14,'STAGE-STORAGE'!J45,(VLOOKUP(USER_INPUT!$D$14,'STAGE-STORAGE'!$A$4:$J$54,10,FALSE))) -> 12.88 | W58: 44.473
S59: 600 | T59: ='STAGE-STORAGE'!A46 -> 4.20 | U59: =IF(T59<USER_INPUT!$D$14,'STAGE-STORAGE'!D46,(VLOOKUP(USER_INPUT!$D$14,'STAGE-STORAGE'!$A$4:$J$54,4,FALSE))) -> 10041.50 | V59: =IF(T59<USER_INPUT!$D$14,'STAGE-STORAGE'!J46,(VLOOKUP(USER_INPUT!$D$14,'STAGE-STORAGE'!$A$4:$J$54,10,FALSE))) -> 15.46 | W59: 48.927
S60: 600 | T60: ='STAGE-STORAGE'!A47 -> 4.30 | U60: =IF(T60<USER_INPUT!$D$14,'STAGE-STORAGE'!D47,(VLOOKUP(USER_INPUT!$D$14,'STAGE-STORAGE'!$A$4:$J$54,4,FALSE))) -> 10627.01 | V60: =IF(T60<USER_INPUT!$D$14,'STAGE-STORAGE'!J47,(VLOOKUP(USER_INPUT!$D$14,'STAGE-STORAGE'!$A$4:$J$54,10,FALSE))) -> 18.36 | W60: 53.780
S61: 600 | T61: ='STAGE-STORAGE'!A48 -> 4.40 | U61: =IF(T61<USER_INPUT!$D$14,'STAGE-STORAGE'!D48,(VLOOKUP(USER_INPUT!$D$14,'STAGE-STORAGE'!$A$4:$J$54,4,FALSE))) -> 11233.48 | V61: =IF(T61<USER_INPUT!$D$14,'STAGE-STORAGE'!J48,(VLOOKUP(USER_INPUT!$D$14,'STAGE-STORAGE'!$A$4:$J$54,10,FALSE))) -> 21.54 | W61: 58.980
S62: 600 | T62: ='STAGE-STORAGE'!A49 -> 4.50 | U62: =IF(T62<USER_INPUT!$D$14,'STAGE-STORAGE'!D49,(VLOOKUP(USER_INPUT!$D$14,'STAGE-STORAGE'!$A$4:$J$54,4,FALSE))) -> 11861.23 | V62: =IF(T62<USER_INPUT!$D$14,'STAGE-STORAGE'!J49,(VLOOKUP(USER_INPUT!$D$14,'STAGE-STORAGE'!$A$4:$J$54,10,FALSE))) -> 24.96 | W62: 64.498
S63: 600 | T63: ='STAGE-STORAGE'!A50 -> 4.60 | U63: =IF(T63<USER_INPUT!$D$14,'STAGE-STORAGE'!D50,(VLOOKUP(USER_INPUT!$D$14,'STAGE-STORAGE'!$A$4:$J$54,4,FALSE))) -> 11861.23 | V63: =IF(T63<USER_INPUT!$D$14,'STAGE-STORAGE'!J50,(VLOOKUP(USER_INPUT!$D$14,'STAGE-STORAGE'!$A$4:$J$54,10,FALSE))) -> 24.96 | W63: 64.498
S64: 600 | T64: ='STAGE-STORAGE'!A51 -> 4.70 | U64: =IF(T64<USER_INPUT!$D$14,'STAGE-STORAGE'!D51,(VLOOKUP(USER_INPUT!$D$14,'STAGE-STORAGE'!$A$4:$J$54,4,FALSE))) -> 11861.23 | V64: =IF(T64<USER_INPUT!$D$14,'STAGE-STORAGE'!J51,(VLOOKUP(USER_INPUT!$D$14,'STAGE-STORAGE'!$A$4:$J$54,10,FALSE))) -> 24.96 | W64: 64.498
S65: 600 | T65: ='STAGE-STORAGE'!A52 -> 4.80 | U65: =IF(T65<USER_INPUT!$D$14,'STAGE-STORAGE'!D52,(VLOOKUP(USER_INPUT!$D$14,'STAGE-STORAGE'!$A$4:$J$54,4,FALSE))) -> 11861.23 | V65: =IF(T65<USER_INPUT!$D$14,'STAGE-STORAGE'!J52,(VLOOKUP(USER_INPUT!$D$14,'STAGE-STORAGE'!$A$4:$J$54,10,FALSE))) -> 24.96 | W65: 64.498
S66: 600 | T66: ='STAGE-STORAGE'!A53 -> 4.90 | U66: =IF(T66<USER_INPUT!$D$14,'STAGE-STORAGE'!D53,(VLOOKUP(USER_INPUT!$D$14,'STAGE-STORAGE'!$A$4:$J$54,4,FALSE))) -> 11861.23 | V66: =IF(T66<USER_INPUT!$D$14,'STAGE-STORAGE'!J53,(VLOOKUP(USER_INPUT!$D$14,'STAGE-STORAGE'!$A$4:$J$54,10,FALSE))) -> 24.96 | W66: 64.498
S67: 600 | T67: ='STAGE-STORAGE'!A54 -> 5.00 | U67: =IF(T67<USER_INPUT!$D$14,'STAGE-STORAGE'!D54,(VLOOKUP(USER_INPUT!$D$14,'STAGE-STORAGE'!$A$4:$J$54,4,FALSE))) -> 11861.23 | V67: =IF(T67<USER_INPUT!$D$14,'STAGE-STORAGE'!J54,(VLOOKUP(USER_INPUT!$D$14,'STAGE-STORAGE'!$A$4:$J$54,10,FALSE))) -> 24.96 | W67: 64.498
